Body Name,Trans.date,Department Code,Department,Expense Area Code,Expense Area,Expense type code,Expense type,Amount Paid (�),Supplier name,Extended description,TransNo,Period
Rother District Council,01/07/2020,091HOUSING,Housing and Community Services,20208,Care In The Community,D2513,Hired and Contracted services,190.00,Safe Partnership Ltd,Hired and Contracted services,2031471,202112
Rother District Council,20/10/2020,091HOUSING,Housing and Community Services,20208,Care In The Community,D2513,Hired and Contracted services,200.00,Safe Partnership Ltd,Hired and Contracted services,2031472,202112
Rother District Council,27/11/2020,091HOUSING,Housing and Community Services,20208,Care In The Community,D2513,Hired and Contracted services,285.00,Safe Partnership Ltd,Hired and Contracted services,2031473,202112
Rother District Council,04/01/2021,101RESOURCES,Resources,20216,Cost Of Collection,D2513,Hired and Contracted services,49.50,Inform CPI Ltd,Hired and contracted services - RV Finder,2029736,202110
Rother District Council,20/01/2021,101RESOURCES,Resources,20239,Computer Services,D2635,Computer Licences,"9,000.80",Vodafone Ltd,Computer Licences - GIS System,2030925,202111
Rother District Council,20/01/2021,101RESOURCES,Resources,20239,Computer Services,D2631,Computer Equip Maintenance,"2,250.20",Vodafone Ltd,Computer Equip Maintenance - Maintenance of Network Equipment,2030926,202111
Rother District Council,25/01/2021,101RESOURCES,Resources,20239,Computer Services,D2631,Computer Equip Maintenance,"2,250.20",Vodafone Ltd,Computer Equip Maintenance - Maintenance of Network Equipment,2030927,202111
Rother District Council,15/02/2021,091HOUSING,Housing and Community Services,20132,Street & Beach Cleansing,E1101,Third party payment other LAs,"98,471.12",Wealden District Council,Third Party Payment other LAs - Waste core cost,2030323,202111
Rother District Council,15/02/2021,091HOUSING,Housing and Community Services,20133,Refuse Collection,E1101,Third party payment other LAs,"295,413.37",Wealden District Council,Third Party Payment other LAs - Waste core cost,2030323,202111
Rother District Council,21/03/2021,091HOUSING,Housing and Community Services,20204,Housing Administration Account,D2513,Hired and Contracted services,723.60,Skyguard Ltd,Hired and contracted services - Service fee paid,2030995,202112
Rother District Council,25/03/2021,091HOUSING,Housing and Community Services,20206,UK Resettlement (Syrians),D2513,Hired and Contracted services,87.36,Skyguard Ltd,Hired and contracted services - Syrian Misc,2030857,202111
Rother District Council,01/05/2021,091HOUSING,Housing and Community Services,20204,Housing Administration Account,D2513,Hired and Contracted services,457.80,Skyguard Ltd,Hired and contracted services - Service fee paid,2030994,202112
Rother District Council,08/05/2021,101RESOURCES,Resources,20239,Computer Services,D2635,Computer Licences,300.00,ElseWare Limited,Computer Licences - BACS Software,2030159,202110
Rother District Council,26/05/2021,101RESOURCES,Resources,20209,Corporate management,D2516,Audit fees,90.00,Royal Bank of Scotland Plc,Audit Fees - External Audit,2031774,202112
Rother District Council,31/05/2021,999NOREPORT,"Acquisitions, Transformation and Regeneration",70705,Capital - Fairlight Coastal Protection Scheme (Preservational Trust),N1007,Plant & Machinery,"2,323.54",TPGEO,Capital - Plant and Property,2031755,202112
Rother District Council,12/07/2021,091HOUSING,Housing and Community Services,20128,Public Conveniences,B2422,Sewerage,330.00,CountyClean Environmental Services Ltd,Sewerage - Sewage/Cesspool Emptying,2030493,202111
Rother District Council,13/07/2021,091HOUSING,Housing and Community Services,20128,Public Conveniences,B2422,Sewerage,235.00,CountyClean Environmental Services Ltd,Sewerage - Sewage/Cesspool Emptying,2029707,202110
Rother District Council,13/07/2021,081ACQUISIT,"Acquisitions, Transformation and Regeneration",20154,Committee Property Account,B2422,Sewerage,235.00,CountyClean Environmental Services Ltd,Sewerage - Sewage/Cesspool Emptying,2029707,202110
Rother District Council,13/07/2021,081ACQUISIT,"Acquisitions, Transformation and Regeneration",20153,"Elva Business Centre, Bexhill",B2422,Sewerage,235.00,CountyClean Environmental Services Ltd,Sewerage - Sewage/Cesspool Emptying,2029707,202110
Rother District Council,13/07/2021,091HOUSING,Housing and Community Services,20137,Car Parks,B2422,Sewerage,235.00,CountyClean Environmental Services Ltd,Sewerage - Sewage/Cesspool Emptying,2029707,202110
Rother District Council,13/07/2021,081ACQUISIT,"Acquisitions, Transformation and Regeneration",20154,Committee Property Account,B2422,Sewerage,155.00,CountyClean Environmental Services Ltd,Sewerage - Sewage/Cesspool Emptying,2029707,202110
Rother District Council,13/07/2021,091HOUSING,Housing and Community Services,20128,Public Conveniences,B2422,Sewerage,175.00,CountyClean Environmental Services Ltd,Repairs to Premises - Cesspool Pumping station service/Call out,2029707,202110
Rother District Council,13/07/2021,081ACQUISIT,"Acquisitions, Transformation and Regeneration",20153,"Elva Business Centre, Bexhill",B2422,Sewerage,295.00,CountyClean Environmental Services Ltd,Repairs to Premises - Cesspool Pumping station service/Call out,2029707,202110
Rother District Council,13/07/2021,081ACQUISIT,"Acquisitions, Transformation and Regeneration",20154,Committee Property Account,B2422,Sewerage,175.00,CountyClean Environmental Services Ltd,Repairs to Premises - Cesspool Pumping station service/Call out,2029707,202110
Rother District Council,13/07/2021,081ACQUISIT,"Acquisitions, Transformation and Regeneration",20154,Committee Property Account,B2422,Sewerage,175.00,CountyClean Environmental Services Ltd,Repairs to Premises - Cesspool Pumping station service/Call out,2029707,202110
Rother District Council,13/07/2021,091HOUSING,Housing and Community Services,20137,Car Parks,B2422,Sewerage,175.00,CountyClean Environmental Services Ltd,Repairs to Premises - Cesspool Pumping station service/Call out,2029707,202110
Rother District Council,13/07/2021,081ACQUISIT,"Acquisitions, Transformation and Regeneration",20153,"Elva Business Centre, Bexhill",B2422,Sewerage,195.00,CountyClean Environmental Services Ltd,Repairs to Premises - Cesspool Pumping station service/Call out,2029707,202110
Rother District Council,26/07/2021,091HOUSING,Housing and Community Services,20114,Bexhill Parks & Open Spaces,B2422,Sewerage,485.00,CountyClean Environmental Services Ltd,Sewerage Parks- Emptying of Cesspit,2030494,202111
Rother District Council,09/08/2021,091HOUSING,Housing and Community Services,20204,Housing Administration Account,A2203,Training,"1,485.00",CIEH-Chartered Institute of Environmental Health,Training,2031226,202112
Rother District Council,23/08/2021,091HOUSING,Housing and Community Services,20114,Bexhill Parks & Open Spaces,D1201,Equipment & Materials,"1,198.00",Streetmaster (South Wales) Ltd,Equipment & Materials - Maintenance of Seats/Plaques from Donations,2030984,202112
Rother District Council,25/08/2021,031RESOURCES,Chief Executive & Corporate Core,20179,Communications,D2922,Subscriptions,"8,610.91",The Copyright Licensing Agency Limited,Subscriptions - Subscription to Organisations,2031072,202112
Rother District Council,01/09/2021,091HOUSING,Housing and Community Services,20114,Bexhill Parks & Open Spaces,B1100,Repairs to Premises,"1,200.00",P.W Judges & Son,Repairs to Premises - Parks- Drainage Works,2031782,202112
Rother District Council,03/09/2021,091HOUSING,Housing and Community Services,20204,Housing Administration Account,D2513,Hired and Contracted services,457.80,Skyguard Ltd,Hired and contracted services - Service fee paid,2030996,202112
Rother District Council,08/09/2021,071STRAT,Strategy and Planning,20250,Planning Policy,D2509,Consultants and Other Services,"1,900.00",Strategic Leisure Ltd,Consultants and other services - Consultants Fees,2030448,202111
Rother District Council,08/09/2021,999NOREPORT,"Acquisitions, Transformation and Regeneration",70725,Capital - Blackfriars,N1004,Architects & Consultant Fees,"6,100.00",Temple Group Ltd,Architects & Consultant Fees Capital-Architect and Conslt Fees,2030061,202110
Rother District Council,13/09/2021,101RESOURCES,Resources,20242,Communications-Phones,D2622,Mobile Phones,110.00,O2 (UK) Ltd,Mobile Phones,2028682,202110
Rother District Council,13/09/2021,101RESOURCES,Resources,20242,Communications-Phones,D2622,Mobile Phones,110.00,O2 (UK) Ltd,Mobile Phones,2028683,202110
Rother District Council,13/09/2021,101RESOURCES,Resources,20242,Communications-Phones,D2622,Mobile Phones,244.00,O2 (UK) Ltd,Mobile Phones,2028684,202110
Rother District Council,13/09/2021,101RESOURCES,Resources,20242,Communications-Phones,D2622,Mobile Phones,55.00,O2 (UK) Ltd,Mobile Phones,2028685,202110
Rother District Council,15/09/2021,091HOUSING,Housing and Community Services,20102,Rother Museum Services,B2421,Water,50.42,Castle Water Ltd,Water - Water Charges,2030761,202111
Rother District Council,15/09/2021,091HOUSING,Housing and Community Services,20128,Public Conveniences,B2421,Water,201.67,Castle Water Ltd,Water - Water Charges,2030761,202111
Rother District Council,15/09/2021,081ACQUISIT,"Acquisitions, Transformation and Regeneration",20144,Property Management,D2513,Hired and Contracted services,"1,750.00",Dyer and Hobbis Commercial Property,Hired and contracted services - Valuation Services,2030854,202111
Rother District Council,20/09/2021,031RESOURCES,Chief Executive & Corporate Core,20171,Human Resources,D2513,Hired and Contracted services,250.00,Staywell Occupational Health Ltd,Hired and contracted services - Occupational Health,2030495,202111
Rother District Council,23/09/2021,999NOREPORT,"Acquisitions, Transformation and Regeneration",70725,Capital - Blackfriars,N1002,Land & Property fees,"2,300.50",Bevan Brittan LLP,Land & Property fees Capital-Land and Propty - Fees Etc.,2029821,202110
Rother District Council,23/09/2021,999NOREPORT,"Acquisitions, Transformation and Regeneration",70725,Capital - Blackfriars,N1002,Land & Property fees,33.00,Bevan Brittan LLP,Land & Property fees Capital-Land and Propty - Fees Etc.,2029821,202110
Rother District Council,23/09/2021,081ACQUISIT,"Acquisitions, Transformation and Regeneration",20308,Amherst Road,B2201,Electricity,645.70,Laser Energy Buying Group (Kent County Council Commercial Services),Electricity - Electricity Charges,2029637,202110
Rother District Council,23/09/2021,091HOUSING,Housing and Community Services,20102,Rother Museum Services,B2201,Electricity,358.53,Laser Energy Buying Group (Kent County Council Commercial Services),Electricity - Electricity Charges,2029637,202110
Rother District Council,23/09/2021,091HOUSING,Housing and Community Services,20102,Rother Museum Services,B2201,Electricity,543.09,Laser Energy Buying Group (Kent County Council Commercial Services),Electricity - Electricity Charges,2029637,202110
Rother District Council,23/09/2021,091HOUSING,Housing and Community Services,20107,Camber Beach & Foreshore,B2201,Electricity,112.43,Laser Energy Buying Group (Kent County Council Commercial Services),Electricity - Electricity Charges,2029637,202110
Rother District Council,23/09/2021,091HOUSING,Housing and Community Services,20107,Camber Beach & Foreshore,B2201,Electricity,29.98,Laser Energy Buying Group (Kent County Council Commercial Services),Electricity - Electricity Charges,2029637,202110
Rother District Council,23/09/2021,091HOUSING,Housing and Community Services,20107,Camber Beach & Foreshore,B2201,Electricity,99.28,Laser Energy Buying Group (Kent County Council Commercial Services),Electricity - Electricity Charges,2029637,202110
Rother District Council,23/09/2021,091HOUSING,Housing and Community Services,20108,Bexhill Promenade & Foreshore,B2201,Electricity,27.38,Laser Energy Buying Group (Kent County Council Commercial Services),Electricity - Electricity Charges,2029637,202110
Rother District Council,23/09/2021,091HOUSING,Housing and Community Services,20108,Bexhill Promenade & Foreshore,B2201,Electricity,27.23,Laser Energy Buying Group (Kent County Council Commercial Services),Electricity - Electricity Charges,2029637,202110
Rother District Council,23/09/2021,091HOUSING,Housing and Community Services,20108,Bexhill Promenade & Foreshore,B2201,Electricity,28.29,Laser Energy Buying Group (Kent County Council Commercial Services),Electricity - Electricity Charges,2029637,202110
Rother District Council,23/09/2021,091HOUSING,Housing and Community Services,20108,Bexhill Promenade & Foreshore,B2201,Electricity,19.03,Laser Energy Buying Group (Kent County Council Commercial Services),Electricity - Electricity Charges,2029637,202110
Rother District Council,23/09/2021,091HOUSING,Housing and Community Services,20108,Bexhill Promenade & Foreshore,B2201,Electricity,42.10,Laser Energy Buying Group (Kent County Council Commercial Services),Electricity - Electricity Charges,2029637,202110
Rother District Council,23/09/2021,091HOUSING,Housing and Community Services,20108,Bexhill Promenade & Foreshore,B2201,Electricity,35.09,Laser Energy Buying Group (Kent County Council Commercial Services),Electricity - Electricity Charges,2029637,202110
Rother District Council,23/09/2021,091HOUSING,Housing and Community Services,20108,Bexhill Promenade & Foreshore,B2201,Electricity,28.44,Laser Energy Buying Group (Kent County Council Commercial Services),Electricity - Electricity Charges,2029637,202110
Rother District Council,23/09/2021,091HOUSING,Housing and Community Services,20108,Bexhill Promenade & Foreshore,B2201,Electricity,9.36,Laser Energy Buying Group (Kent County Council Commercial Services),Electricity - Electricity Charges,2029637,202110
Rother District Council,23/09/2021,091HOUSING,Housing and Community Services,20108,Bexhill Promenade & Foreshore,B2201,Electricity,9.35,Laser Energy Buying Group (Kent County Council Commercial Services),Electricity - Electricity Charges,2029637,202110
Rother District Council,23/09/2021,091HOUSING,Housing and Community Services,20108,Bexhill Promenade & Foreshore,B2201,Electricity,30.67,Laser Energy Buying Group (Kent County Council Commercial Services),Electricity - Electricity Charges,2029637,202110
Rother District Council,23/09/2021,091HOUSING,Housing and Community Services,20114,Bexhill Parks & Open Spaces,B2201,Electricity,12.22,Laser Energy Buying Group (Kent County Council Commercial Services),Electricity - Electricity Charges,2029637,202110
Rother District Council,23/09/2021,091HOUSING,Housing and Community Services,20114,Bexhill Parks & Open Spaces,B2201,Electricity,28.19,Laser Energy Buying Group (Kent County Council Commercial Services),Electricity - Electricity Charges,2029637,202110
Rother District Council,23/09/2021,091HOUSING,Housing and Community Services,20114,Bexhill Parks & Open Spaces,B2201,Electricity,18.51,Laser Energy Buying Group (Kent County Council Commercial Services),Electricity - Electricity Charges,2029637,202110
Rother District Council,23/09/2021,091HOUSING,Housing and Community Services,20114,Bexhill Parks & Open Spaces,B2201,Electricity,24.31,Laser Energy Buying Group (Kent County Council Commercial Services),Electricity - Electricity Charges,2029637,202110
Rother District Council,23/09/2021,091HOUSING,Housing and Community Services,20114,Bexhill Parks & Open Spaces,B2201,Electricity,28.19,Laser Energy Buying Group (Kent County Council Commercial Services),Electricity - Electricity Charges,2029637,202110
Rother District Council,23/09/2021,091HOUSING,Housing and Community Services,20128,Public Conveniences,B2201,Electricity,30.81,Laser Energy Buying Group (Kent County Council Commercial Services),Electricity - Electricity Charges,2029637,202110
Rother District Council,23/09/2021,091HOUSING,Housing and Community Services,20128,Public Conveniences,B2201,Electricity,36.67,Laser Energy Buying Group (Kent County Council Commercial Services),Electricity - Electricity Charges,2029637,202110
Rother District Council,23/09/2021,091HOUSING,Housing and Community Services,20128,Public Conveniences,B2201,Electricity,-27.92,Laser Energy Buying Group (Kent County Council Commercial Services),Electricity - Electricity Charges,2029637,202110
Rother District Council,23/09/2021,091HOUSING,Housing and Community Services,20128,Public Conveniences,B2201,Electricity,-29.98,Laser Energy Buying Group (Kent County Council Commercial Services),Electricity - Electricity Charges,2029637,202110
Rother District Council,23/09/2021,091HOUSING,Housing and Community Services,20128,Public Conveniences,B2201,Electricity,54.68,Laser Energy Buying Group (Kent County Council Commercial Services),Electricity - Electricity Charges,2029637,202110
Rother District Council,23/09/2021,091HOUSING,Housing and Community Services,20128,Public Conveniences,B2201,Electricity,110.01,Laser Energy Buying Group (Kent County Council Commercial Services),Electricity - Electricity Charges,2029637,202110
Rother District Council,23/09/2021,091HOUSING,Housing and Community Services,20128,Public Conveniences,B2201,Electricity,27.23,Laser Energy Buying Group (Kent County Council Commercial Services),Electricity - Electricity Charges,2029637,202110
Rother District Council,23/09/2021,091HOUSING,Housing and Community Services,20128,Public Conveniences,B2201,Electricity,37.96,Laser Energy Buying Group (Kent County Council Commercial Services),Electricity - Electricity Charges,2029637,202110
Rother District Council,23/09/2021,091HOUSING,Housing and Community Services,20128,Public Conveniences,B2201,Electricity,74.76,Laser Energy Buying Group (Kent County Council Commercial Services),Electricity - Electricity Charges,2029637,202110
Rother District Council,23/09/2021,091HOUSING,Housing and Community Services,20128,Public Conveniences,B2201,Electricity,134.40,Laser Energy Buying Group (Kent County Council Commercial Services),Electricity - Electricity Charges,2029637,202110
Rother District Council,23/09/2021,091HOUSING,Housing and Community Services,20128,Public Conveniences,B2201,Electricity,27.31,Laser Energy Buying Group (Kent County Council Commercial Services),Electricity - Electricity Charges,2029637,202110
Rother District Council,23/09/2021,091HOUSING,Housing and Community Services,20128,Public Conveniences,B2201,Electricity,37.96,Laser Energy Buying Group (Kent County Council Commercial Services),Electricity - Electricity Charges,2029637,202110
Rother District Council,23/09/2021,091HOUSING,Housing and Community Services,20123,Cemeteries,B2201,Electricity,42.36,Laser Energy Buying Group (Kent County Council Commercial Services),Electricity - Electricity Charges,2029637,202110
Rother District Council,23/09/2021,091HOUSING,Housing and Community Services,20128,Public Conveniences,B2201,Electricity,38.78,Laser Energy Buying Group (Kent County Council Commercial Services),Electricity - Electricity Charges,2029637,202110
Rother District Council,23/09/2021,091HOUSING,Housing and Community Services,20128,Public Conveniences,B2201,Electricity,55.54,Laser Energy Buying Group (Kent County Council Commercial Services),Electricity - Electricity Charges,2029637,202110
Rother District Council,23/09/2021,091HOUSING,Housing and Community Services,20128,Public Conveniences,B2201,Electricity,33.13,Laser Energy Buying Group (Kent County Council Commercial Services),Electricity - Electricity Charges,2029637,202110
Rother District Council,23/09/2021,091HOUSING,Housing and Community Services,20128,Public Conveniences,B2201,Electricity,132.14,Laser Energy Buying Group (Kent County Council Commercial Services),Electricity - Electricity Charges,2029637,202110
Rother District Council,23/09/2021,091HOUSING,Housing and Community Services,20128,Public Conveniences,B2201,Electricity,47.58,Laser Energy Buying Group (Kent County Council Commercial Services),Electricity - Electricity Charges,2029637,202110
Rother District Council,23/09/2021,091HOUSING,Housing and Community Services,20128,Public Conveniences,B2201,Electricity,56.79,Laser Energy Buying Group (Kent County Council Commercial Services),Electricity - Electricity Charges,2029637,202110
Rother District Council,23/09/2021,091HOUSING,Housing and Community Services,20128,Public Conveniences,B2201,Electricity,31.08,Laser Energy Buying Group (Kent County Council Commercial Services),Electricity - Electricity Charges,2029637,202110
Rother District Council,23/09/2021,091HOUSING,Housing and Community Services,20128,Public Conveniences,B2201,Electricity,39.12,Laser Energy Buying Group (Kent County Council Commercial Services),Electricity - Electricity Charges,2029637,202110
Rother District Council,23/09/2021,091HOUSING,Housing and Community Services,20128,Public Conveniences,B2201,Electricity,28.47,Laser Energy Buying Group (Kent County Council Commercial Services),Electricity - Electricity Charges,2029637,202110
Rother District Council,23/09/2021,091HOUSING,Housing and Community Services,20128,Public Conveniences,B2201,Electricity,61.06,Laser Energy Buying Group (Kent County Council Commercial Services),Electricity - Electricity Charges,2029637,202110
Rother District Council,23/09/2021,091HOUSING,Housing and Community Services,20128,Public Conveniences,B2201,Electricity,104.64,Laser Energy Buying Group (Kent County Council Commercial Services),Electricity - Electricity Charges,2029637,202110
Rother District Council,23/09/2021,091HOUSING,Housing and Community Services,20128,Public Conveniences,B2201,Electricity,33.27,Laser Energy Buying Group (Kent County Council Commercial Services),Electricity - Electricity Charges,2029637,202110
Rother District Council,23/09/2021,091HOUSING,Housing and Community Services,20128,Public Conveniences,B2201,Electricity,53.77,Laser Energy Buying Group (Kent County Council Commercial Services),Electricity - Electricity Charges,2029637,202110
Rother District Council,23/09/2021,091HOUSING,Housing and Community Services,20128,Public Conveniences,B2201,Electricity,74.41,Laser Energy Buying Group (Kent County Council Commercial Services),Electricity - Electricity Charges,2029637,202110
Rother District Council,23/09/2021,091HOUSING,Housing and Community Services,20128,Public Conveniences,B2201,Electricity,19.61,Laser Energy Buying Group (Kent County Council Commercial Services),Electricity - Electricity Charges,2029637,202110
Rother District Council,23/09/2021,091HOUSING,Housing and Community Services,20128,Public Conveniences,B2201,Electricity,40.78,Laser Energy Buying Group (Kent County Council Commercial Services),Electricity - Electricity Charges,2029637,202110
Rother District Council,23/09/2021,091HOUSING,Housing and Community Services,20128,Public Conveniences,B2201,Electricity,40.98,Laser Energy Buying Group (Kent County Council Commercial Services),Electricity - Electricity Charges,2029637,202110
Rother District Council,23/09/2021,091HOUSING,Housing and Community Services,20128,Public Conveniences,B2201,Electricity,214.90,Laser Energy Buying Group (Kent County Council Commercial Services),Electricity - Electricity Charges,2029637,202110
Rother District Council,23/09/2021,091HOUSING,Housing and Community Services,20128,Public Conveniences,B2201,Electricity,34.79,Laser Energy Buying Group (Kent County Council Commercial Services),Electricity - Electricity Charges,2029637,202110
Rother District Council,23/09/2021,091HOUSING,Housing and Community Services,20128,Public Conveniences,B2201,Electricity,41.77,Laser Energy Buying Group (Kent County Council Commercial Services),Electricity - Electricity Charges,2029637,202110
Rother District Council,23/09/2021,091HOUSING,Housing and Community Services,20128,Public Conveniences,B2201,Electricity,51.16,Laser Energy Buying Group (Kent County Council Commercial Services),Electricity - Electricity Charges,2029637,202110
Rother District Council,23/09/2021,091HOUSING,Housing and Community Services,20128,Public Conveniences,B2201,Electricity,47.44,Laser Energy Buying Group (Kent County Council Commercial Services),Electricity - Electricity Charges,2029637,202110
Rother District Council,23/09/2021,091HOUSING,Housing and Community Services,20115,Rye Area Parks & Gardens,B2201,Electricity,35.62,Laser Energy Buying Group (Kent County Council Commercial Services),Electricity - Electricity Charges,2029637,202110
Rother District Council,23/09/2021,091HOUSING,Housing and Community Services,20128,Public Conveniences,B2201,Electricity,6.08,Laser Energy Buying Group (Kent County Council Commercial Services),Electricity - Electricity Charges,2029637,202110
Rother District Council,23/09/2021,091HOUSING,Housing and Community Services,20128,Public Conveniences,B2201,Electricity,27.64,Laser Energy Buying Group (Kent County Council Commercial Services),Electricity - Electricity Charges,2029637,202110
Rother District Council,23/09/2021,091HOUSING,Housing and Community Services,20128,Public Conveniences,B2201,Electricity,19.61,Laser Energy Buying Group (Kent County Council Commercial Services),Electricity - Electricity Charges,2029637,202110
Rother District Council,23/09/2021,091HOUSING,Housing and Community Services,20128,Public Conveniences,B2201,Electricity,33.01,Laser Energy Buying Group (Kent County Council Commercial Services),Electricity - Electricity Charges,2029637,202110
Rother District Council,23/09/2021,091HOUSING,Housing and Community Services,20128,Public Conveniences,B2201,Electricity,-33.01,Laser Energy Buying Group (Kent County Council Commercial Services),Electricity - Electricity Charges,2029637,202110
Rother District Council,23/09/2021,091HOUSING,Housing and Community Services,20128,Public Conveniences,B2201,Electricity,29.71,Laser Energy Buying Group (Kent County Council Commercial Services),Electricity - Electricity Charges,2029637,202110
Rother District Council,23/09/2021,091HOUSING,Housing and Community Services,20128,Public Conveniences,B2201,Electricity,107.12,Laser Energy Buying Group (Kent County Council Commercial Services),Electricity - Electricity Charges,2029637,202110
Rother District Council,23/09/2021,091HOUSING,Housing and Community Services,20128,Public Conveniences,B2201,Electricity,-27.64,Laser Energy Buying Group (Kent County Council Commercial Services),Electricity - Electricity Charges,2029637,202110
Rother District Council,23/09/2021,091HOUSING,Housing and Community Services,20128,Public Conveniences,B2201,Electricity,-26.76,Laser Energy Buying Group (Kent County Council Commercial Services),Electricity - Electricity Charges,2029637,202110
Rother District Council,23/09/2021,091HOUSING,Housing and Community Services,20128,Public Conveniences,B2201,Electricity,-32.54,Laser Energy Buying Group (Kent County Council Commercial Services),Electricity - Electricity Charges,2029637,202110
Rother District Council,23/09/2021,091HOUSING,Housing and Community Services,20115,Rye Area Parks & Gardens,B2201,Electricity,17.19,Laser Energy Buying Group (Kent County Council Commercial Services),Electricity - Electricity Charges,2029637,202110
Rother District Council,23/09/2021,091HOUSING,Housing and Community Services,20128,Public Conveniences,B2201,Electricity,34.38,Laser Energy Buying Group (Kent County Council Commercial Services),Electricity - Electricity Charges,2029637,202110
Rother District Council,23/09/2021,091HOUSING,Housing and Community Services,20128,Public Conveniences,B2201,Electricity,39.48,Laser Energy Buying Group (Kent County Council Commercial Services),Electricity - Electricity Charges,2029637,202110
Rother District Council,23/09/2021,091HOUSING,Housing and Community Services,20128,Public Conveniences,B2201,Electricity,-26.90,Laser Energy Buying Group (Kent County Council Commercial Services),Electricity - Electricity Charges,2029637,202110
Rother District Council,23/09/2021,091HOUSING,Housing and Community Services,20128,Public Conveniences,B2201,Electricity,-34.24,Laser Energy Buying Group (Kent County Council Commercial Services),Electricity - Electricity Charges,2029637,202110
Rother District Council,23/09/2021,091HOUSING,Housing and Community Services,20128,Public Conveniences,B2201,Electricity,-27.78,Laser Energy Buying Group (Kent County Council Commercial Services),Electricity - Electricity Charges,2029637,202110
Rother District Council,23/09/2021,091HOUSING,Housing and Community Services,20128,Public Conveniences,B2201,Electricity,34.93,Laser Energy Buying Group (Kent County Council Commercial Services),Electricity - Electricity Charges,2029637,202110
Rother District Council,23/09/2021,081ACQUISIT,"Acquisitions, Transformation and Regeneration",20153,"Elva Business Centre, Bexhill",B2201,Electricity,912.69,Laser Energy Buying Group (Kent County Council Commercial Services),Electricity - Electricity Charges,2029637,202110
Rother District Council,23/09/2021,081ACQUISIT,"Acquisitions, Transformation and Regeneration",20104,Ancient Monuments & Gazebo,B2201,Electricity,27.23,Laser Energy Buying Group (Kent County Council Commercial Services),Electricity - Electricity Charges,2029637,202110
Rother District Council,23/09/2021,081ACQUISIT,"Acquisitions, Transformation and Regeneration",20104,Ancient Monuments & Gazebo,B2201,Electricity,27.23,Laser Energy Buying Group (Kent County Council Commercial Services),Electricity - Electricity Charges,2029637,202110
Rother District Council,23/09/2021,081ACQUISIT,"Acquisitions, Transformation and Regeneration",20155,Investment properties,B2201,Electricity,33.14,Laser Energy Buying Group (Kent County Council Commercial Services),Electricity - Electricity Charges,2029637,202110
Rother District Council,23/09/2021,091HOUSING,Housing and Community Services,20137,Car Parks,B2201,Electricity,32.59,Laser Energy Buying Group (Kent County Council Commercial Services),Electricity - Electricity Charges,2029637,202110
Rother District Council,23/09/2021,081ACQUISIT,"Acquisitions, Transformation and Regeneration",20151,Udimore Workshops,B2201,Electricity,134.40,Laser Energy Buying Group (Kent County Council Commercial Services),Electricity - Electricity Charges,2029637,202110
Rother District Council,23/09/2021,081ACQUISIT,"Acquisitions, Transformation and Regeneration",20154,Committee Property Account,B2201,Electricity,14.73,Laser Energy Buying Group (Kent County Council Commercial Services),Electricity - Electricity Charges,2029637,202110
Rother District Council,23/09/2021,081ACQUISIT,"Acquisitions, Transformation and Regeneration",20154,Committee Property Account,B2201,Electricity,14.73,Laser Energy Buying Group (Kent County Council Commercial Services),Electricity - Electricity Charges,2029637,202110
Rother District Council,23/09/2021,081ACQUISIT,"Acquisitions, Transformation and Regeneration",20154,Committee Property Account,B2201,Electricity,14.73,Laser Energy Buying Group (Kent County Council Commercial Services),Electricity - Electricity Charges,2029637,202110
Rother District Council,23/09/2021,081ACQUISIT,"Acquisitions, Transformation and Regeneration",20154,Committee Property Account,B2201,Electricity,14.72,Laser Energy Buying Group (Kent County Council Commercial Services),Electricity - Electricity Charges,2029637,202110
Rother District Council,23/09/2021,081ACQUISIT,"Acquisitions, Transformation and Regeneration",20154,Committee Property Account,B2201,Electricity,19.03,Laser Energy Buying Group (Kent County Council Commercial Services),Electricity - Electricity Charges,2029637,202110
Rother District Council,23/09/2021,081ACQUISIT,"Acquisitions, Transformation and Regeneration",20154,Committee Property Account,B2201,Electricity,19.03,Laser Energy Buying Group (Kent County Council Commercial Services),Electricity - Electricity Charges,2029637,202110
Rother District Council,23/09/2021,081ACQUISIT,"Acquisitions, Transformation and Regeneration",20154,Committee Property Account,B2201,Electricity,19.03,Laser Energy Buying Group (Kent County Council Commercial Services),Electricity - Electricity Charges,2029637,202110
Rother District Council,23/09/2021,081ACQUISIT,"Acquisitions, Transformation and Regeneration",20104,Ancient Monuments & Gazebo,B2201,Electricity,26.35,Laser Energy Buying Group (Kent County Council Commercial Services),Electricity - Electricity Charges,2029637,202110
Rother District Council,23/09/2021,081ACQUISIT,"Acquisitions, Transformation and Regeneration",20148,Misc Land & Buildings,B2201,Electricity,39.74,Laser Energy Buying Group (Kent County Council Commercial Services),Electricity - Electricity Charges,2029637,202110
Rother District Council,23/09/2021,081ACQUISIT,"Acquisitions, Transformation and Regeneration",20154,Committee Property Account,B2201,Electricity,18.73,Laser Energy Buying Group (Kent County Council Commercial Services),Electricity - Electricity Charges,2029637,202110
Rother District Council,23/09/2021,081ACQUISIT,"Acquisitions, Transformation and Regeneration",20154,Committee Property Account,B2201,Electricity,18.73,Laser Energy Buying Group (Kent County Council Commercial Services),Electricity - Electricity Charges,2029637,202110
Rother District Council,23/09/2021,081ACQUISIT,"Acquisitions, Transformation and Regeneration",20154,Committee Property Account,B2201,Electricity,18.73,Laser Energy Buying Group (Kent County Council Commercial Services),Electricity - Electricity Charges,2029637,202110
Rother District Council,23/09/2021,081ACQUISIT,"Acquisitions, Transformation and Regeneration",20154,Committee Property Account,B2201,Electricity,18.73,Laser Energy Buying Group (Kent County Council Commercial Services),Electricity - Electricity Charges,2029637,202110
Rother District Council,23/09/2021,081ACQUISIT,"Acquisitions, Transformation and Regeneration",20154,Committee Property Account,B2201,Electricity,842.88,Laser Energy Buying Group (Kent County Council Commercial Services),Electricity - Electricity Charges,2029637,202110
Rother District Council,23/09/2021,081ACQUISIT,"Acquisitions, Transformation and Regeneration",20148,Misc Land & Buildings,B2201,Electricity,17.19,Laser Energy Buying Group (Kent County Council Commercial Services),Electricity - Electricity Charges,2029637,202110
Rother District Council,23/09/2021,081ACQUISIT,"Acquisitions, Transformation and Regeneration",20151,Udimore Workshops,B2201,Electricity,-28.47,Laser Energy Buying Group (Kent County Council Commercial Services),Electricity - Electricity Charges,2029637,202110
Rother District Council,23/09/2021,081ACQUISIT,"Acquisitions, Transformation and Regeneration",20151,Udimore Workshops,B2201,Electricity,-28.14,Laser Energy Buying Group (Kent County Council Commercial Services),Electricity - Electricity Charges,2029637,202110
Rother District Council,23/09/2021,081ACQUISIT,"Acquisitions, Transformation and Regeneration",20151,Udimore Workshops,B2201,Electricity,-28.88,Laser Energy Buying Group (Kent County Council Commercial Services),Electricity - Electricity Charges,2029637,202110
Rother District Council,23/09/2021,091HOUSING,Housing and Community Services,20137,Car Parks,B2201,Electricity,36.99,Laser Energy Buying Group (Kent County Council Commercial Services),Electricity - Electricity Charges,2029637,202110
Rother District Council,23/09/2021,031RESOURCES,Chief Executive & Corporate Core,20173,Administrative Offices - Town Hall,B2201,Electricity,"1,711.21",Laser Energy Buying Group (Kent County Council Commercial Services),Electricity - Electricity Charges,2029637,202110
Rother District Council,23/09/2021,031RESOURCES,Chief Executive & Corporate Core,20177,Administrative Offices - Rear Depot,B2201,Electricity,33.97,Laser Energy Buying Group (Kent County Council Commercial Services),Electricity - Electricity Charges,2029637,202110
Rother District Council,23/09/2021,031RESOURCES,Chief Executive & Corporate Core,20176,Administrative Offices - Print Room,B2201,Electricity,142.54,Laser Energy Buying Group (Kent County Council Commercial Services),Electricity - Electricity Charges,2029637,202110
Rother District Council,23/09/2021,091HOUSING,Housing and Community Services,20145,Maintenance Services,B2201,Electricity,228.90,Laser Energy Buying Group (Kent County Council Commercial Services),Electricity - Electricity Charges,2029637,202110
Rother District Council,23/09/2021,091HOUSING,Housing and Community Services,20145,Maintenance Services,B2201,Electricity,-255.12,Laser Energy Buying Group (Kent County Council Commercial Services),Electricity - Electricity Charges,2029637,202110
Rother District Council,23/09/2021,091HOUSING,Housing and Community Services,20145,Maintenance Services,B2201,Electricity,-283.17,Laser Energy Buying Group (Kent County Council Commercial Services),Electricity - Electricity Charges,2029637,202110
Rother District Council,23/09/2021,081ACQUISIT,"Acquisitions, Transformation and Regeneration",20308,Amherst Road,B2202,Gas,127.78,Laser Energy Buying Group (Kent County Council Commercial Services),Gas,2029638,202110
Rother District Council,23/09/2021,081ACQUISIT,"Acquisitions, Transformation and Regeneration",20154,Committee Property Account,B2202,Gas,11.47,Laser Energy Buying Group (Kent County Council Commercial Services),Gas,2029638,202110
Rother District Council,23/09/2021,031RESOURCES,Chief Executive & Corporate Core,20176,Administrative Offices - Print Room,B2202,Gas,43.97,Laser Energy Buying Group (Kent County Council Commercial Services),Gas,2029638,202110
Rother District Council,23/09/2021,031RESOURCES,Chief Executive & Corporate Core,20173,Administrative Offices - Town Hall,B2202,Gas,131.13,Laser Energy Buying Group (Kent County Council Commercial Services),Gas,2029638,202110
Rother District Council,24/09/2021,081ACQUISIT,"Acquisitions, Transformation and Regeneration",20144,Property Management,D2513,Hired and Contracted services,"1,750.00",Hunt Commercial Property Ltd,Hired and contracted services - Valuation Services,2029708,202110
Rother District Council,30/09/2021,999NOREPORT,"Acquisitions, Transformation and Regeneration",70725,Capital - Blackfriars,N1002,Land & Property fees,303.00,Bevan Brittan LLP,Land & Property fees Capital-Land and Propty - Fees Etc.,2029822,202110
Rother District Council,01/10/2021,091HOUSING,Housing and Community Services,20114,Bexhill Parks & Open Spaces,B1100,Repairs to Premises,360.00,LTA Operations Limited,Repairs to Premises - Parks- Sports Equipment,2030234,202111
Rother District Council,07/10/2021,081ACQUISIT,"Acquisitions, Transformation and Regeneration",20154,Committee Property Account,B1100,Repairs to Premises,175.00,Dale Saunders Ltd,Repairs to Premises - Heating Maintenance,2031050,202112
Rother District Council,13/10/2021,101RESOURCES,Resources,20242,Communications-Phones,D2622,Mobile Phones,539.20,O2 (UK) Ltd,Mobile Phones,2028686,202110
Rother District Council,13/10/2021,101RESOURCES,Resources,20242,Communications-Phones,D2622,Mobile Phones,110.00,O2 (UK) Ltd,Mobile Phones,2029497,202110
Rother District Council,13/10/2021,101RESOURCES,Resources,20242,Communications-Phones,D2622,Mobile Phones,244.00,O2 (UK) Ltd,Mobile Phones,2029498,202110
Rother District Council,13/10/2021,101RESOURCES,Resources,20242,Communications-Phones,D2622,Mobile Phones,540.17,O2 (UK) Ltd,Mobile Phones,2029499,202110
Rother District Council,13/10/2021,101RESOURCES,Resources,20242,Communications-Phones,D2622,Mobile Phones,55.00,O2 (UK) Ltd,Mobile Phones,2029500,202110
Rother District Council,13/10/2021,101RESOURCES,Resources,20242,Communications-Phones,D2622,Mobile Phones,604.19,O2 (UK) Ltd,Mobile Phones,2029501,202110
Rother District Council,13/10/2021,101RESOURCES,Resources,20242,Communications-Phones,D2622,Mobile Phones,110.00,O2 (UK) Ltd,Mobile Phones,2029502,202110
Rother District Council,22/10/2021,081ACQUISIT,"Acquisitions, Transformation and Regeneration",20308,Amherst Road,B2202,Gas,150.95,Laser Energy Buying Group (Kent County Council Commercial Services),Gas - Gas Charges,2030230,202111
Rother District Council,22/10/2021,081ACQUISIT,"Acquisitions, Transformation and Regeneration",20154,Committee Property Account,B2202,Gas,11.47,Laser Energy Buying Group (Kent County Council Commercial Services),Gas - Gas Charges,2030230,202111
Rother District Council,22/10/2021,031RESOURCES,Chief Executive & Corporate Core,20176,Administrative Offices - Print Room,B2202,Gas,50.00,Laser Energy Buying Group (Kent County Council Commercial Services),Gas - Gas Charges,2030230,202111
Rother District Council,22/10/2021,031RESOURCES,Chief Executive & Corporate Core,20173,Administrative Offices - Town Hall,B2202,Gas,126.90,Laser Energy Buying Group (Kent County Council Commercial Services),Gas - Gas Charges,2030230,202111
Rother District Council,22/10/2021,081ACQUISIT,"Acquisitions, Transformation and Regeneration",20308,Amherst Road,B2201,Electricity,553.66,Laser Energy Buying Group (Kent County Council Commercial Services),Electricity - Electricity Charges,2029705,202110
Rother District Council,22/10/2021,091HOUSING,Housing and Community Services,20107,Camber Beach & Foreshore,B2201,Electricity,-117.02,Laser Energy Buying Group (Kent County Council Commercial Services),Electricity - Electricity Charges,2029705,202110
Rother District Council,22/10/2021,091HOUSING,Housing and Community Services,20107,Camber Beach & Foreshore,B2201,Electricity,30.42,Laser Energy Buying Group (Kent County Council Commercial Services),Electricity - Electricity Charges,2029705,202110
Rother District Council,22/10/2021,091HOUSING,Housing and Community Services,20107,Camber Beach & Foreshore,B2201,Electricity,-113.80,Laser Energy Buying Group (Kent County Council Commercial Services),Electricity - Electricity Charges,2029705,202110
Rother District Council,22/10/2021,091HOUSING,Housing and Community Services,20108,Bexhill Promenade & Foreshore,B2201,Electricity,79.93,Laser Energy Buying Group (Kent County Council Commercial Services),Electricity - Electricity Charges,2029705,202110
Rother District Council,22/10/2021,091HOUSING,Housing and Community Services,20108,Bexhill Promenade & Foreshore,B2201,Electricity,27.23,Laser Energy Buying Group (Kent County Council Commercial Services),Electricity - Electricity Charges,2029705,202110
Rother District Council,22/10/2021,091HOUSING,Housing and Community Services,20108,Bexhill Promenade & Foreshore,B2201,Electricity,-56.19,Laser Energy Buying Group (Kent County Council Commercial Services),Electricity - Electricity Charges,2029705,202110
Rother District Council,22/10/2021,091HOUSING,Housing and Community Services,20108,Bexhill Promenade & Foreshore,B2201,Electricity,26.35,Laser Energy Buying Group (Kent County Council Commercial Services),Electricity - Electricity Charges,2029705,202110
Rother District Council,22/10/2021,091HOUSING,Housing and Community Services,20108,Bexhill Promenade & Foreshore,B2201,Electricity,25.72,Laser Energy Buying Group (Kent County Council Commercial Services),Electricity - Electricity Charges,2029705,202110
Rother District Council,22/10/2021,091HOUSING,Housing and Community Services,20108,Bexhill Promenade & Foreshore,B2201,Electricity,8.55,Laser Energy Buying Group (Kent County Council Commercial Services),Electricity - Electricity Charges,2029705,202110
Rother District Council,22/10/2021,091HOUSING,Housing and Community Services,20108,Bexhill Promenade & Foreshore,B2201,Electricity,8.54,Laser Energy Buying Group (Kent County Council Commercial Services),Electricity - Electricity Charges,2029705,202110
Rother District Council,22/10/2021,091HOUSING,Housing and Community Services,20108,Bexhill Promenade & Foreshore,B2201,Electricity,-28.44,Laser Energy Buying Group (Kent County Council Commercial Services),Electricity - Electricity Charges,2029705,202110
Rother District Council,22/10/2021,091HOUSING,Housing and Community Services,20108,Bexhill Promenade & Foreshore,B2201,Electricity,-26.35,Laser Energy Buying Group (Kent County Council Commercial Services),Electricity - Electricity Charges,2029705,202110
Rother District Council,22/10/2021,091HOUSING,Housing and Community Services,20108,Bexhill Promenade & Foreshore,B2201,Electricity,19.37,Laser Energy Buying Group (Kent County Council Commercial Services),Electricity - Electricity Charges,2029705,202110
Rother District Council,22/10/2021,091HOUSING,Housing and Community Services,20108,Bexhill Promenade & Foreshore,B2201,Electricity,39.75,Laser Energy Buying Group (Kent County Council Commercial Services),Electricity - Electricity Charges,2029705,202110
Rother District Council,22/10/2021,091HOUSING,Housing and Community Services,20108,Bexhill Promenade & Foreshore,B2201,Electricity,31.58,Laser Energy Buying Group (Kent County Council Commercial Services),Electricity - Electricity Charges,2029705,202110
Rother District Council,22/10/2021,091HOUSING,Housing and Community Services,20108,Bexhill Promenade & Foreshore,B2201,Electricity,29.20,Laser Energy Buying Group (Kent County Council Commercial Services),Electricity - Electricity Charges,2029705,202110
Rother District Council,22/10/2021,091HOUSING,Housing and Community Services,20108,Bexhill Promenade & Foreshore,B2201,Electricity,-28.29,Laser Energy Buying Group (Kent County Council Commercial Services),Electricity - Electricity Charges,2029705,202110
Rother District Council,22/10/2021,091HOUSING,Housing and Community Services,20108,Bexhill Promenade & Foreshore,B2201,Electricity,-28.17,Laser Energy Buying Group (Kent County Council Commercial Services),Electricity - Electricity Charges,2029705,202110
Rother District Council,22/10/2021,091HOUSING,Housing and Community Services,20108,Bexhill Promenade & Foreshore,B2201,Electricity,-28.79,Laser Energy Buying Group (Kent County Council Commercial Services),Electricity - Electricity Charges,2029705,202110
Rother District Council,22/10/2021,091HOUSING,Housing and Community Services,20114,Bexhill Parks & Open Spaces,B2201,Electricity,119.26,Laser Energy Buying Group (Kent County Council Commercial Services),Electricity - Electricity Charges,2029705,202110
Rother District Council,22/10/2021,091HOUSING,Housing and Community Services,20114,Bexhill Parks & Open Spaces,B2201,Electricity,59.10,Laser Energy Buying Group (Kent County Council Commercial Services),Electricity - Electricity Charges,2029705,202110
Rother District Council,22/10/2021,091HOUSING,Housing and Community Services,20114,Bexhill Parks & Open Spaces,B2201,Electricity,103.98,Laser Energy Buying Group (Kent County Council Commercial Services),Electricity - Electricity Charges,2029705,202110
Rother District Council,22/10/2021,091HOUSING,Housing and Community Services,20114,Bexhill Parks & Open Spaces,B2201,Electricity,73.95,Laser Energy Buying Group (Kent County Council Commercial Services),Electricity - Electricity Charges,2029705,202110
Rother District Council,22/10/2021,091HOUSING,Housing and Community Services,20114,Bexhill Parks & Open Spaces,B2201,Electricity,72.94,Laser Energy Buying Group (Kent County Council Commercial Services),Electricity - Electricity Charges,2029705,202110
Rother District Council,22/10/2021,091HOUSING,Housing and Community Services,20114,Bexhill Parks & Open Spaces,B2201,Electricity,60.92,Laser Energy Buying Group (Kent County Council Commercial Services),Electricity - Electricity Charges,2029705,202110
Rother District Council,22/10/2021,091HOUSING,Housing and Community Services,20114,Bexhill Parks & Open Spaces,B2201,Electricity,199.48,Laser Energy Buying Group (Kent County Council Commercial Services),Electricity - Electricity Charges,2029705,202110
Rother District Council,22/10/2021,091HOUSING,Housing and Community Services,20114,Bexhill Parks & Open Spaces,B2201,Electricity,66.54,Laser Energy Buying Group (Kent County Council Commercial Services),Electricity - Electricity Charges,2029705,202110
Rother District Council,22/10/2021,091HOUSING,Housing and Community Services,20114,Bexhill Parks & Open Spaces,B2201,Electricity,95.11,Laser Energy Buying Group (Kent County Council Commercial Services),Electricity - Electricity Charges,2029705,202110
Rother District Council,22/10/2021,091HOUSING,Housing and Community Services,20114,Bexhill Parks & Open Spaces,B2201,Electricity,28.84,Laser Energy Buying Group (Kent County Council Commercial Services),Electricity - Electricity Charges,2029705,202110
Rother District Council,22/10/2021,091HOUSING,Housing and Community Services,20114,Bexhill Parks & Open Spaces,B2201,Electricity,41.01,Laser Energy Buying Group (Kent County Council Commercial Services),Electricity - Electricity Charges,2029705,202110
Rother District Council,22/10/2021,091HOUSING,Housing and Community Services,20114,Bexhill Parks & Open Spaces,B2201,Electricity,36.74,Laser Energy Buying Group (Kent County Council Commercial Services),Electricity - Electricity Charges,2029705,202110
Rother District Council,22/10/2021,091HOUSING,Housing and Community Services,20114,Bexhill Parks & Open Spaces,B2201,Electricity,35.92,Laser Energy Buying Group (Kent County Council Commercial Services),Electricity - Electricity Charges,2029705,202110
Rother District Council,22/10/2021,091HOUSING,Housing and Community Services,20114,Bexhill Parks & Open Spaces,B2201,Electricity,21.67,Laser Energy Buying Group (Kent County Council Commercial Services),Electricity - Electricity Charges,2029705,202110
Rother District Council,22/10/2021,091HOUSING,Housing and Community Services,20114,Bexhill Parks & Open Spaces,B2201,Electricity,26.30,Laser Energy Buying Group (Kent County Council Commercial Services),Electricity - Electricity Charges,2029705,202110
Rother District Council,22/10/2021,091HOUSING,Housing and Community Services,20114,Bexhill Parks & Open Spaces,B2201,Electricity,36.74,Laser Energy Buying Group (Kent County Council Commercial Services),Electricity - Electricity Charges,2029705,202110
Rother District Council,22/10/2021,091HOUSING,Housing and Community Services,20128,Public Conveniences,B2201,Electricity,-29.24,Laser Energy Buying Group (Kent County Council Commercial Services),Electricity - Electricity Charges,2029705,202110
Rother District Council,22/10/2021,091HOUSING,Housing and Community Services,20128,Public Conveniences,B2201,Electricity,-28.33,Laser Energy Buying Group (Kent County Council Commercial Services),Electricity - Electricity Charges,2029705,202110
Rother District Council,22/10/2021,091HOUSING,Housing and Community Services,20128,Public Conveniences,B2201,Electricity,29.82,Laser Energy Buying Group (Kent County Council Commercial Services),Electricity - Electricity Charges,2029705,202110
Rother District Council,22/10/2021,091HOUSING,Housing and Community Services,20128,Public Conveniences,B2201,Electricity,14.76,Laser Energy Buying Group (Kent County Council Commercial Services),Electricity - Electricity Charges,2029705,202110
Rother District Council,22/10/2021,091HOUSING,Housing and Community Services,20128,Public Conveniences,B2201,Electricity,25.99,Laser Energy Buying Group (Kent County Council Commercial Services),Electricity - Electricity Charges,2029705,202110
Rother District Council,22/10/2021,091HOUSING,Housing and Community Services,20128,Public Conveniences,B2201,Electricity,18.49,Laser Energy Buying Group (Kent County Council Commercial Services),Electricity - Electricity Charges,2029705,202110
Rother District Council,22/10/2021,091HOUSING,Housing and Community Services,20128,Public Conveniences,B2201,Electricity,18.24,Laser Energy Buying Group (Kent County Council Commercial Services),Electricity - Electricity Charges,2029705,202110
Rother District Council,22/10/2021,091HOUSING,Housing and Community Services,20128,Public Conveniences,B2201,Electricity,15.23,Laser Energy Buying Group (Kent County Council Commercial Services),Electricity - Electricity Charges,2029705,202110
Rother District Council,22/10/2021,091HOUSING,Housing and Community Services,20128,Public Conveniences,B2201,Electricity,49.86,Laser Energy Buying Group (Kent County Council Commercial Services),Electricity - Electricity Charges,2029705,202110
Rother District Council,22/10/2021,091HOUSING,Housing and Community Services,20128,Public Conveniences,B2201,Electricity,16.64,Laser Energy Buying Group (Kent County Council Commercial Services),Electricity - Electricity Charges,2029705,202110
Rother District Council,22/10/2021,091HOUSING,Housing and Community Services,20128,Public Conveniences,B2201,Electricity,23.77,Laser Energy Buying Group (Kent County Council Commercial Services),Electricity - Electricity Charges,2029705,202110
Rother District Council,22/10/2021,091HOUSING,Housing and Community Services,20125,Coast Protection,B2201,Electricity,510.19,Laser Energy Buying Group (Kent County Council Commercial Services),Electricity - Electricity Charges,2029705,202110
Rother District Council,22/10/2021,091HOUSING,Housing and Community Services,20125,Coast Protection,B2201,Electricity,496.54,Laser Energy Buying Group (Kent County Council Commercial Services),Electricity - Electricity Charges,2029705,202110
Rother District Council,22/10/2021,091HOUSING,Housing and Community Services,20125,Coast Protection,B2201,Electricity,560.18,Laser Energy Buying Group (Kent County Council Commercial Services),Electricity - Electricity Charges,2029705,202110
Rother District Council,22/10/2021,091HOUSING,Housing and Community Services,20125,Coast Protection,B2201,Electricity,509.73,Laser Energy Buying Group (Kent County Council Commercial Services),Electricity - Electricity Charges,2029705,202110
Rother District Council,22/10/2021,091HOUSING,Housing and Community Services,20125,Coast Protection,B2201,Electricity,369.65,Laser Energy Buying Group (Kent County Council Commercial Services),Electricity - Electricity Charges,2029705,202110
Rother District Council,22/10/2021,091HOUSING,Housing and Community Services,20125,Coast Protection,B2201,Electricity,528.42,Laser Energy Buying Group (Kent County Council Commercial Services),Electricity - Electricity Charges,2029705,202110
Rother District Council,22/10/2021,091HOUSING,Housing and Community Services,20128,Public Conveniences,B2201,Electricity,135.20,Laser Energy Buying Group (Kent County Council Commercial Services),Electricity - Electricity Charges,2029705,202110
Rother District Council,22/10/2021,091HOUSING,Housing and Community Services,20125,Coast Protection,B2201,Electricity,504.17,Laser Energy Buying Group (Kent County Council Commercial Services),Electricity - Electricity Charges,2029705,202110
Rother District Council,22/10/2021,091HOUSING,Housing and Community Services,20125,Coast Protection,B2201,Electricity,596.84,Laser Energy Buying Group (Kent County Council Commercial Services),Electricity - Electricity Charges,2029705,202110
Rother District Council,22/10/2021,091HOUSING,Housing and Community Services,20125,Coast Protection,B2201,Electricity,578.38,Laser Energy Buying Group (Kent County Council Commercial Services),Electricity - Electricity Charges,2029705,202110
Rother District Council,22/10/2021,091HOUSING,Housing and Community Services,20125,Coast Protection,B2201,Electricity,618.50,Laser Energy Buying Group (Kent County Council Commercial Services),Electricity - Electricity Charges,2029705,202110
Rother District Council,22/10/2021,091HOUSING,Housing and Community Services,20125,Coast Protection,B2201,Electricity,593.90,Laser Energy Buying Group (Kent County Council Commercial Services),Electricity - Electricity Charges,2029705,202110
Rother District Council,22/10/2021,091HOUSING,Housing and Community Services,20128,Public Conveniences,B2201,Electricity,39.61,Laser Energy Buying Group (Kent County Council Commercial Services),Electricity - Electricity Charges,2029705,202110
Rother District Council,22/10/2021,091HOUSING,Housing and Community Services,20128,Public Conveniences,B2201,Electricity,224.67,Laser Energy Buying Group (Kent County Council Commercial Services),Electricity - Electricity Charges,2029705,202110
Rother District Council,22/10/2021,091HOUSING,Housing and Community Services,20125,Coast Protection,B2201,Electricity,458.74,Laser Energy Buying Group (Kent County Council Commercial Services),Electricity - Electricity Charges,2029705,202110
Rother District Council,22/10/2021,091HOUSING,Housing and Community Services,20128,Public Conveniences,B2201,Electricity,32.90,Laser Energy Buying Group (Kent County Council Commercial Services),Electricity - Electricity Charges,2029705,202110
Rother District Council,22/10/2021,091HOUSING,Housing and Community Services,20128,Public Conveniences,B2201,Electricity,40.60,Laser Energy Buying Group (Kent County Council Commercial Services),Electricity - Electricity Charges,2029705,202110
Rother District Council,22/10/2021,091HOUSING,Housing and Community Services,20128,Public Conveniences,B2201,Electricity,28.36,Laser Energy Buying Group (Kent County Council Commercial Services),Electricity - Electricity Charges,2029705,202110
Rother District Council,22/10/2021,091HOUSING,Housing and Community Services,20128,Public Conveniences,B2201,Electricity,45.13,Laser Energy Buying Group (Kent County Council Commercial Services),Electricity - Electricity Charges,2029705,202110
Rother District Council,22/10/2021,091HOUSING,Housing and Community Services,20128,Public Conveniences,B2201,Electricity,47.06,Laser Energy Buying Group (Kent County Council Commercial Services),Electricity - Electricity Charges,2029705,202110
Rother District Council,22/10/2021,091HOUSING,Housing and Community Services,20128,Public Conveniences,B2201,Electricity,32.48,Laser Energy Buying Group (Kent County Council Commercial Services),Electricity - Electricity Charges,2029705,202110
Rother District Council,22/10/2021,091HOUSING,Housing and Community Services,20128,Public Conveniences,B2201,Electricity,122.11,Laser Energy Buying Group (Kent County Council Commercial Services),Electricity - Electricity Charges,2029705,202110
Rother District Council,22/10/2021,091HOUSING,Housing and Community Services,20128,Public Conveniences,B2201,Electricity,120.62,Laser Energy Buying Group (Kent County Council Commercial Services),Electricity - Electricity Charges,2029705,202110
Rother District Council,22/10/2021,091HOUSING,Housing and Community Services,20128,Public Conveniences,B2201,Electricity,31.52,Laser Energy Buying Group (Kent County Council Commercial Services),Electricity - Electricity Charges,2029705,202110
Rother District Council,22/10/2021,091HOUSING,Housing and Community Services,20128,Public Conveniences,B2201,Electricity,26.85,Laser Energy Buying Group (Kent County Council Commercial Services),Electricity - Electricity Charges,2029705,202110
Rother District Council,22/10/2021,091HOUSING,Housing and Community Services,20128,Public Conveniences,B2201,Electricity,69.98,Laser Energy Buying Group (Kent County Council Commercial Services),Electricity - Electricity Charges,2029705,202110
Rother District Council,22/10/2021,091HOUSING,Housing and Community Services,20115,Rye Area Parks & Gardens,B2201,Electricity,25.47,Laser Energy Buying Group (Kent County Council Commercial Services),Electricity - Electricity Charges,2029705,202110
Rother District Council,22/10/2021,091HOUSING,Housing and Community Services,20128,Public Conveniences,B2201,Electricity,34.55,Laser Energy Buying Group (Kent County Council Commercial Services),Electricity - Electricity Charges,2029705,202110
Rother District Council,22/10/2021,091HOUSING,Housing and Community Services,20128,Public Conveniences,B2201,Electricity,127.63,Laser Energy Buying Group (Kent County Council Commercial Services),Electricity - Electricity Charges,2029705,202110
Rother District Council,22/10/2021,091HOUSING,Housing and Community Services,20128,Public Conveniences,B2201,Electricity,45.96,Laser Energy Buying Group (Kent County Council Commercial Services),Electricity - Electricity Charges,2029705,202110
Rother District Council,22/10/2021,091HOUSING,Housing and Community Services,20128,Public Conveniences,B2201,Electricity,5.42,Laser Energy Buying Group (Kent County Council Commercial Services),Electricity - Electricity Charges,2029705,202110
Rother District Council,22/10/2021,091HOUSING,Housing and Community Services,20128,Public Conveniences,B2201,Electricity,-37.96,Laser Energy Buying Group (Kent County Council Commercial Services),Electricity - Electricity Charges,2029705,202110
Rother District Council,22/10/2021,091HOUSING,Housing and Community Services,20128,Public Conveniences,B2201,Electricity,87.62,Laser Energy Buying Group (Kent County Council Commercial Services),Electricity - Electricity Charges,2029705,202110
Rother District Council,22/10/2021,091HOUSING,Housing and Community Services,20128,Public Conveniences,B2201,Electricity,51.18,Laser Energy Buying Group (Kent County Council Commercial Services),Electricity - Electricity Charges,2029705,202110
Rother District Council,22/10/2021,091HOUSING,Housing and Community Services,20128,Public Conveniences,B2201,Electricity,49.40,Laser Energy Buying Group (Kent County Council Commercial Services),Electricity - Electricity Charges,2029705,202110
Rother District Council,22/10/2021,091HOUSING,Housing and Community Services,20128,Public Conveniences,B2201,Electricity,35.37,Laser Energy Buying Group (Kent County Council Commercial Services),Electricity - Electricity Charges,2029705,202110
Rother District Council,22/10/2021,091HOUSING,Housing and Community Services,20128,Public Conveniences,B2201,Electricity,33.07,Laser Energy Buying Group (Kent County Council Commercial Services),Electricity - Electricity Charges,2029705,202110
Rother District Council,22/10/2021,091HOUSING,Housing and Community Services,20128,Public Conveniences,B2201,Electricity,-27.92,Laser Energy Buying Group (Kent County Council Commercial Services),Electricity - Electricity Charges,2029705,202110
Rother District Council,22/10/2021,091HOUSING,Housing and Community Services,20128,Public Conveniences,B2201,Electricity,28.36,Laser Energy Buying Group (Kent County Council Commercial Services),Electricity - Electricity Charges,2029705,202110
Rother District Council,22/10/2021,091HOUSING,Housing and Community Services,20128,Public Conveniences,B2201,Electricity,127.63,Laser Energy Buying Group (Kent County Council Commercial Services),Electricity - Electricity Charges,2029705,202110
Rother District Council,22/10/2021,091HOUSING,Housing and Community Services,20128,Public Conveniences,B2201,Electricity,26.90,Laser Energy Buying Group (Kent County Council Commercial Services),Electricity - Electricity Charges,2029705,202110
Rother District Council,22/10/2021,091HOUSING,Housing and Community Services,20128,Public Conveniences,B2201,Electricity,27.12,Laser Energy Buying Group (Kent County Council Commercial Services),Electricity - Electricity Charges,2029705,202110
Rother District Council,22/10/2021,091HOUSING,Housing and Community Services,20128,Public Conveniences,B2201,Electricity,37.71,Laser Energy Buying Group (Kent County Council Commercial Services),Electricity - Electricity Charges,2029705,202110
Rother District Council,22/10/2021,091HOUSING,Housing and Community Services,20128,Public Conveniences,B2201,Electricity,38.35,Laser Energy Buying Group (Kent County Council Commercial Services),Electricity - Electricity Charges,2029705,202110
Rother District Council,22/10/2021,091HOUSING,Housing and Community Services,20128,Public Conveniences,B2201,Electricity,-74.76,Laser Energy Buying Group (Kent County Council Commercial Services),Electricity - Electricity Charges,2029705,202110
Rother District Council,22/10/2021,091HOUSING,Housing and Community Services,20123,Cemeteries,B2201,Electricity,39.91,Laser Energy Buying Group (Kent County Council Commercial Services),Electricity - Electricity Charges,2029705,202110
Rother District Council,22/10/2021,091HOUSING,Housing and Community Services,20128,Public Conveniences,B2201,Electricity,40.63,Laser Energy Buying Group (Kent County Council Commercial Services),Electricity - Electricity Charges,2029705,202110
Rother District Council,22/10/2021,091HOUSING,Housing and Community Services,20128,Public Conveniences,B2201,Electricity,58.49,Laser Energy Buying Group (Kent County Council Commercial Services),Electricity - Electricity Charges,2029705,202110
Rother District Council,22/10/2021,081ACQUISIT,"Acquisitions, Transformation and Regeneration",20151,Udimore Workshops,B2201,Electricity,-27.73,Laser Energy Buying Group (Kent County Council Commercial Services),Electricity - Electricity Charges,2029705,202110
Rother District Council,22/10/2021,081ACQUISIT,"Acquisitions, Transformation and Regeneration",20148,Misc Land & Buildings,B2201,Electricity,-26.63,Laser Energy Buying Group (Kent County Council Commercial Services),Electricity - Electricity Charges,2029705,202110
Rother District Council,22/10/2021,081ACQUISIT,"Acquisitions, Transformation and Regeneration",20153,"Elva Business Centre, Bexhill",B2201,Electricity,793.50,Laser Energy Buying Group (Kent County Council Commercial Services),Electricity - Electricity Charges,2029705,202110
Rother District Council,22/10/2021,081ACQUISIT,"Acquisitions, Transformation and Regeneration",20154,Committee Property Account,B2201,Electricity,13.45,Laser Energy Buying Group (Kent County Council Commercial Services),Electricity - Electricity Charges,2029705,202110
Rother District Council,22/10/2021,081ACQUISIT,"Acquisitions, Transformation and Regeneration",20154,Committee Property Account,B2201,Electricity,13.46,Laser Energy Buying Group (Kent County Council Commercial Services),Electricity - Electricity Charges,2029705,202110
Rother District Council,22/10/2021,081ACQUISIT,"Acquisitions, Transformation and Regeneration",20154,Committee Property Account,B2201,Electricity,13.46,Laser Energy Buying Group (Kent County Council Commercial Services),Electricity - Electricity Charges,2029705,202110
Rother District Council,22/10/2021,081ACQUISIT,"Acquisitions, Transformation and Regeneration",20154,Committee Property Account,B2201,Electricity,13.46,Laser Energy Buying Group (Kent County Council Commercial Services),Electricity - Electricity Charges,2029705,202110
Rother District Council,22/10/2021,081ACQUISIT,"Acquisitions, Transformation and Regeneration",20154,Committee Property Account,B2201,Electricity,17.09,Laser Energy Buying Group (Kent County Council Commercial Services),Electricity - Electricity Charges,2029705,202110
Rother District Council,22/10/2021,081ACQUISIT,"Acquisitions, Transformation and Regeneration",20154,Committee Property Account,B2201,Electricity,17.09,Laser Energy Buying Group (Kent County Council Commercial Services),Electricity - Electricity Charges,2029705,202110
Rother District Council,22/10/2021,081ACQUISIT,"Acquisitions, Transformation and Regeneration",20154,Committee Property Account,B2201,Electricity,17.09,Laser Energy Buying Group (Kent County Council Commercial Services),Electricity - Electricity Charges,2029705,202110
Rother District Council,22/10/2021,081ACQUISIT,"Acquisitions, Transformation and Regeneration",20154,Committee Property Account,B2201,Electricity,17.09,Laser Energy Buying Group (Kent County Council Commercial Services),Electricity - Electricity Charges,2029705,202110
Rother District Council,22/10/2021,081ACQUISIT,"Acquisitions, Transformation and Regeneration",20154,Committee Property Account,B2201,Electricity,769.11,Laser Energy Buying Group (Kent County Council Commercial Services),Electricity - Electricity Charges,2029705,202110
Rother District Council,22/10/2021,081ACQUISIT,"Acquisitions, Transformation and Regeneration",20154,Committee Property Account,B2201,Electricity,88.03,Laser Energy Buying Group (Kent County Council Commercial Services),Electricity - Electricity Charges,2029705,202110
Rother District Council,22/10/2021,081ACQUISIT,"Acquisitions, Transformation and Regeneration",20148,Misc Land & Buildings,B2201,Electricity,55.72,Laser Energy Buying Group (Kent County Council Commercial Services),Electricity - Electricity Charges,2029705,202110
Rother District Council,22/10/2021,081ACQUISIT,"Acquisitions, Transformation and Regeneration",20148,Misc Land & Buildings,B2201,Electricity,33.03,Laser Energy Buying Group (Kent County Council Commercial Services),Electricity - Electricity Charges,2029705,202110
Rother District Council,22/10/2021,081ACQUISIT,"Acquisitions, Transformation and Regeneration",20154,Committee Property Account,B2201,Electricity,19.38,Laser Energy Buying Group (Kent County Council Commercial Services),Electricity - Electricity Charges,2029705,202110
Rother District Council,22/10/2021,081ACQUISIT,"Acquisitions, Transformation and Regeneration",20154,Committee Property Account,B2201,Electricity,19.37,Laser Energy Buying Group (Kent County Council Commercial Services),Electricity - Electricity Charges,2029705,202110
Rother District Council,22/10/2021,081ACQUISIT,"Acquisitions, Transformation and Regeneration",20154,Committee Property Account,B2201,Electricity,19.38,Laser Energy Buying Group (Kent County Council Commercial Services),Electricity - Electricity Charges,2029705,202110
Rother District Council,22/10/2021,081ACQUISIT,"Acquisitions, Transformation and Regeneration",20150,Peasmarsh Workshops,B2201,Electricity,27.03,Laser Energy Buying Group (Kent County Council Commercial Services),Electricity - Electricity Charges,2029705,202110
Rother District Council,22/10/2021,081ACQUISIT,"Acquisitions, Transformation and Regeneration",20155,Investment properties,B2201,Electricity,26.91,Laser Energy Buying Group (Kent County Council Commercial Services),Electricity - Electricity Charges,2029705,202110
Rother District Council,22/10/2021,091HOUSING,Housing and Community Services,20137,Car Parks,B2201,Electricity,37.98,Laser Energy Buying Group (Kent County Council Commercial Services),Electricity - Electricity Charges,2029705,202110
Rother District Council,22/10/2021,091HOUSING,Housing and Community Services,20137,Car Parks,B2201,Electricity,30.97,Laser Energy Buying Group (Kent County Council Commercial Services),Electricity - Electricity Charges,2029705,202110
Rother District Council,22/10/2021,031RESOURCES,Chief Executive & Corporate Core,20173,Administrative Offices - Town Hall,B2201,Electricity,"1,778.37",Laser Energy Buying Group (Kent County Council Commercial Services),Electricity - Electricity Charges,2029705,202110
Rother District Council,22/10/2021,031RESOURCES,Chief Executive & Corporate Core,20177,Administrative Offices - Rear Depot,B2201,Electricity,32.48,Laser Energy Buying Group (Kent County Council Commercial Services),Electricity - Electricity Charges,2029705,202110
Rother District Council,22/10/2021,031RESOURCES,Chief Executive & Corporate Core,20176,Administrative Offices - Print Room,B2201,Electricity,137.42,Laser Energy Buying Group (Kent County Council Commercial Services),Electricity - Electricity Charges,2029705,202110
Rother District Council,22/10/2021,091HOUSING,Housing and Community Services,20145,Maintenance Services,B2201,Electricity,35.23,Laser Energy Buying Group (Kent County Council Commercial Services),Electricity - Electricity Charges,2029705,202110
Rother District Council,28/10/2021,999NOREPORT,"Acquisitions, Transformation and Regeneration",70725,Capital - Blackfriars,N1002,Land & Property fees,"3,851.00",Bevan Brittan LLP,Land & Property fees Capital-Land and Propty - Fees Etc.,2029820,202110
Rother District Council,28/10/2021,999NOREPORT,"Acquisitions, Transformation and Regeneration",70725,Capital - Blackfriars,N1002,Land & Property fees,6.00,Bevan Brittan LLP,Land & Property fees Capital-Land and Propty - Fees Etc.,2029820,202110
Rother District Council,28/10/2021,031RESOURCES,Chief Executive & Corporate Core,20171,Human Resources,D2513,Hired and Contracted services,250.00,Staywell Occupational Health Ltd,Hired and contracted services - Occupational Health,2030496,202111
Rother District Council,29/10/2021,101RESOURCES,Resources,20216,Cost Of Collection,D2513,Hired and Contracted services,99.50,Royal Mail Group Ltd,Postages - P O Box Licence Fees/Costs,2028423,202111
Rother District Council,29/10/2021,041ENVIRON,Environmental Services,32134,EH Pollution R + W Partnership,D2513,Hired and Contracted services,80.00,LoadFast Waste Disposal,Hired and contracted services - Service fee paid,2028373,202110
Rother District Council,01/11/2021,091HOUSING,Housing and Community Services,20107,Camber Beach & Foreshore,D2621,Telephones,50.95,Beaming Ltd,Telephones - Broadband Connection,2029457,202110
Rother District Council,01/11/2021,101RESOURCES,Resources,20209,Corporate management,D2513,Hired and Contracted services,41.73,Castle Water Ltd,Interest Paid - Late Invoice Payment Fee,2030762,202111
Rother District Council,01/11/2021,091HOUSING,Housing and Community Services,20206,UK Resettlement (Syrians),D2513,Hired and Contracted services,"1,443.00",REDACTED PERSONAL DATA,Hired and contracted services - Syrian-Education-Exempt VAT,2030060,202110
Rother District Council,02/11/2021,101RESOURCES,Resources,20242,Communications-Phones,D2621,Telephones,25.81,TalkTalk Communications Ltd T/A TalkTalk Business,Telephones - Telephone Call Costs+Line Rental,2029513,202110
Rother District Council,02/11/2021,041ENVIRON,Environmental Services,32143,EH Licenses and Registration R + W Partnership,D2513,Hired and Contracted services,437.50,Fairfield House Veterinary Surgery,Hired and contracted services - EnvH-Veterinary Services for Licens,2029791,202110
Rother District Council,03/11/2021,041ENVIRON,Environmental Services,32143,EH Licenses and Registration R + W Partnership,D2513,Hired and Contracted services,437.50,Fairfield House Veterinary Surgery,Hired and contracted services - EnvH-Veterinary Services for Licens,2029792,202110
Rother District Council,04/11/2021,041ENVIRON,Environmental Services,32143,EH Licenses and Registration R + W Partnership,D2513,Hired and Contracted services,354.17,Fairfield House Veterinary Surgery,Hired and contracted services - EnvH-Veterinary Services for Licens,2029789,202110
Rother District Council,08/11/2021,091HOUSING,Housing and Community Services,20107,Camber Beach & Foreshore,D1201,Equipment & Materials,"2,300.00",Rye Pilots,Equipment & Materials - Marker Buoys and Signs,2031051,202112
Rother District Council,09/11/2021,041ENVIRON,Environmental Services,32143,EH Licenses and Registration R + W Partnership,D2513,Hired and Contracted services,437.50,Fairfield House Veterinary Surgery,Hired and contracted services - EnvH-Veterinary Services for Licens,2029786,202110
Rother District Council,09/11/2021,091HOUSING,Housing and Community Services,20108,Bexhill Promenade & Foreshore,B2201,Electricity,5.39,Ecotricity Ltd,Electricity - Electricity Charges,2031626,202112
Rother District Council,09/11/2021,091HOUSING,Housing and Community Services,20108,Bexhill Promenade & Foreshore,B2201,Electricity,11.70,Ecotricity Ltd,Electricity - Electricity Charges,2031627,202112
Rother District Council,09/11/2021,091HOUSING,Housing and Community Services,20137,Car Parks,B2201,Electricity,34.12,Ecotricity Ltd,Electricity - Electricity Charges,2031626,202112
Rother District Council,09/11/2021,091HOUSING,Housing and Community Services,20138,Residual Highway Services,B2201,Electricity,5.39,Ecotricity Ltd,Electricity - Electricity Charges,2031626,202112
Rother District Council,09/11/2021,091HOUSING,Housing and Community Services,20137,Car Parks,B2201,Electricity,74.06,Ecotricity Ltd,Electricity - Electricity Charges,2031627,202112
Rother District Council,09/11/2021,091HOUSING,Housing and Community Services,20138,Residual Highway Services,B2201,Electricity,11.69,Ecotricity Ltd,Electricity - Electricity Charges,2031627,202112
Rother District Council,09/11/2021,091HOUSING,Housing and Community Services,20137,Car Parks,B2201,Electricity,8.63,Ecotricity Ltd,Electricity - Electricity Charges,2031641,202112
Rother District Council,09/11/2021,091HOUSING,Housing and Community Services,20138,Residual Highway Services,B2201,Electricity,7.18,Ecotricity Ltd,Electricity - Electricity Charges,2031641,202112
Rother District Council,09/11/2021,041ENVIRON,Environmental Services,20129,Community Safety - CCTV costs only,B2201,Electricity,64.72,Ecotricity Ltd,Electricity - Electricity Charges,2031641,202112
Rother District Council,09/11/2021,101RESOURCES,Resources,20240,Printing Services,D2633,Computer Equipment,260.40,Canon (UK) Ltd,Computer Equip Maintenance - Maintenance re Colourwave Printer,2029391,202110
Rother District Council,09/11/2021,091HOUSING,Housing and Community Services,20137,Car Parks,B2201,Electricity,61.10,Ecotricity Ltd,Electricity,2031625,202112
Rother District Council,09/11/2021,091HOUSING,Housing and Community Services,20138,Residual Highway Services,B2201,Electricity,50.84,Ecotricity Ltd,Electricity,2031625,202112
Rother District Council,09/11/2021,041ENVIRON,Environmental Services,20129,Community Safety - CCTV costs only,B2201,Electricity,458.04,Ecotricity Ltd,Electricity,2031625,202112
Rother District Council,10/11/2021,041ENVIRON,Environmental Services,32143,EH Licenses and Registration R + W Partnership,D2513,Hired and Contracted services,354.17,Fairfield House Veterinary Surgery,Hired and contracted services - EnvH-Veterinary Services for Licens,2029790,202110
Rother District Council,10/11/2021,101RESOURCES,Resources,20209,Corporate management,D2513,Hired and Contracted services,57.89,Lloyds Bank,Bank Charges,2031759,202112
Rother District Council,11/11/2021,041ENVIRON,Environmental Services,32143,EH Licenses and Registration R + W Partnership,D2513,Hired and Contracted services,437.50,Fairfield House Veterinary Surgery,Hired and contracted services - EnvH-Veterinary Services for Licens,2029793,202110
Rother District Council,11/11/2021,999NOREPORT,"Acquisitions, Transformation and Regeneration",70725,Capital - Blackfriars,N1004,Architects & Consultant Fees,"2,830.00",Temple Group Ltd,Architects & Consultant Fees Capital-Architect and Conslt Fees,2028749,202110
Rother District Council,13/11/2021,101RESOURCES,Resources,20242,Communications-Phones,D2622,Mobile Phones,549.18,O2 (UK) Ltd,Mobile Phones,2029507,202110
Rother District Council,13/11/2021,101RESOURCES,Resources,20242,Communications-Phones,D2622,Mobile Phones,608.55,O2 (UK) Ltd,Mobile Phones,2029508,202110
Rother District Council,13/11/2021,101RESOURCES,Resources,20242,Communications-Phones,D2622,Mobile Phones,257.74,O2 (UK) Ltd,Mobile Phones,2029509,202110
Rother District Council,13/11/2021,101RESOURCES,Resources,20242,Communications-Phones,D2622,Mobile Phones,110.00,O2 (UK) Ltd,Mobile Phones,2029510,202110
Rother District Council,13/11/2021,101RESOURCES,Resources,20242,Communications-Phones,D2622,Mobile Phones,110.00,O2 (UK) Ltd,Mobile Phones,2029511,202110
Rother District Council,13/11/2021,101RESOURCES,Resources,20242,Communications-Phones,D2622,Mobile Phones,55.00,O2 (UK) Ltd,Mobile Phones,2029512,202110
Rother District Council,15/11/2021,101RESOURCES,Resources,20242,Communications-Phones,D2621,Telephones,622.00,TalkTalk Communications Ltd T/A TalkTalk Business,Telephones - Leased Line Rental,2030354,202111
Rother District Council,15/11/2021,041ENVIRON,Environmental Services,32143,EH Licenses and Registration R + W Partnership,D2513,Hired and Contracted services,354.17,Fairfield House Veterinary Surgery,Hired and contracted services - EnvH-Veterinary Services for Licens,2029788,202110
Rother District Council,16/11/2021,041ENVIRON,Environmental Services,32143,EH Licenses and Registration R + W Partnership,D2513,Hired and Contracted services,437.50,Fairfield House Veterinary Surgery,Hired and contracted services - EnvH-Veterinary Services for Licens,2029787,202110
Rother District Council,19/11/2021,091HOUSING,Housing and Community Services,20123,Cemeteries,B1100,Repairs to Premises,"2,226.00",Barcham Trees Plc,Repairs to Premises - Parks- Purchase of Trees,2030477,202111
Rother District Council,19/11/2021,091HOUSING,Housing and Community Services,20123,Cemeteries,B1100,Repairs to Premises,112.00,Barcham Trees Plc,Repairs to Premises - Parks- Purchase of Trees,2030477,202111
Rother District Council,19/11/2021,091HOUSING,Housing and Community Services,20202,Rother Tenant Finder (prev Rother Letting Service),D2513,Hired and Contracted services,117.03,Housing and Care 21,Hired and contracted services - Service fee paid,2030360,202111
Rother District Council,19/11/2021,031RESOURCES,Chief Executive & Corporate Core,20171,Human Resources,D2513,Hired and Contracted services,275.00,Staywell Occupational Health Ltd,Hired and contracted services - Occupational Health,2030497,202111
Rother District Council,19/11/2021,041ENVIRON,Environmental Services,32143,EH Licenses and Registration R + W Partnership,D2513,Hired and Contracted services,437.50,Fairfield House Veterinary Surgery,Hired and contracted services - EnvH-Veterinary Services for Licens,2029794,202110
Rother District Council,21/11/2021,091HOUSING,Housing and Community Services,20108,Bexhill Promenade & Foreshore,B2201,Electricity,3.31,Ecotricity Ltd,Electricity - Electricity Charges,2029631,202110
Rother District Council,21/11/2021,091HOUSING,Housing and Community Services,20137,Car Parks,B2201,Electricity,20.93,Ecotricity Ltd,Electricity - Electricity Charges,2029631,202110
Rother District Council,21/11/2021,091HOUSING,Housing and Community Services,20138,Residual Highway Services,B2201,Electricity,3.30,Ecotricity Ltd,Electricity - Electricity Charges,2029631,202110
Rother District Council,23/11/2021,081ACQUISIT,"Acquisitions, Transformation and Regeneration",20308,Amherst Road,B1100,Repairs to Premises,32.50,Alfa Electric Ltd,Repairs to Premises - Portable Appliance Testing (PAT),2030903,202111
Rother District Council,23/11/2021,081ACQUISIT,"Acquisitions, Transformation and Regeneration",20308,Amherst Road,B1100,Repairs to Premises,177.50,Alfa Electric Ltd,Repairs to Premises - Portable Appliance Testing (PAT),2030905,202111
Rother District Council,23/11/2021,031RESOURCES,Chief Executive & Corporate Core,20176,Administrative Offices - Print Room,B1100,Repairs to Premises,140.00,Alfa Electric Ltd,Repairs to Premises - Portable Appliance Testing (PAT),2030904,202111
Rother District Council,23/11/2021,101RESOURCES,Resources,20239,Computer Services,D2633,Computer Equipment,798.34,Apple Retail UK Ltd,Computer Equipment - New - Computer Hardware,2030343,202111
Rother District Council,24/11/2021,031RESOURCES,Chief Executive & Corporate Core,20173,Administrative Offices - Town Hall,B1100,Repairs to Premises,"2,100.00",Alfa Electric Ltd,Repairs to Premises - Portable Appliance Testing (PAT),2030907,202111
Rother District Council,25/11/2021,091HOUSING,Housing and Community Services,20107,Camber Beach & Foreshore,B1100,Repairs to Premises,120.00,Alfa Electric Ltd,Repairs to Premises - Portable Appliance Testing (PAT),2030906,202111
Rother District Council,25/11/2021,041ENVIRON,Environmental Services,32134,EH Pollution R + W Partnership,D1201,Equipment & Materials,199.50,We Care 4 Air Ltd,Equipment & Materials - EnvH- Air Quality Maintenance Contr,2030160,202110
Rother District Council,26/11/2021,081ACQUISIT,"Acquisitions, Transformation and Regeneration",20308,Amherst Road,B2202,Gas,271.74,Laser Energy Buying Group (Kent County Council Commercial Services),Gas - Gas Charges,2030933,202111
Rother District Council,26/11/2021,081ACQUISIT,"Acquisitions, Transformation and Regeneration",20154,Committee Property Account,B2202,Gas,11.10,Laser Energy Buying Group (Kent County Council Commercial Services),Gas - Gas Charges,2030933,202111
Rother District Council,26/11/2021,081ACQUISIT,"Acquisitions, Transformation and Regeneration",20154,Committee Property Account,B2202,Gas,12.71,Laser Energy Buying Group (Kent County Council Commercial Services),Gas - Gas Charges,2030933,202111
Rother District Council,26/11/2021,031RESOURCES,Chief Executive & Corporate Core,20176,Administrative Offices - Print Room,B2202,Gas,161.67,Laser Energy Buying Group (Kent County Council Commercial Services),Gas - Gas Charges,2030933,202111
Rother District Council,26/11/2021,031RESOURCES,Chief Executive & Corporate Core,20173,Administrative Offices - Town Hall,B2202,Gas,756.97,Laser Energy Buying Group (Kent County Council Commercial Services),Gas - Gas Charges,2030933,202111
Rother District Council,26/11/2021,999NOREPORT,"Acquisitions, Transformation and Regeneration",70737,Capital � Barnhorn Green,N1004,Architects & Consultant Fees,"1,365.00",Ashdown Site Investigation Ltd,Architects & Consultant Fees Capital-Architect and Conslt Fees,2029749,202110
Rother District Council,27/11/2021,101RESOURCES,Resources,20242,Communications-Phones,D2621,Telephones,317.76,BT British Telecommunications plc,Telephones - BT-Rental-General,2029407,202110
Rother District Council,27/11/2021,101RESOURCES,Resources,20242,Communications-Phones,D2621,Telephones,80.00,BT British Telecommunications plc,Telephones - BT-Rental-General,2029407,202110
Rother District Council,29/11/2021,091HOUSING,Housing and Community Services,20133,Refuse Collection,E2302,Third party payment private contractors,420.00,Sussex Waste Management Ltd,Third party payment private contractors - Waste Collection Contract Variable cost to RDC,2029709,202110
Rother District Council,29/11/2021,091HOUSING,Housing and Community Services,20114,Bexhill Parks & Open Spaces,B1100,Repairs to Premises,44.70,Saint-Gobain Building Distribution Ltd t/a Jewson,Repairs to Premises - Purchase of Materials - Build Maint,2029628,202110
Rother District Council,30/11/2021,101RESOURCES,Resources,20212,Risk Management/Insurance,D2520,Insurance,10.24,Arthur J. Gallagher Insurance Brokers Ltd,Insurance - Property building Insurance,2029807,202110
Rother District Council,30/11/2021,101RESOURCES,Resources,20209,Corporate management,D2513,Hired and Contracted services,914.67,allpay.net Ltd,Hired and contracted services - Allpay Card/Rep/Let Chrg - Vatable,2030338,202111
Rother District Council,30/11/2021,101RESOURCES,Resources,20209,Corporate management,D2513,Hired and Contracted services,17.76,allpay.net Ltd,Hired and contracted services - Allpay Card/Rep/Let Chrg - Vatable,2030339,202111
Rother District Council,30/11/2021,101RESOURCES,Resources,20209,Corporate management,D2513,Hired and Contracted services,11.50,allpay.net Ltd,Hired and contracted services - Allpay Card/Rep/Let Chrg - Vatable,2030340,202111
Rother District Council,30/11/2021,101RESOURCES,Resources,20209,Corporate management,D2513,Hired and Contracted services,24.98,allpay.net Ltd,Hired and contracted services - Allpay Card/Rep/Let Chrg - Vatable,2030341,202111
Rother District Council,30/11/2021,041ENVIRON,Environmental Services,32136,EH Pest Control R + W Partnership,C1104,Derv,5.70,Allstar Business Solutions,Derv - Fuel Service fee payable on fuel cards,2030342,202111
Rother District Council,30/11/2021,071STRAT,Strategy and Planning,20246,Planning Applications,D2509,Consultants and Other Services,"3,707.25",REDACTED PERSONAL DATA,Consultants and other services - Consultants Fees,2029739,202110
Rother District Council,30/11/2021,041ENVIRON,Environmental Services,32136,EH Pest Control R + W Partnership,C1104,Derv,57.50,Allstar Business Solutions,Derv,2030342,202111
Rother District Council,30/11/2021,041ENVIRON,Environmental Services,32136,EH Pest Control R + W Partnership,C1104,Derv,51.67,Allstar Business Solutions,Derv,2030342,202111
Rother District Council,30/11/2021,041ENVIRON,Environmental Services,32136,EH Pest Control R + W Partnership,C1104,Derv,43.33,Allstar Business Solutions,Derv,2030342,202111
Rother District Council,30/11/2021,091HOUSING,Housing and Community Services,20145,Maintenance Services,C1104,Derv,62.67,Allstar Business Solutions,Derv,2030342,202111
Rother District Council,30/11/2021,091HOUSING,Housing and Community Services,20145,Maintenance Services,C1104,Derv,30.00,Allstar Business Solutions,Derv,2030342,202111
Rother District Council,30/11/2021,999NOREPORT,Housing and Community Services,70751,Capital - Temporary Accommodation,N1001,Land & Property Purchase,"180,002.44",Heringtons LLP,Land & Property Purchase,2030606,202111
Rother District Council,01/12/2021,031RESOURCES,Chief Executive & Corporate Core,20171,Human Resources,A2203,Training,210.00,First In Attendance Ltd,Training - First Aid training course,2030523,202111
Rother District Council,01/12/2021,091HOUSING,Housing and Community Services,20107,Camber Beach & Foreshore,D2621,Telephones,50.95,Beaming Ltd,Telephones - Broadband Connection,2029458,202110
Rother District Council,01/12/2021,101RESOURCES,Resources,20242,Communications-Phones,D2622,Mobile Phones,780.78,Telefonica UK Ltd,Mobile Phones - Purchase of mobile phones,2029696,202110
Rother District Council,01/12/2021,101RESOURCES,Resources,20222,Accountancy,D1203,Books And Publications,"1,715.00",CIPFA Business Ltd,Books and Publications - general,2030262,202111
Rother District Council,01/12/2021,091HOUSING,Housing and Community Services,20113,Bexhill Leisure Pool,D2513,Hired and Contracted services,"7,342.80",Savills (UK) Ltd (Clients Account Rent/Service Charges),Hired and Contracted services,2030161,202110
Rother District Council,02/12/2021,101RESOURCES,Resources,20242,Communications-Phones,D2621,Telephones,25.72,TalkTalk Communications Ltd T/A TalkTalk Business,Telephones - Leased Line Rental,2030353,202111
Rother District Council,02/12/2021,999NOREPORT,"Acquisitions, Transformation and Regeneration",70754,Capital - King Offa Residential Development Scheme,N1002,Land & Property fees,632.50,Bevan Brittan LLP,Land & Property fees Capital-Land and Propty - Fees Etc.,2029823,202110
Rother District Council,02/12/2021,999NOREPORT,Chief Executive & Corporate Core,70759,Capital - Town Hall Renaissance Project,N1004,Architects & Consultant Fees,"1,365.00",East Sussex County Council,Architects & Consultant Fees Capital-Architect and Conslt Fees,2029975,202110
Rother District Council,03/12/2021,091HOUSING,Housing and Community Services,20114,Bexhill Parks & Open Spaces,B1100,Repairs to Premises,267.00,Xylem Water Solutions UK Ltd,Repairs to Premises - Sewage Treatment Plant Maintenance,2030844,202111
Rother District Council,03/12/2021,101RESOURCES,Resources,20239,Computer Services,D2633,Computer Equipment,"1,829.15",Apple Retail UK Ltd,Computer Equipment - New - Computer Hardware,2030584,202111
Rother District Council,06/12/2021,101RESOURCES,Resources,20209,Corporate management,D2513,Hired and Contracted services,67.00,Lloyds Bank,Bank Charges,2030348,202111
Rother District Council,06/12/2021,101RESOURCES,Resources,20209,Corporate management,D2513,Hired and Contracted services,73.85,Lloyds Bank,Bank Charges,2030349,202111
Rother District Council,07/12/2021,091HOUSING,Housing and Community Services,20114,Bexhill Parks & Open Spaces,B2201,Electricity,33.97,Ecotricity Ltd,Electricity - Electricity Charges,2030122,202110
Rother District Council,07/12/2021,999NOREPORT,Housing and Community Services,70727,Capital - Refuse Equipment,N1008,Equipment,"2,166.00",Reveal Media Ltd,Capital - Purchase of Equipment,2029589,202110
Rother District Council,07/12/2021,091HOUSING,Housing and Community Services,20108,Bexhill Promenade & Foreshore,B2201,Electricity,5.05,Ecotricity Ltd,Electricity,2030125,202110
Rother District Council,07/12/2021,091HOUSING,Housing and Community Services,20108,Bexhill Promenade & Foreshore,B2201,Electricity,10.97,Ecotricity Ltd,Electricity,2030126,202110
Rother District Council,07/12/2021,091HOUSING,Housing and Community Services,20137,Car Parks,B2201,Electricity,57.28,Ecotricity Ltd,Electricity,2030123,202110
Rother District Council,07/12/2021,091HOUSING,Housing and Community Services,20138,Residual Highway Services,B2201,Electricity,47.66,Ecotricity Ltd,Electricity,2030123,202110
Rother District Council,07/12/2021,091HOUSING,Housing and Community Services,20137,Car Parks,B2201,Electricity,8.09,Ecotricity Ltd,Electricity,2030124,202110
Rother District Council,07/12/2021,091HOUSING,Housing and Community Services,20138,Residual Highway Services,B2201,Electricity,6.73,Ecotricity Ltd,Electricity,2030124,202110
Rother District Council,07/12/2021,091HOUSING,Housing and Community Services,20137,Car Parks,B2201,Electricity,31.99,Ecotricity Ltd,Electricity,2030125,202110
Rother District Council,07/12/2021,091HOUSING,Housing and Community Services,20138,Residual Highway Services,B2201,Electricity,5.05,Ecotricity Ltd,Electricity,2030125,202110
Rother District Council,07/12/2021,091HOUSING,Housing and Community Services,20137,Car Parks,B2201,Electricity,69.43,Ecotricity Ltd,Electricity,2030126,202110
Rother District Council,07/12/2021,091HOUSING,Housing and Community Services,20138,Residual Highway Services,B2201,Electricity,10.96,Ecotricity Ltd,Electricity,2030126,202110
Rother District Council,07/12/2021,041ENVIRON,Environmental Services,20129,Community Safety - CCTV costs only,B2201,Electricity,429.42,Ecotricity Ltd,Electricity,2030123,202110
Rother District Council,07/12/2021,041ENVIRON,Environmental Services,20129,Community Safety - CCTV costs only,B2201,Electricity,60.68,Ecotricity Ltd,Electricity,2030124,202110
Rother District Council,08/12/2021,091HOUSING,Housing and Community Services,20261,"TA Purchases (prev - 41 Jameson Mews, Bexhill on Sea)",B2202,Gas,107.72,Shell Energy Retail Ltd,Gas - Gas Charges,2030185,202111
Rother District Council,08/12/2021,091HOUSING,Housing and Community Services,20261,"TA Purchases (prev - 41 Jameson Mews, Bexhill on Sea)",B2201,Electricity,215.43,Shell Energy Retail Ltd,Electricity - Electricity Charges,2030185,202111
Rother District Council,09/12/2021,101RESOURCES,Resources,20242,Communications-Phones,D2621,Telephones,67.50,TalkTalk Communications Ltd T/A TalkTalk Business,Telephones - Leased Line Rental,2030618,202111
Rother District Council,09/12/2021,999NOREPORT,"Acquisitions, Transformation and Regeneration",70725,Capital - Blackfriars,N1004,Architects & Consultant Fees,"1,975.75",Natural England,Architects & Consultant Fees Capital-Architect and Conslt Fees,2029904,202110
Rother District Council,09/12/2021,091HOUSING,Housing and Community Services,20125,Coast Protection,D2513,Hired and Contracted services,40.00,UK Customs Declarations Ltd,Hired and Contracted services,2029604,202110
Rother District Council,09/12/2021,091HOUSING,Housing and Community Services,20200,Housing Needs - HB (Housing Benefit),D2508,Removals and Storage,120.00,Express Removals Worldwide Ltd,Removals and Storage,2030713,202111
Rother District Council,10/12/2021,091HOUSING,Housing and Community Services,20102,Rother Museum Services,B2201,Electricity,499.19,Laser Energy Buying Group (Kent County Council Commercial Services),Electricity - Electricity Charges,2030934,202111
Rother District Council,10/12/2021,091HOUSING,Housing and Community Services,20108,Bexhill Promenade & Foreshore,B2201,Electricity,159.87,Laser Energy Buying Group (Kent County Council Commercial Services),Electricity - Electricity Charges,2030934,202111
Rother District Council,10/12/2021,091HOUSING,Housing and Community Services,20114,Bexhill Parks & Open Spaces,B2201,Electricity,17.02,Laser Energy Buying Group (Kent County Council Commercial Services),Electricity - Electricity Charges,2030934,202111
Rother District Council,10/12/2021,091HOUSING,Housing and Community Services,20114,Bexhill Parks & Open Spaces,B2201,Electricity,22.80,Laser Energy Buying Group (Kent County Council Commercial Services),Electricity - Electricity Charges,2030934,202111
Rother District Council,10/12/2021,091HOUSING,Housing and Community Services,20114,Bexhill Parks & Open Spaces,B2201,Electricity,21.86,Laser Energy Buying Group (Kent County Council Commercial Services),Electricity - Electricity Charges,2030934,202111
Rother District Council,10/12/2021,091HOUSING,Housing and Community Services,20114,Bexhill Parks & Open Spaces,B2201,Electricity,21.78,Laser Energy Buying Group (Kent County Council Commercial Services),Electricity - Electricity Charges,2030934,202111
Rother District Council,10/12/2021,091HOUSING,Housing and Community Services,20128,Public Conveniences,B2201,Electricity,-28.36,Laser Energy Buying Group (Kent County Council Commercial Services),Electricity - Electricity Charges,2030934,202111
Rother District Council,10/12/2021,091HOUSING,Housing and Community Services,20128,Public Conveniences,B2201,Electricity,51.05,Laser Energy Buying Group (Kent County Council Commercial Services),Electricity - Electricity Charges,2030934,202111
Rother District Council,10/12/2021,091HOUSING,Housing and Community Services,20128,Public Conveniences,B2201,Electricity,18.34,Laser Energy Buying Group (Kent County Council Commercial Services),Electricity - Electricity Charges,2030934,202111
Rother District Council,10/12/2021,091HOUSING,Housing and Community Services,20128,Public Conveniences,B2201,Electricity,5.70,Laser Energy Buying Group (Kent County Council Commercial Services),Electricity - Electricity Charges,2030934,202111
Rother District Council,10/12/2021,091HOUSING,Housing and Community Services,20128,Public Conveniences,B2201,Electricity,5.47,Laser Energy Buying Group (Kent County Council Commercial Services),Electricity - Electricity Charges,2030934,202111
Rother District Council,10/12/2021,091HOUSING,Housing and Community Services,20128,Public Conveniences,B2201,Electricity,5.45,Laser Energy Buying Group (Kent County Council Commercial Services),Electricity - Electricity Charges,2030934,202111
Rother District Council,10/12/2021,081ACQUISIT,"Acquisitions, Transformation and Regeneration",20104,Ancient Monuments & Gazebo,B2201,Electricity,25.47,Laser Energy Buying Group (Kent County Council Commercial Services),Electricity - Electricity Charges,2030934,202111
Rother District Council,10/12/2021,101RESOURCES,Resources,20209,Corporate management,D2513,Hired and Contracted services,313.35,Lloyds Bank,Bank Charges,2030351,202111
Rother District Council,10/12/2021,101RESOURCES,Resources,20209,Corporate management,D2513,Hired and Contracted services,658.24,Lloyds Bank,Bank Charges,2030352,202111
Rother District Council,10/12/2021,101RESOURCES,Resources,20209,Corporate management,D2513,Hired and Contracted services,43.75,Lloyds Bank,Bank Charges,2031545,202112
Rother District Council,12/12/2021,101RESOURCES,Resources,20242,Communications-Phones,D2621,Telephones,519.34,BT British Telecommunications plc,Telephones - BT-Rental-General,2029625,202110
Rother District Council,12/12/2021,101RESOURCES,Resources,20209,Corporate management,D2513,Hired and Contracted services,40.00,BT British Telecommunications plc,Interest Paid - Late Invoice Payment Fee,2029625,202110
Rother District Council,12/12/2021,091HOUSING,Housing and Community Services,20200,Housing Needs - HB (Housing Benefit),D2514,Accommodation Costs,275.00,A A H Yahya T/A TAP Temporary Accommodation Providers Ltd,Accommodation Costs,2029677,202110
Rother District Council,12/12/2021,091HOUSING,Housing and Community Services,20200,Housing Needs - HB (Housing Benefit),D2514,Accommodation Costs,350.00,A A H Yahya T/A TAP Temporary Accommodation Providers Ltd,Accommodation Costs,2029677,202110
Rother District Council,12/12/2021,091HOUSING,Housing and Community Services,20200,Housing Needs - HB (Housing Benefit),D2514,Accommodation Costs,385.00,A A H Yahya T/A TAP Temporary Accommodation Providers Ltd,Accommodation Costs,2029677,202110
Rother District Council,12/12/2021,091HOUSING,Housing and Community Services,20200,Housing Needs - HB (Housing Benefit),D2514,Accommodation Costs,300.00,A A H Yahya T/A TAP Temporary Accommodation Providers Ltd,Accommodation Costs,2029677,202110
Rother District Council,12/12/2021,091HOUSING,Housing and Community Services,20329,Rough Sleeping Initiative,D2514,Accommodation Costs,385.00,A A H Yahya T/A TAP Temporary Accommodation Providers Ltd,Accommodation Costs,2029677,202110
Rother District Council,12/12/2021,091HOUSING,Housing and Community Services,20329,Rough Sleeping Initiative,D2514,Accommodation Costs,350.00,A A H Yahya T/A TAP Temporary Accommodation Providers Ltd,Accommodation Costs,2029677,202110
Rother District Council,13/12/2021,101RESOURCES,Resources,20242,Communications-Phones,D2621,Telephones,309.96,GTT EMEA Ltd,Telephones - Leased Line Rental,2029368,202110
Rother District Council,13/12/2021,091HOUSING,Housing and Community Services,20304,Housing First,B1100,Repairs to Premises,"4,176.00",George Stone Ltd,Repairs to Premises - Repairs/Maintenance - various,2031785,202112
Rother District Council,13/12/2021,081ACQUISIT,"Acquisitions, Transformation and Regeneration",20266,Property Investment Strategy,B2202,Gas,60.60,Gazprom Marketing & Trading Retail Ltd,Gas - Gas Charges,2029627,202110
Rother District Council,13/12/2021,101RESOURCES,Resources,20242,Communications-Phones,D2622,Mobile Phones,551.02,O2 (UK) Ltd,Mobile Phones,2030592,202111
Rother District Council,13/12/2021,101RESOURCES,Resources,20242,Communications-Phones,D2622,Mobile Phones,354.49,O2 (UK) Ltd,Mobile Phones,2030593,202111
Rother District Council,13/12/2021,101RESOURCES,Resources,20242,Communications-Phones,D2622,Mobile Phones,110.00,O2 (UK) Ltd,Mobile Phones,2030594,202111
Rother District Council,13/12/2021,101RESOURCES,Resources,20242,Communications-Phones,D2622,Mobile Phones,110.00,O2 (UK) Ltd,Mobile Phones,2030595,202111
Rother District Council,13/12/2021,101RESOURCES,Resources,20242,Communications-Phones,D2622,Mobile Phones,55.00,O2 (UK) Ltd,Mobile Phones,2030596,202111
Rother District Council,13/12/2021,101RESOURCES,Resources,20242,Communications-Phones,D2622,Mobile Phones,615.74,O2 (UK) Ltd,Mobile Phones,2030597,202111
Rother District Council,14/12/2021,101RESOURCES,Resources,20207,Reliefs & Benefits-Housing Benefit,D2513,Hired and Contracted services,"3,000.00",Branch and Lee,Hired and contracted services - Subsidy Consultancy,2029778,202110
Rother District Council,14/12/2021,081ACQUISIT,"Acquisitions, Transformation and Regeneration",20307,COVID19 WBF Welcome Back Fund,D2513,Hired and Contracted services,"2,430.00",Playne Design Ltd,Hired and contracted services - Service fee paid,2030270,202111
Rother District Council,14/12/2021,081ACQUISIT,"Acquisitions, Transformation and Regeneration",20307,COVID19 WBF Welcome Back Fund,D2513,Hired and Contracted services,"2,000.00",Playne Design Ltd,Hired and contracted services - Service fee paid,2030271,202111
Rother District Council,14/12/2021,999NOREPORT,"Acquisitions, Transformation and Regeneration",70754,Capital - King Offa Residential Development Scheme,N1004,Architects & Consultant Fees,50.00,Potter Raper Ltd,Architects & Consultant Fees Capital-Architect and Conslt Fees,2030272,202111
Rother District Council,14/12/2021,101RESOURCES,Resources,20239,Computer Services,D2632,Additional Computer Equipment,249.51,Dell Corporation Ltd,Additional Computer Equipment - New PC/Computer,2029564,202110
Rother District Council,14/12/2021,999NOREPORT,"Acquisitions, Transformation and Regeneration",70755,Capital - Mount View Street Development,N1001,Land & Property Purchase,"4,284,506.51",Mills & Reeve LLP,Land & Property Purchase,2030727,202111
Rother District Council,15/12/2021,091HOUSING,Housing and Community Services,20206,UK Resettlement (Syrians),D2513,Hired and Contracted services,416.70,REDACTED PERSONAL DATA,Hired and contracted services - Syrian-Education-Exempt VAT,2029766,202110
Rother District Council,15/12/2021,081ACQUISIT,"Acquisitions, Transformation and Regeneration",20144,Property Management,D2513,Hired and Contracted services,6.00,H M Land Registry,Hired and contracted services - Land Registry-Property Management,2030346,202111
Rother District Council,15/12/2021,071STRAT,Strategy and Planning,20246,Planning Applications,D2513,Hired and Contracted services,12.00,H M Land Registry,Hired and contracted services - Land Registry-Planning,2030346,202111
Rother District Council,15/12/2021,091HOUSING,Housing and Community Services,20200,Housing Needs - HB (Housing Benefit),D2513,Hired and Contracted services,3.00,H M Land Registry,Hired and contracted services - Housing-Land Registry,2030346,202111
Rother District Council,15/12/2021,041ENVIRON,Environmental Services,32143,EH Licenses and Registration R + W Partnership,D2513,Hired and Contracted services,443.79,Fairfield House Veterinary Surgery,Hired and contracted services - EnvH-Veterinary Services for Licens,2029643,202110
Rother District Council,15/12/2021,041ENVIRON,Environmental Services,32134,EH Pollution R + W Partnership,D2513,Hired and Contracted services,12.00,H M Land Registry,Hired and contracted services - Env H-Land Registry,2030346,202111
Rother District Council,15/12/2021,101RESOURCES,Resources,20216,Cost Of Collection,D2513,Hired and Contracted services,6.00,H M Land Registry,Hired and contracted services - Council Tax-Land Registry Enquiries,2030346,202111
Rother District Council,15/12/2021,101RESOURCES,Resources,20215,Revenue and Benefits,D2513,Hired and Contracted services,12.00,H M Land Registry,Hired and contracted services - Council Tax-Land Registry Enquiries,2030346,202111
Rother District Council,15/12/2021,041ENVIRON,Environmental Services,32136,EH Pest Control R + W Partnership,C1104,Derv,7.60,Allstar Business Solutions,Derv - Fuel Service fee payable on fuel cards,2030586,202111
Rother District Council,15/12/2021,091HOUSING,Housing and Community Services,20145,Maintenance Services,C1104,Derv,1.90,Allstar Business Solutions,Derv - Fuel Service fee payable on fuel cards,2030586,202111
Rother District Council,15/12/2021,081ACQUISIT,"Acquisitions, Transformation and Regeneration",20232,Nlpg-E-Government,D2635,Computer Licences,"3,060.00",GGP Systems Ltd,Computer Licences - GIS System,2029710,202110
Rother District Council,15/12/2021,101RESOURCES,Resources,20239,Computer Services,D2633,Computer Equipment,"3,700.00",Computacenter (UK) Ltd,Computer Equipment - Computer peripherals,2029446,202110
Rother District Council,15/12/2021,999NOREPORT,"Acquisitions, Transformation and Regeneration",70725,Capital - Blackfriars,N1004,Architects & Consultant Fees,560.00,Temple Group Ltd,Architects & Consultant Fees Capital-Architect and Conslt Fees,2029939,202110
Rother District Council,15/12/2021,041ENVIRON,Environmental Services,32136,EH Pest Control R + W Partnership,C1104,Derv,62.50,Allstar Business Solutions,Derv,2030586,202111
Rother District Council,15/12/2021,041ENVIRON,Environmental Services,32136,EH Pest Control R + W Partnership,C1104,Derv,55.01,Allstar Business Solutions,Derv,2030586,202111
Rother District Council,15/12/2021,041ENVIRON,Environmental Services,32136,EH Pest Control R + W Partnership,C1104,Derv,25.00,Allstar Business Solutions,Derv,2030586,202111
Rother District Council,15/12/2021,041ENVIRON,Environmental Services,32136,EH Pest Control R + W Partnership,C1104,Derv,56.67,Allstar Business Solutions,Derv,2030586,202111
Rother District Council,15/12/2021,091HOUSING,Housing and Community Services,20145,Maintenance Services,C1104,Derv,68.33,Allstar Business Solutions,Derv,2030586,202111
Rother District Council,15/12/2021,091HOUSING,Housing and Community Services,20145,Maintenance Services,C1104,Derv,25.00,Allstar Business Solutions,Derv,2030586,202111
Rother District Council,15/12/2021,091HOUSING,Housing and Community Services,20145,Maintenance Services,C1104,Derv,27.50,Allstar Business Solutions,Derv,2030586,202111
Rother District Council,15/12/2021,091HOUSING,Housing and Community Services,20145,Maintenance Services,C1104,Derv,89.72,Allstar Business Solutions,Derv,2030586,202111
Rother District Council,15/12/2021,091HOUSING,Housing and Community Services,20145,Maintenance Services,C1104,Derv,84.51,Allstar Business Solutions,Derv,2030586,202111
Rother District Council,16/12/2021,091HOUSING,Housing and Community Services,20204,Housing Administration Account,A2203,Training,600.00,YMCA Downslink Group,Training,2030136,202110
Rother District Council,16/12/2021,041ENVIRON,Environmental Services,32143,EH Licenses and Registration R + W Partnership,D2513,Hired and Contracted services,354.17,Fairfield House Veterinary Surgery,Hired and contracted services - EnvH-Veterinary Services for Licens,2029795,202110
Rother District Council,16/12/2021,091HOUSING,Housing and Community Services,20114,Bexhill Parks & Open Spaces,D1201,Equipment & Materials,"4,170.00",Earth Anchors Ltd,Equipment & Materials - Parks Purchase of Seats/ Benches/Plaques,2031775,202112
Rother District Council,16/12/2021,101RESOURCES,Resources,20239,Computer Services,D2633,Computer Equipment,"3,876.80",Konica Minolta Business Solutions (UK) Ltd,Computer Equip Maintenance - Maintenance re Colourwave Printer,2029551,202110
Rother District Council,17/12/2021,091HOUSING,Housing and Community Services,20128,Public Conveniences,B1100,Repairs to Premises,154.96,Alfa Electric Ltd,Repairs to Premises - Repairs - Electrical Works,2029712,202110
Rother District Council,17/12/2021,091HOUSING,Housing and Community Services,20137,Car Parks,B1100,Repairs to Premises,656.47,Alfa Electric Ltd,Repairs to Premises - Repairs - Electrical Works,2029711,202110
Rother District Council,17/12/2021,091HOUSING,Housing and Community Services,20137,Car Parks,B1100,Repairs to Premises,861.83,Alfa Electric Ltd,Repairs to Premises - Repairs - Electrical Works,2030054,202110
Rother District Council,17/12/2021,041ENVIRON,Environmental Services,20280,Covid 19 RHSS Reopening High Streets Safely,D2513,Hired and Contracted services,"2,664.00",Graeme Blakemore trading as Adaption & Environmental Support Services,Hired and contracted services - Service fee paid,2029646,202110
Rother District Council,17/12/2021,999NOREPORT,"Acquisitions, Transformation and Regeneration",70725,Capital - Blackfriars,D2513,Hired and Contracted services,"1,900.00",Bevan Brittan LLP,Hired and contracted services - Legal Advice,2030048,202110
Rother District Council,17/12/2021,071STRAT,Strategy and Planning,20246,Planning Applications,D2513,Hired and Contracted services,24.00,H M Land Registry,Hired and contracted services - Land Registry-Planning,2030345,202111
Rother District Council,17/12/2021,041ENVIRON,Environmental Services,32144,EH Environmental Services Admin R + W Partnership,D2513,Hired and Contracted services,3.00,H M Land Registry,Hired and contracted services - Env H-Land Registry,2030345,202111
Rother District Council,17/12/2021,101RESOURCES,Resources,20216,Cost Of Collection,D2513,Hired and Contracted services,9.00,H M Land Registry,Hired and contracted services - Council Tax-Land Registry Enquiries,2030345,202111
Rother District Council,17/12/2021,031RESOURCES,Chief Executive & Corporate Core,20171,Human Resources,D1201,Equipment & Materials,43.95,Value Products Ltd,Equipment & Materials - First Aid Equipment,2031052,202112
Rother District Council,17/12/2021,041ENVIRON,Environmental Services,32144,EH Environmental Services Admin R + W Partnership,D2352,Clothing and Uniforms,20.00,MI Hub Ltd T/A Alexandra,Clothing and Uniforms - EnvH- Protective Clothing EnvHealth,2029743,202110
Rother District Council,20/12/2021,101RESOURCES,Resources,20242,Communications-Phones,D2621,Telephones,477.18,GTT EMEA Ltd,Telephones - Leased Line Rental,2029528,202110
Rother District Council,20/12/2021,091HOUSING,Housing and Community Services,20108,Bexhill Promenade & Foreshore,B1100,Repairs to Premises,10.65,Trade UK Account (Screwfix & B&Q),Repairs to Premises - Purchase of Materials - Build Maint,2029620,202110
Rother District Council,20/12/2021,031RESOURCES,Chief Executive & Corporate Core,20162,Electoral Registration,D2626,Postages,242.00,Royal Mail Group Ltd,Postages - Response Service-Royal Mail Chg,2029744,202110
Rother District Council,20/12/2021,091HOUSING,Housing and Community Services,20145,Maintenance Services,D1201,Equipment & Materials,12.49,Trade UK Account (Screwfix & B&Q),Equipment & Materials - Purchase of Tools,2029621,202110
Rother District Council,20/12/2021,081ACQUISIT,"Acquisitions, Transformation and Regeneration",20101,Cultural Development,D2926,District Events- Concessionary Use,"4,000.00",De La Warr Pavilion (Enterprise) Ltd,District Events-Concessionary - Use DLWP Community Concessionary Grant,2029765,202110
Rother District Council,20/12/2021,999NOREPORT,Environmental Services,70706,Capital - Disabled Facilities Grant,N1012,Capital Advances,"7,592.77",REDACTED PERSONAL DATA,Capital Advances Disabled Facilities Grant,2029713,202110
Rother District Council,20/12/2021,999NOREPORT,"Acquisitions, Transformation and Regeneration",70725,Capital - Blackfriars,N1004,Architects & Consultant Fees,"8,385.69",Baily Garner LLP,Architects & Consultant Fees Capital-Architect and Conslt Fees,2029600,202110
Rother District Council,20/12/2021,999NOREPORT,"Acquisitions, Transformation and Regeneration",70725,Capital - Blackfriars,N1004,Architects & Consultant Fees,"2,454.80",Baily Garner LLP,Architects & Consultant Fees Capital-Architect and Conslt Fees,2029601,202110
Rother District Council,20/12/2021,101RESOURCES,Resources,20216,Cost Of Collection,D2509,Consultants and Other Services,20.00,Stanford and Green Ltd,Consultants and Other Services,2029570,202110
Rother District Council,20/12/2021,091HOUSING,Housing and Community Services,20202,Rother Tenant Finder (prev Rother Letting Service),D2514,Accommodation Costs,700.00,Ark Residential Letting Ltd,Accommodation Costs,2029633,202110
Rother District Council,21/12/2021,031RESOURCES,Chief Executive & Corporate Core,20173,Administrative Offices - Town Hall,B1100,Repairs to Premises,8.74,Trade UK Account (Screwfix & B&Q),Repairs to Premises - Purchase of Materials - Build Maint,2029640,202110
Rother District Council,21/12/2021,081ACQUISIT,"Acquisitions, Transformation and Regeneration",20153,"Elva Business Centre, Bexhill",B1100,Repairs to Premises,350.00,Black Sheep Engineering Ltd,Repairs to Premises -  Building Surveys and Inspection,2029592,202110
Rother District Council,21/12/2021,101RESOURCES,Resources,20216,Cost Of Collection,D2626,Postages,640.13,DSI Billing Services Ltd,Postages - DSI Billing,2029607,202110
Rother District Council,21/12/2021,091HOUSING,Housing and Community Services,20206,UK Resettlement (Syrians),D2513,Hired and Contracted services,"1,771.57",REDACTED PERSONAL DATA,Hired and contracted services - Syrian-Education-Exempt VAT,2030059,202110
Rother District Council,21/12/2021,101RESOURCES,Resources,20239,Computer Services,D2633,Computer Equipment,94.13,Ricoh UK Limited,Computer Equip Maintenance - Maintenance re Colourwave Printer,2029740,202110
Rother District Council,21/12/2021,999NOREPORT,Environmental Services,70706,Capital - Disabled Facilities Grant,N1012,Capital Advances,"1,333.36",Peabody South East Ltd,Capital Advances Disabled Facilities Grant,2029706,202110
Rother District Council,22/12/2021,031RESOURCES,Chief Executive & Corporate Core,20178,Corporate Training,A2203,Training,287.50,Solace,Training,2029741,202110
Rother District Council,22/12/2021,091HOUSING,Housing and Community Services,20128,Public Conveniences,B2422,Sewerage,208.38,Scottish Water Business Stream Limited,Sewerage - Sewerage Charges,2029630,202110
Rother District Council,22/12/2021,101RESOURCES,Resources,20240,Printing Services,D2417,Photocopy Paper by external suppliers,61.24,Canon (UK) Ltd,Photocopy Paper by external supplier - Wide Format Consumables,2029632,202110
Rother District Council,22/12/2021,999NOREPORT,"Acquisitions, Transformation and Regeneration",70725,Capital - Blackfriars,N1002,Land & Property fees,"1,369.50",Bevan Brittan LLP,Land & Property fees Capital-Land and Propty - Fees Etc.,2029654,202110
Rother District Council,22/12/2021,999NOREPORT,"Acquisitions, Transformation and Regeneration",70725,Capital - Blackfriars,N1002,Land & Property fees,312.00,Bevan Brittan LLP,Land & Property fees Capital-Land and Propty - Fees Etc.,2029655,202110
Rother District Council,22/12/2021,081ACQUISIT,"Acquisitions, Transformation and Regeneration",20308,Amherst Road,B2202,Gas,378.23,Laser Energy Buying Group (Kent County Council Commercial Services),Gas - Gas Charges,2031275,202112
Rother District Council,22/12/2021,031RESOURCES,Chief Executive & Corporate Core,20176,Administrative Offices - Print Room,B2202,Gas,121.98,Laser Energy Buying Group (Kent County Council Commercial Services),Gas - Gas Charges,2031275,202112
Rother District Council,22/12/2021,031RESOURCES,Chief Executive & Corporate Core,20173,Administrative Offices - Town Hall,B2202,Gas,"1,085.59",Laser Energy Buying Group (Kent County Council Commercial Services),Gas - Gas Charges,2031275,202112
Rother District Council,22/12/2021,091HOUSING,Housing and Community Services,20137,Car Parks,D1201,Equipment & Materials,10.00,Flowbird Smart City UK Ltd,Equipment & Materials - Carriage/Handling Charge,2029645,202110
Rother District Council,22/12/2021,101RESOURCES,Resources,20240,Printing Services,D1201,Equipment & Materials,9.95,Canon (UK) Ltd,Equipment & Materials - Carriage/Handling Charge,2029632,202110
Rother District Council,22/12/2021,091HOUSING,Housing and Community Services,20137,Car Parks,D1201,Equipment & Materials,81.00,Flowbird Smart City UK Ltd,Equipment & Materials - Car Parks various,2029645,202110
Rother District Council,22/12/2021,091HOUSING,Housing and Community Services,20107,Camber Beach & Foreshore,B2201,Electricity,138.06,Laser Energy Buying Group (Kent County Council Commercial Services),Electricity - Electricity Charges,2031169,202112
Rother District Council,22/12/2021,091HOUSING,Housing and Community Services,20108,Bexhill Promenade & Foreshore,B2201,Electricity,56.10,Laser Energy Buying Group (Kent County Council Commercial Services),Electricity - Electricity Charges,2031169,202112
Rother District Council,22/12/2021,091HOUSING,Housing and Community Services,20108,Bexhill Promenade & Foreshore,B2201,Electricity,65.27,Laser Energy Buying Group (Kent County Council Commercial Services),Electricity - Electricity Charges,2031169,202112
Rother District Council,22/12/2021,091HOUSING,Housing and Community Services,20108,Bexhill Promenade & Foreshore,B2201,Electricity,35.11,Laser Energy Buying Group (Kent County Council Commercial Services),Electricity - Electricity Charges,2031169,202112
Rother District Council,22/12/2021,091HOUSING,Housing and Community Services,20108,Bexhill Promenade & Foreshore,B2201,Electricity,12.70,Laser Energy Buying Group (Kent County Council Commercial Services),Electricity - Electricity Charges,2031169,202112
Rother District Council,22/12/2021,091HOUSING,Housing and Community Services,20108,Bexhill Promenade & Foreshore,B2201,Electricity,12.71,Laser Energy Buying Group (Kent County Council Commercial Services),Electricity - Electricity Charges,2031169,202112
Rother District Council,22/12/2021,091HOUSING,Housing and Community Services,20108,Bexhill Promenade & Foreshore,B2201,Electricity,27.01,Laser Energy Buying Group (Kent County Council Commercial Services),Electricity - Electricity Charges,2031169,202112
Rother District Council,22/12/2021,091HOUSING,Housing and Community Services,20108,Bexhill Promenade & Foreshore,B2201,Electricity,11.85,Laser Energy Buying Group (Kent County Council Commercial Services),Electricity - Electricity Charges,2031169,202112
Rother District Council,22/12/2021,091HOUSING,Housing and Community Services,20108,Bexhill Promenade & Foreshore,B2201,Electricity,11.86,Laser Energy Buying Group (Kent County Council Commercial Services),Electricity - Electricity Charges,2031169,202112
Rother District Council,22/12/2021,091HOUSING,Housing and Community Services,20108,Bexhill Promenade & Foreshore,B2201,Electricity,-25.72,Laser Energy Buying Group (Kent County Council Commercial Services),Electricity - Electricity Charges,2031169,202112
Rother District Council,22/12/2021,091HOUSING,Housing and Community Services,20108,Bexhill Promenade & Foreshore,B2201,Electricity,-159.87,Laser Energy Buying Group (Kent County Council Commercial Services),Electricity - Electricity Charges,2031169,202112
Rother District Council,22/12/2021,091HOUSING,Housing and Community Services,20108,Bexhill Promenade & Foreshore,B2201,Electricity,34.50,Laser Energy Buying Group (Kent County Council Commercial Services),Electricity - Electricity Charges,2031169,202112
Rother District Council,22/12/2021,091HOUSING,Housing and Community Services,20108,Bexhill Promenade & Foreshore,B2201,Electricity,43.79,Laser Energy Buying Group (Kent County Council Commercial Services),Electricity - Electricity Charges,2031169,202112
Rother District Council,22/12/2021,091HOUSING,Housing and Community Services,20108,Bexhill Promenade & Foreshore,B2201,Electricity,24.38,Laser Energy Buying Group (Kent County Council Commercial Services),Electricity - Electricity Charges,2031169,202112
Rother District Council,22/12/2021,091HOUSING,Housing and Community Services,20114,Bexhill Parks & Open Spaces,B2201,Electricity,26.41,Laser Energy Buying Group (Kent County Council Commercial Services),Electricity - Electricity Charges,2031169,202112
Rother District Council,22/12/2021,091HOUSING,Housing and Community Services,20114,Bexhill Parks & Open Spaces,B2201,Electricity,32.44,Laser Energy Buying Group (Kent County Council Commercial Services),Electricity - Electricity Charges,2031169,202112
Rother District Council,22/12/2021,091HOUSING,Housing and Community Services,20114,Bexhill Parks & Open Spaces,B2201,Electricity,29.79,Laser Energy Buying Group (Kent County Council Commercial Services),Electricity - Electricity Charges,2031169,202112
Rother District Council,22/12/2021,091HOUSING,Housing and Community Services,20114,Bexhill Parks & Open Spaces,B2201,Electricity,34.14,Laser Energy Buying Group (Kent County Council Commercial Services),Electricity - Electricity Charges,2031169,202112
Rother District Council,22/12/2021,091HOUSING,Housing and Community Services,20114,Bexhill Parks & Open Spaces,B2201,Electricity,129.97,Laser Energy Buying Group (Kent County Council Commercial Services),Electricity - Electricity Charges,2031169,202112
Rother District Council,22/12/2021,091HOUSING,Housing and Community Services,20114,Bexhill Parks & Open Spaces,B2201,Electricity,209.68,Laser Energy Buying Group (Kent County Council Commercial Services),Electricity - Electricity Charges,2031169,202112
Rother District Council,22/12/2021,091HOUSING,Housing and Community Services,20114,Bexhill Parks & Open Spaces,B2201,Electricity,24.82,Laser Energy Buying Group (Kent County Council Commercial Services),Electricity - Electricity Charges,2031169,202112
Rother District Council,22/12/2021,091HOUSING,Housing and Community Services,20114,Bexhill Parks & Open Spaces,B2201,Electricity,28.38,Laser Energy Buying Group (Kent County Council Commercial Services),Electricity - Electricity Charges,2031169,202112
Rother District Council,22/12/2021,091HOUSING,Housing and Community Services,20114,Bexhill Parks & Open Spaces,B2201,Electricity,28.38,Laser Energy Buying Group (Kent County Council Commercial Services),Electricity - Electricity Charges,2031169,202112
Rother District Council,22/12/2021,091HOUSING,Housing and Community Services,20125,Coast Protection,B2201,Electricity,678.66,Laser Energy Buying Group (Kent County Council Commercial Services),Electricity - Electricity Charges,2031169,202112
Rother District Council,22/12/2021,091HOUSING,Housing and Community Services,20123,Cemeteries,B2201,Electricity,63.06,Laser Energy Buying Group (Kent County Council Commercial Services),Electricity - Electricity Charges,2031169,202112
Rother District Council,22/12/2021,091HOUSING,Housing and Community Services,20115,Rye Area Parks & Gardens,B2201,Electricity,18.21,Laser Energy Buying Group (Kent County Council Commercial Services),Electricity - Electricity Charges,2031169,202112
Rother District Council,22/12/2021,091HOUSING,Housing and Community Services,20115,Rye Area Parks & Gardens,B2201,Electricity,28.85,Laser Energy Buying Group (Kent County Council Commercial Services),Electricity - Electricity Charges,2031169,202112
Rother District Council,22/12/2021,091HOUSING,Housing and Community Services,20115,Rye Area Parks & Gardens,B2201,Electricity,18.07,Laser Energy Buying Group (Kent County Council Commercial Services),Electricity - Electricity Charges,2031169,202112
Rother District Council,22/12/2021,091HOUSING,Housing and Community Services,20115,Rye Area Parks & Gardens,B2201,Electricity,26.87,Laser Energy Buying Group (Kent County Council Commercial Services),Electricity - Electricity Charges,2031169,202112
Rother District Council,22/12/2021,091HOUSING,Housing and Community Services,20125,Coast Protection,B2201,Electricity,705.79,Laser Energy Buying Group (Kent County Council Commercial Services),Electricity - Electricity Charges,2031169,202112
Rother District Council,22/12/2021,081ACQUISIT,"Acquisitions, Transformation and Regeneration",20151,Udimore Workshops,B2201,Electricity,25.47,Laser Energy Buying Group (Kent County Council Commercial Services),Electricity - Electricity Charges,2031169,202112
Rother District Council,22/12/2021,081ACQUISIT,"Acquisitions, Transformation and Regeneration",20104,Ancient Monuments & Gazebo,B2201,Electricity,28.66,Laser Energy Buying Group (Kent County Council Commercial Services),Electricity - Electricity Charges,2031169,202112
Rother District Council,22/12/2021,081ACQUISIT,"Acquisitions, Transformation and Regeneration",20104,Ancient Monuments & Gazebo,B2201,Electricity,26.87,Laser Energy Buying Group (Kent County Council Commercial Services),Electricity - Electricity Charges,2031169,202112
Rother District Council,22/12/2021,091HOUSING,Housing and Community Services,20137,Car Parks,B2201,Electricity,39.24,Laser Energy Buying Group (Kent County Council Commercial Services),Electricity - Electricity Charges,2031169,202112
Rother District Council,22/12/2021,091HOUSING,Housing and Community Services,20128,Public Conveniences,B2201,Electricity,131.71,Laser Energy Buying Group (Kent County Council Commercial Services),Electricity - Electricity Charges,2031169,202112
Rother District Council,22/12/2021,091HOUSING,Housing and Community Services,20128,Public Conveniences,B2201,Electricity,144.00,Laser Energy Buying Group (Kent County Council Commercial Services),Electricity - Electricity Charges,2031169,202112
Rother District Council,22/12/2021,081ACQUISIT,"Acquisitions, Transformation and Regeneration",20150,Peasmarsh Workshops,B2201,Electricity,30.65,Laser Energy Buying Group (Kent County Council Commercial Services),Electricity - Electricity Charges,2031169,202112
Rother District Council,22/12/2021,091HOUSING,Housing and Community Services,20128,Public Conveniences,B2201,Electricity,53.93,Laser Energy Buying Group (Kent County Council Commercial Services),Electricity - Electricity Charges,2031169,202112
Rother District Council,22/12/2021,091HOUSING,Housing and Community Services,20128,Public Conveniences,B2201,Electricity,79.50,Laser Energy Buying Group (Kent County Council Commercial Services),Electricity - Electricity Charges,2031169,202112
Rother District Council,22/12/2021,091HOUSING,Housing and Community Services,20128,Public Conveniences,B2201,Electricity,29.04,Laser Energy Buying Group (Kent County Council Commercial Services),Electricity - Electricity Charges,2031169,202112
Rother District Council,22/12/2021,091HOUSING,Housing and Community Services,20128,Public Conveniences,B2201,Electricity,45.58,Laser Energy Buying Group (Kent County Council Commercial Services),Electricity - Electricity Charges,2031169,202112
Rother District Council,22/12/2021,091HOUSING,Housing and Community Services,20128,Public Conveniences,B2201,Electricity,31.31,Laser Energy Buying Group (Kent County Council Commercial Services),Electricity - Electricity Charges,2031169,202112
Rother District Council,22/12/2021,091HOUSING,Housing and Community Services,20137,Car Parks,B2201,Electricity,38.87,Laser Energy Buying Group (Kent County Council Commercial Services),Electricity - Electricity Charges,2031169,202112
Rother District Council,22/12/2021,091HOUSING,Housing and Community Services,20128,Public Conveniences,B2201,Electricity,67.97,Laser Energy Buying Group (Kent County Council Commercial Services),Electricity - Electricity Charges,2031169,202112
Rother District Council,22/12/2021,091HOUSING,Housing and Community Services,20128,Public Conveniences,B2201,Electricity,46.43,Laser Energy Buying Group (Kent County Council Commercial Services),Electricity - Electricity Charges,2031169,202112
Rother District Council,22/12/2021,091HOUSING,Housing and Community Services,20128,Public Conveniences,B2201,Electricity,34.68,Laser Energy Buying Group (Kent County Council Commercial Services),Electricity - Electricity Charges,2031169,202112
Rother District Council,22/12/2021,091HOUSING,Housing and Community Services,20128,Public Conveniences,B2201,Electricity,38.87,Laser Energy Buying Group (Kent County Council Commercial Services),Electricity - Electricity Charges,2031169,202112
Rother District Council,22/12/2021,091HOUSING,Housing and Community Services,20128,Public Conveniences,B2201,Electricity,39.24,Laser Energy Buying Group (Kent County Council Commercial Services),Electricity - Electricity Charges,2031169,202112
Rother District Council,22/12/2021,091HOUSING,Housing and Community Services,20128,Public Conveniences,B2201,Electricity,31.50,Laser Energy Buying Group (Kent County Council Commercial Services),Electricity - Electricity Charges,2031169,202112
Rother District Council,22/12/2021,081ACQUISIT,"Acquisitions, Transformation and Regeneration",20148,Misc Land & Buildings,B2201,Electricity,81.01,Laser Energy Buying Group (Kent County Council Commercial Services),Electricity - Electricity Charges,2031169,202112
Rother District Council,22/12/2021,091HOUSING,Housing and Community Services,20128,Public Conveniences,B2201,Electricity,6.60,Laser Energy Buying Group (Kent County Council Commercial Services),Electricity - Electricity Charges,2031169,202112
Rother District Council,22/12/2021,081ACQUISIT,"Acquisitions, Transformation and Regeneration",20148,Misc Land & Buildings,B2201,Electricity,18.20,Laser Energy Buying Group (Kent County Council Commercial Services),Electricity - Electricity Charges,2031169,202112
Rother District Council,22/12/2021,081ACQUISIT,"Acquisitions, Transformation and Regeneration",20154,Committee Property Account,B2201,Electricity,18.41,Laser Energy Buying Group (Kent County Council Commercial Services),Electricity - Electricity Charges,2031169,202112
Rother District Council,22/12/2021,081ACQUISIT,"Acquisitions, Transformation and Regeneration",20154,Committee Property Account,B2201,Electricity,18.40,Laser Energy Buying Group (Kent County Council Commercial Services),Electricity - Electricity Charges,2031169,202112
Rother District Council,22/12/2021,081ACQUISIT,"Acquisitions, Transformation and Regeneration",20154,Committee Property Account,B2201,Electricity,18.40,Laser Energy Buying Group (Kent County Council Commercial Services),Electricity - Electricity Charges,2031169,202112
Rother District Council,22/12/2021,081ACQUISIT,"Acquisitions, Transformation and Regeneration",20154,Committee Property Account,B2201,Electricity,18.40,Laser Energy Buying Group (Kent County Council Commercial Services),Electricity - Electricity Charges,2031169,202112
Rother District Council,22/12/2021,091HOUSING,Housing and Community Services,20128,Public Conveniences,B2201,Electricity,37.92,Laser Energy Buying Group (Kent County Council Commercial Services),Electricity - Electricity Charges,2031169,202112
Rother District Council,22/12/2021,091HOUSING,Housing and Community Services,20128,Public Conveniences,B2201,Electricity,82.04,Laser Energy Buying Group (Kent County Council Commercial Services),Electricity - Electricity Charges,2031169,202112
Rother District Council,22/12/2021,081ACQUISIT,"Acquisitions, Transformation and Regeneration",20154,Committee Property Account,B2201,Electricity,25.41,Laser Energy Buying Group (Kent County Council Commercial Services),Electricity - Electricity Charges,2031169,202112
Rother District Council,22/12/2021,081ACQUISIT,"Acquisitions, Transformation and Regeneration",20154,Committee Property Account,B2201,Electricity,25.41,Laser Energy Buying Group (Kent County Council Commercial Services),Electricity - Electricity Charges,2031169,202112
Rother District Council,22/12/2021,081ACQUISIT,"Acquisitions, Transformation and Regeneration",20154,Committee Property Account,B2201,Electricity,25.41,Laser Energy Buying Group (Kent County Council Commercial Services),Electricity - Electricity Charges,2031169,202112
Rother District Council,22/12/2021,081ACQUISIT,"Acquisitions, Transformation and Regeneration",20154,Committee Property Account,B2201,Electricity,25.41,Laser Energy Buying Group (Kent County Council Commercial Services),Electricity - Electricity Charges,2031169,202112
Rother District Council,22/12/2021,081ACQUISIT,"Acquisitions, Transformation and Regeneration",20154,Committee Property Account,B2201,Electricity,"1,143.36",Laser Energy Buying Group (Kent County Council Commercial Services),Electricity - Electricity Charges,2031169,202112
Rother District Council,22/12/2021,091HOUSING,Housing and Community Services,20128,Public Conveniences,B2201,Electricity,45.67,Laser Energy Buying Group (Kent County Council Commercial Services),Electricity - Electricity Charges,2031169,202112
Rother District Council,22/12/2021,091HOUSING,Housing and Community Services,20128,Public Conveniences,B2201,Electricity,50.77,Laser Energy Buying Group (Kent County Council Commercial Services),Electricity - Electricity Charges,2031169,202112
Rother District Council,22/12/2021,081ACQUISIT,"Acquisitions, Transformation and Regeneration",20154,Committee Property Account,B2201,Electricity,27.02,Laser Energy Buying Group (Kent County Council Commercial Services),Electricity - Electricity Charges,2031169,202112
Rother District Council,22/12/2021,081ACQUISIT,"Acquisitions, Transformation and Regeneration",20154,Committee Property Account,B2201,Electricity,27.02,Laser Energy Buying Group (Kent County Council Commercial Services),Electricity - Electricity Charges,2031169,202112
Rother District Council,22/12/2021,081ACQUISIT,"Acquisitions, Transformation and Regeneration",20154,Committee Property Account,B2201,Electricity,27.02,Laser Energy Buying Group (Kent County Council Commercial Services),Electricity - Electricity Charges,2031169,202112
Rother District Council,22/12/2021,081ACQUISIT,"Acquisitions, Transformation and Regeneration",20154,Committee Property Account,B2201,Electricity,23.70,Laser Energy Buying Group (Kent County Council Commercial Services),Electricity - Electricity Charges,2031169,202112
Rother District Council,22/12/2021,081ACQUISIT,"Acquisitions, Transformation and Regeneration",20154,Committee Property Account,B2201,Electricity,23.71,Laser Energy Buying Group (Kent County Council Commercial Services),Electricity - Electricity Charges,2031169,202112
Rother District Council,22/12/2021,081ACQUISIT,"Acquisitions, Transformation and Regeneration",20154,Committee Property Account,B2201,Electricity,23.70,Laser Energy Buying Group (Kent County Council Commercial Services),Electricity - Electricity Charges,2031169,202112
Rother District Council,22/12/2021,081ACQUISIT,"Acquisitions, Transformation and Regeneration",20154,Committee Property Account,B2201,Electricity,23.71,Laser Energy Buying Group (Kent County Council Commercial Services),Electricity - Electricity Charges,2031169,202112
Rother District Council,22/12/2021,081ACQUISIT,"Acquisitions, Transformation and Regeneration",20154,Committee Property Account,B2201,Electricity,"1,066.82",Laser Energy Buying Group (Kent County Council Commercial Services),Electricity - Electricity Charges,2031169,202112
Rother District Council,22/12/2021,091HOUSING,Housing and Community Services,20128,Public Conveniences,B2201,Electricity,40.27,Laser Energy Buying Group (Kent County Council Commercial Services),Electricity - Electricity Charges,2031169,202112
Rother District Council,22/12/2021,091HOUSING,Housing and Community Services,20128,Public Conveniences,B2201,Electricity,53.80,Laser Energy Buying Group (Kent County Council Commercial Services),Electricity - Electricity Charges,2031169,202112
Rother District Council,22/12/2021,091HOUSING,Housing and Community Services,20128,Public Conveniences,B2201,Electricity,32.10,Laser Energy Buying Group (Kent County Council Commercial Services),Electricity - Electricity Charges,2031169,202112
Rother District Council,22/12/2021,091HOUSING,Housing and Community Services,20128,Public Conveniences,B2201,Electricity,111.56,Laser Energy Buying Group (Kent County Council Commercial Services),Electricity - Electricity Charges,2031169,202112
Rother District Council,22/12/2021,091HOUSING,Housing and Community Services,20128,Public Conveniences,B2201,Electricity,88.67,Laser Energy Buying Group (Kent County Council Commercial Services),Electricity - Electricity Charges,2031169,202112
Rother District Council,22/12/2021,091HOUSING,Housing and Community Services,20128,Public Conveniences,B2201,Electricity,29.14,Laser Energy Buying Group (Kent County Council Commercial Services),Electricity - Electricity Charges,2031169,202112
Rother District Council,22/12/2021,091HOUSING,Housing and Community Services,20128,Public Conveniences,B2201,Electricity,47.28,Laser Energy Buying Group (Kent County Council Commercial Services),Electricity - Electricity Charges,2031169,202112
Rother District Council,22/12/2021,091HOUSING,Housing and Community Services,20128,Public Conveniences,B2201,Electricity,42.07,Laser Energy Buying Group (Kent County Council Commercial Services),Electricity - Electricity Charges,2031169,202112
Rother District Council,22/12/2021,091HOUSING,Housing and Community Services,20128,Public Conveniences,B2201,Electricity,32.54,Laser Energy Buying Group (Kent County Council Commercial Services),Electricity - Electricity Charges,2031169,202112
Rother District Council,22/12/2021,091HOUSING,Housing and Community Services,20128,Public Conveniences,B2201,Electricity,35.19,Laser Energy Buying Group (Kent County Council Commercial Services),Electricity - Electricity Charges,2031169,202112
Rother District Council,22/12/2021,091HOUSING,Housing and Community Services,20128,Public Conveniences,B2201,Electricity,37.08,Laser Energy Buying Group (Kent County Council Commercial Services),Electricity - Electricity Charges,2031169,202112
Rother District Council,22/12/2021,091HOUSING,Housing and Community Services,20128,Public Conveniences,B2201,Electricity,57.22,Laser Energy Buying Group (Kent County Council Commercial Services),Electricity - Electricity Charges,2031169,202112
Rother District Council,22/12/2021,091HOUSING,Housing and Community Services,20128,Public Conveniences,B2201,Electricity,93.84,Laser Energy Buying Group (Kent County Council Commercial Services),Electricity - Electricity Charges,2031169,202112
Rother District Council,22/12/2021,091HOUSING,Housing and Community Services,20128,Public Conveniences,B2201,Electricity,41.42,Laser Energy Buying Group (Kent County Council Commercial Services),Electricity - Electricity Charges,2031169,202112
Rother District Council,22/12/2021,091HOUSING,Housing and Community Services,20137,Car Parks,B2201,Electricity,37.64,Laser Energy Buying Group (Kent County Council Commercial Services),Electricity - Electricity Charges,2031169,202112
Rother District Council,22/12/2021,091HOUSING,Housing and Community Services,20137,Car Parks,B2201,Electricity,32.73,Laser Energy Buying Group (Kent County Council Commercial Services),Electricity - Electricity Charges,2031169,202112
Rother District Council,22/12/2021,081ACQUISIT,"Acquisitions, Transformation and Regeneration",20150,Peasmarsh Workshops,B2201,Electricity,28.86,Laser Energy Buying Group (Kent County Council Commercial Services),Electricity - Electricity Charges,2031169,202112
Rother District Council,22/12/2021,091HOUSING,Housing and Community Services,20128,Public Conveniences,B2201,Electricity,108.84,Laser Energy Buying Group (Kent County Council Commercial Services),Electricity - Electricity Charges,2031169,202112
Rother District Council,22/12/2021,091HOUSING,Housing and Community Services,20128,Public Conveniences,B2201,Electricity,57.11,Laser Energy Buying Group (Kent County Council Commercial Services),Electricity - Electricity Charges,2031169,202112
Rother District Council,22/12/2021,091HOUSING,Housing and Community Services,20128,Public Conveniences,B2201,Electricity,53.52,Laser Energy Buying Group (Kent County Council Commercial Services),Electricity - Electricity Charges,2031169,202112
Rother District Council,22/12/2021,091HOUSING,Housing and Community Services,20128,Public Conveniences,B2201,Electricity,127.64,Laser Energy Buying Group (Kent County Council Commercial Services),Electricity - Electricity Charges,2031169,202112
Rother District Council,22/12/2021,081ACQUISIT,"Acquisitions, Transformation and Regeneration",20148,Misc Land & Buildings,B2201,Electricity,32.35,Laser Energy Buying Group (Kent County Council Commercial Services),Electricity - Electricity Charges,2031169,202112
Rother District Council,22/12/2021,091HOUSING,Housing and Community Services,20128,Public Conveniences,B2201,Electricity,35.56,Laser Energy Buying Group (Kent County Council Commercial Services),Electricity - Electricity Charges,2031169,202112
Rother District Council,22/12/2021,091HOUSING,Housing and Community Services,20128,Public Conveniences,B2201,Electricity,47.66,Laser Energy Buying Group (Kent County Council Commercial Services),Electricity - Electricity Charges,2031169,202112
Rother District Council,22/12/2021,091HOUSING,Housing and Community Services,20128,Public Conveniences,B2201,Electricity,68.73,Laser Energy Buying Group (Kent County Council Commercial Services),Electricity - Electricity Charges,2031169,202112
Rother District Council,22/12/2021,091HOUSING,Housing and Community Services,20128,Public Conveniences,B2201,Electricity,6.21,Laser Energy Buying Group (Kent County Council Commercial Services),Electricity - Electricity Charges,2031169,202112
Rother District Council,22/12/2021,081ACQUISIT,"Acquisitions, Transformation and Regeneration",20148,Misc Land & Buildings,B2201,Electricity,18.06,Laser Energy Buying Group (Kent County Council Commercial Services),Electricity - Electricity Charges,2031169,202112
Rother District Council,22/12/2021,091HOUSING,Housing and Community Services,20128,Public Conveniences,B2201,Electricity,222.20,Laser Energy Buying Group (Kent County Council Commercial Services),Electricity - Electricity Charges,2031169,202112
Rother District Council,22/12/2021,081ACQUISIT,"Acquisitions, Transformation and Regeneration",20154,Committee Property Account,B2201,Electricity,19.51,Laser Energy Buying Group (Kent County Council Commercial Services),Electricity - Electricity Charges,2031169,202112
Rother District Council,22/12/2021,081ACQUISIT,"Acquisitions, Transformation and Regeneration",20154,Committee Property Account,B2201,Electricity,19.51,Laser Energy Buying Group (Kent County Council Commercial Services),Electricity - Electricity Charges,2031169,202112
Rother District Council,22/12/2021,081ACQUISIT,"Acquisitions, Transformation and Regeneration",20154,Committee Property Account,B2201,Electricity,19.51,Laser Energy Buying Group (Kent County Council Commercial Services),Electricity - Electricity Charges,2031169,202112
Rother District Council,22/12/2021,081ACQUISIT,"Acquisitions, Transformation and Regeneration",20154,Committee Property Account,B2201,Electricity,19.51,Laser Energy Buying Group (Kent County Council Commercial Services),Electricity - Electricity Charges,2031169,202112
Rother District Council,22/12/2021,081ACQUISIT,"Acquisitions, Transformation and Regeneration",20153,"Elva Business Centre, Bexhill",B2201,Electricity,"1,187.32",Laser Energy Buying Group (Kent County Council Commercial Services),Electricity - Electricity Charges,2031169,202112
Rother District Council,22/12/2021,081ACQUISIT,"Acquisitions, Transformation and Regeneration",20153,"Elva Business Centre, Bexhill",B2201,Electricity,"1,365.97",Laser Energy Buying Group (Kent County Council Commercial Services),Electricity - Electricity Charges,2031169,202112
Rother District Council,22/12/2021,091HOUSING,Housing and Community Services,20128,Public Conveniences,B2201,Electricity,32.63,Laser Energy Buying Group (Kent County Council Commercial Services),Electricity - Electricity Charges,2031169,202112
Rother District Council,22/12/2021,091HOUSING,Housing and Community Services,20128,Public Conveniences,B2201,Electricity,30.65,Laser Energy Buying Group (Kent County Council Commercial Services),Electricity - Electricity Charges,2031169,202112
Rother District Council,22/12/2021,091HOUSING,Housing and Community Services,20128,Public Conveniences,B2201,Electricity,51.86,Laser Energy Buying Group (Kent County Council Commercial Services),Electricity - Electricity Charges,2031169,202112
Rother District Council,22/12/2021,081ACQUISIT,"Acquisitions, Transformation and Regeneration",20154,Committee Property Account,B2201,Electricity,24.37,Laser Energy Buying Group (Kent County Council Commercial Services),Electricity - Electricity Charges,2031169,202112
Rother District Council,22/12/2021,081ACQUISIT,"Acquisitions, Transformation and Regeneration",20154,Committee Property Account,B2201,Electricity,24.37,Laser Energy Buying Group (Kent County Council Commercial Services),Electricity - Electricity Charges,2031169,202112
Rother District Council,22/12/2021,081ACQUISIT,"Acquisitions, Transformation and Regeneration",20154,Committee Property Account,B2201,Electricity,24.38,Laser Energy Buying Group (Kent County Council Commercial Services),Electricity - Electricity Charges,2031169,202112
Rother District Council,22/12/2021,091HOUSING,Housing and Community Services,20128,Public Conveniences,B2201,Electricity,56.25,Laser Energy Buying Group (Kent County Council Commercial Services),Electricity - Electricity Charges,2031169,202112
Rother District Council,22/12/2021,081ACQUISIT,"Acquisitions, Transformation and Regeneration",20151,Udimore Workshops,B2201,Electricity,28.66,Laser Energy Buying Group (Kent County Council Commercial Services),Electricity - Electricity Charges,2031169,202112
Rother District Council,22/12/2021,081ACQUISIT,"Acquisitions, Transformation and Regeneration",20151,Udimore Workshops,B2201,Electricity,26.87,Laser Energy Buying Group (Kent County Council Commercial Services),Electricity - Electricity Charges,2031169,202112
Rother District Council,22/12/2021,091HOUSING,Housing and Community Services,20128,Public Conveniences,B2201,Electricity,25.47,Laser Energy Buying Group (Kent County Council Commercial Services),Electricity - Electricity Charges,2031169,202112
Rother District Council,22/12/2021,091HOUSING,Housing and Community Services,20128,Public Conveniences,B2201,Electricity,28.66,Laser Energy Buying Group (Kent County Council Commercial Services),Electricity - Electricity Charges,2031169,202112
Rother District Council,22/12/2021,091HOUSING,Housing and Community Services,20128,Public Conveniences,B2201,Electricity,26.87,Laser Energy Buying Group (Kent County Council Commercial Services),Electricity - Electricity Charges,2031169,202112
Rother District Council,22/12/2021,091HOUSING,Housing and Community Services,20128,Public Conveniences,B2201,Electricity,26.87,Laser Energy Buying Group (Kent County Council Commercial Services),Electricity - Electricity Charges,2031169,202112
Rother District Council,22/12/2021,091HOUSING,Housing and Community Services,20128,Public Conveniences,B2201,Electricity,30.93,Laser Energy Buying Group (Kent County Council Commercial Services),Electricity - Electricity Charges,2031169,202112
Rother District Council,22/12/2021,031RESOURCES,Chief Executive & Corporate Core,20177,Administrative Offices - Rear Depot,B2201,Electricity,36.79,Laser Energy Buying Group (Kent County Council Commercial Services),Electricity - Electricity Charges,2031169,202112
Rother District Council,22/12/2021,031RESOURCES,Chief Executive & Corporate Core,20176,Administrative Offices - Print Room,B2201,Electricity,197.05,Laser Energy Buying Group (Kent County Council Commercial Services),Electricity - Electricity Charges,2031169,202112
Rother District Council,22/12/2021,031RESOURCES,Chief Executive & Corporate Core,20177,Administrative Offices - Rear Depot,B2201,Electricity,35.75,Laser Energy Buying Group (Kent County Council Commercial Services),Electricity - Electricity Charges,2031169,202112
Rother District Council,22/12/2021,031RESOURCES,Chief Executive & Corporate Core,20176,Administrative Offices - Print Room,B2201,Electricity,184.86,Laser Energy Buying Group (Kent County Council Commercial Services),Electricity - Electricity Charges,2031169,202112
Rother District Council,22/12/2021,031RESOURCES,Chief Executive & Corporate Core,20173,Administrative Offices - Town Hall,B2201,Electricity,"2,650.97",Laser Energy Buying Group (Kent County Council Commercial Services),Electricity - Electricity Charges,2031169,202112
Rother District Council,22/12/2021,031RESOURCES,Chief Executive & Corporate Core,20173,Administrative Offices - Town Hall,B2201,Electricity,"2,911.77",Laser Energy Buying Group (Kent County Council Commercial Services),Electricity - Electricity Charges,2031169,202112
Rother District Council,22/12/2021,091HOUSING,Housing and Community Services,20145,Maintenance Services,B2201,Electricity,229.15,Laser Energy Buying Group (Kent County Council Commercial Services),Electricity - Electricity Charges,2031169,202112
Rother District Council,22/12/2021,091HOUSING,Housing and Community Services,20145,Maintenance Services,B2201,Electricity,546.22,Laser Energy Buying Group (Kent County Council Commercial Services),Electricity - Electricity Charges,2031169,202112
Rother District Council,22/12/2021,091HOUSING,Housing and Community Services,20261,"TA Purchases (prev - 41 Jameson Mews, Bexhill on Sea)",B2201,Electricity,76.71,Laser Energy Buying Group (Kent County Council Commercial Services),Electricity - Electricity Charges,2031169,202112
Rother District Council,22/12/2021,091HOUSING,Housing and Community Services,20200,Housing Needs - HB (Housing Benefit),D2509,Consultants and Other Services,4.41,NEC Software Solutions UK Ltd,Consultants and other services - Consultants Fees,2029639,202110
Rother District Council,22/12/2021,101RESOURCES,Resources,20216,Cost Of Collection,D2509,Consultants and Other Services,32.43,NEC Software Solutions UK Ltd,Consultants and other services - Consultants Fees,2029639,202110
Rother District Council,22/12/2021,101RESOURCES,Resources,20217,Reliefs & Benefits-Council Tax Benefit,D2509,Consultants and Other Services,52.30,NEC Software Solutions UK Ltd,Consultants and other services - Consultants Fees,2029639,202110
Rother District Council,22/12/2021,999NOREPORT,"Acquisitions, Transformation and Regeneration",70725,Capital - Blackfriars,N1002,Land & Property fees,280.50,Bevan Brittan LLP,Land & Property fees,2030455,202111
Rother District Council,23/12/2021,081ACQUISIT,"Acquisitions, Transformation and Regeneration",20154,Committee Property Account,B2422,Sewerage,11.34,Scottish Water Business Stream Limited,Sewerage - Sewerage Charges,2029692,202110
Rother District Council,23/12/2021,081ACQUISIT,"Acquisitions, Transformation and Regeneration",20154,Committee Property Account,B2422,Sewerage,7.50,Scottish Water Business Stream Limited,Sewerage - Sewerage Charges,2029694,202110
Rother District Council,23/12/2021,031RESOURCES,Chief Executive & Corporate Core,20176,Administrative Offices - Print Room,B1100,Repairs to Premises,11.82,Trade UK Account (Screwfix & B&Q),Repairs to Premises - Purchase of Materials - Build Maint,2029663,202110
Rother District Council,23/12/2021,081ACQUISIT,"Acquisitions, Transformation and Regeneration",20308,Amherst Road,D2513,Hired and Contracted services,23.43,Safe Water.io,Hired and contracted services - Legionella Sampling and Monitoring,2030162,202111
Rother District Council,23/12/2021,091HOUSING,Housing and Community Services,20102,Rother Museum Services,D2513,Hired and Contracted services,15.62,Safe Water.io,Hired and contracted services - Legionella Sampling and Monitoring,2030162,202111
Rother District Council,23/12/2021,091HOUSING,Housing and Community Services,20114,Bexhill Parks & Open Spaces,D2513,Hired and Contracted services,23.43,Safe Water.io,Hired and contracted services - Legionella Sampling and Monitoring,2030162,202111
Rother District Council,23/12/2021,091HOUSING,Housing and Community Services,20114,Bexhill Parks & Open Spaces,D2513,Hired and Contracted services,15.62,Safe Water.io,Hired and contracted services - Legionella Sampling and Monitoring,2030162,202111
Rother District Council,23/12/2021,091HOUSING,Housing and Community Services,20128,Public Conveniences,D2513,Hired and Contracted services,437.36,Safe Water.io,Hired and contracted services - Legionella Sampling and Monitoring,2030162,202111
Rother District Council,23/12/2021,091HOUSING,Housing and Community Services,20123,Cemeteries,D2513,Hired and Contracted services,15.62,Safe Water.io,Hired and contracted services - Legionella Sampling and Monitoring,2030162,202111
Rother District Council,23/12/2021,081ACQUISIT,"Acquisitions, Transformation and Regeneration",20153,"Elva Business Centre, Bexhill",D2513,Hired and Contracted services,15.62,Safe Water.io,Hired and contracted services - Legionella Sampling and Monitoring,2030162,202111
Rother District Council,23/12/2021,031RESOURCES,Chief Executive & Corporate Core,20173,Administrative Offices - Town Hall,D2513,Hired and Contracted services,23.43,Safe Water.io,Hired and contracted services - Legionella Sampling and Monitoring,2030162,202111
Rother District Council,23/12/2021,031RESOURCES,Chief Executive & Corporate Core,20176,Administrative Offices - Print Room,D2513,Hired and Contracted services,15.62,Safe Water.io,Hired and contracted services - Legionella Sampling and Monitoring,2030162,202111
Rother District Council,23/12/2021,081ACQUISIT,"Acquisitions, Transformation and Regeneration",20144,Property Management,D2513,Hired and Contracted services,6.00,H M Land Registry,Hired and contracted services - Land Registry-Property Management,2030347,202111
Rother District Council,23/12/2021,041ENVIRON,Environmental Services,32144,EH Environmental Services Admin R + W Partnership,D2513,Hired and Contracted services,6.00,H M Land Registry,Hired and contracted services - Env H-Land Registry,2030347,202111
Rother District Council,23/12/2021,041ENVIRON,Environmental Services,32134,EH Pollution R + W Partnership,D2513,Hired and Contracted services,3.00,H M Land Registry,Hired and contracted services - Env H-Land Registry,2030347,202111
Rother District Council,23/12/2021,071STRAT,Strategy and Planning,20258,BC Dangerous Structures H+R Partnership,D2513,Hired and Contracted services,3.00,H M Land Registry,Hired and contracted services - Env H-Land Registry,2030347,202111
Rother District Council,23/12/2021,101RESOURCES,Resources,20216,Cost Of Collection,D2513,Hired and Contracted services,39.00,H M Land Registry,Hired and contracted services - Council Tax-Land Registry Enquiries,2030347,202111
Rother District Council,23/12/2021,999NOREPORT,Chief Executive & Corporate Core,70759,Capital - Town Hall Renaissance Project,N1004,Architects & Consultant Fees,950.00,Robinson Low Francis LLP,Architects & Consultant Fees Capital-Architect and Conslt Fees,2029647,202110
Rother District Council,23/12/2021,999NOREPORT,Chief Executive & Corporate Core,70759,Capital - Town Hall Renaissance Project,N1004,Architects & Consultant Fees,"7,100.00",Robinson Low Francis LLP,Architects & Consultant Fees Capital-Architect and Conslt Fees,2029648,202110
Rother District Council,23/12/2021,091HOUSING,Housing and Community Services,20206,UK Resettlement (Syrians),D2513,Hired and Contracted services,"10,141.52",Hastings Borough Council,Hired and Contracted services,2029657,202110
Rother District Council,23/12/2021,091HOUSING,Housing and Community Services,20206,UK Resettlement (Syrians),D2513,Hired and Contracted services,"10,343.17",Hastings Borough Council,Hired and Contracted services,2029657,202110
Rother District Council,23/12/2021,091HOUSING,Housing and Community Services,20206,UK Resettlement (Syrians),D2513,Hired and Contracted services,"10,654.02",Hastings Borough Council,Hired and Contracted services,2029657,202110
Rother District Council,23/12/2021,091HOUSING,Housing and Community Services,20206,UK Resettlement (Syrians),D2513,Hired and Contracted services,"10,838.48",Hastings Borough Council,Hired and Contracted services,2029657,202110
Rother District Council,23/12/2021,091HOUSING,Housing and Community Services,20206,UK Resettlement (Syrians),D2513,Hired and Contracted services,"9,039.49",Hastings Borough Council,Hired and Contracted services,2029657,202110
Rother District Council,23/12/2021,091HOUSING,Housing and Community Services,20206,UK Resettlement (Syrians),D2513,Hired and Contracted services,"9,916.00",Hastings Borough Council,Hired and Contracted services,2029658,202111
Rother District Council,23/12/2021,091HOUSING,Housing and Community Services,20206,UK Resettlement (Syrians),D2513,Hired and Contracted services,"9,149.35",Hastings Borough Council,Hired and Contracted services,2029658,202111
Rother District Council,23/12/2021,091HOUSING,Housing and Community Services,20206,UK Resettlement (Syrians),D2981,Professional Services - Translation,"4,859.42",Hastings Borough Council,Professional Services - Translation,2029658,202111
Rother District Council,23/12/2021,091HOUSING,Housing and Community Services,20206,UK Resettlement (Syrians),D2513,Hired and Contracted services,180.00,Hastings Borough Council,Hired and Contracted services,2029658,202111
Rother District Council,23/12/2021,091HOUSING,Housing and Community Services,20206,UK Resettlement (Syrians),D2513,Hired and Contracted services,180.00,Hastings Borough Council,Hired and Contracted services,2029658,202111
Rother District Council,23/12/2021,091HOUSING,Housing and Community Services,20206,UK Resettlement (Syrians),D2513,Hired and Contracted services,150.00,Hastings Borough Council,Hired and Contracted services,2029658,202111
Rother District Council,23/12/2021,091HOUSING,Housing and Community Services,20206,UK Resettlement (Syrians),D2513,Hired and Contracted services,"3,282.00",Hastings Borough Council,Hired and Contracted services,2029658,202111
Rother District Council,23/12/2021,091HOUSING,Housing and Community Services,20206,UK Resettlement (Syrians),D2513,Hired and Contracted services,553.48,Hastings Borough Council,Hired and Contracted services,2029658,202111
Rother District Council,24/12/2021,091HOUSING,Housing and Community Services,20128,Public Conveniences,B2422,Sewerage,151.46,Scottish Water Business Stream Limited,Sewerage - Sewerage Charges,2029691,202110
Rother District Council,24/12/2021,091HOUSING,Housing and Community Services,20261,"TA Purchases (prev - 41 Jameson Mews, Bexhill on Sea)",B2201,Electricity,65.31,British Gas Business (600 Accounts only),Electricity - Electricity Charges,2029659,202110
Rother District Council,24/12/2021,091HOUSING,Housing and Community Services,20200,Housing Needs - HB (Housing Benefit),D2514,Accommodation Costs,332.50,Lillybank Homes Ltd,Accommodation Costs,2029660,202110
Rother District Council,24/12/2021,091HOUSING,Housing and Community Services,20200,Housing Needs - HB (Housing Benefit),D2514,Accommodation Costs,367.50,Lillybank Homes Ltd,Accommodation Costs,2029660,202110
Rother District Council,24/12/2021,091HOUSING,Housing and Community Services,20200,Housing Needs - HB (Housing Benefit),D2514,Accommodation Costs,455.00,Lillybank Homes Ltd,Accommodation Costs,2029660,202110
Rother District Council,24/12/2021,091HOUSING,Housing and Community Services,20200,Housing Needs - HB (Housing Benefit),D2514,Accommodation Costs,455.00,Lillybank Homes Ltd,Accommodation Costs,2029660,202110
Rother District Council,24/12/2021,091HOUSING,Housing and Community Services,20200,Housing Needs - HB (Housing Benefit),D2514,Accommodation Costs,24.99,Lillybank Homes Ltd,Accommodation Costs,2029660,202110
Rother District Council,24/12/2021,091HOUSING,Housing and Community Services,20200,Housing Needs - HB (Housing Benefit),D2514,Accommodation Costs,455.00,Lillybank Homes Ltd,Accommodation Costs,2029660,202110
Rother District Council,24/12/2021,091HOUSING,Housing and Community Services,20200,Housing Needs - HB (Housing Benefit),D2514,Accommodation Costs,413.00,Lillybank Homes Ltd,Accommodation Costs,2029660,202110
Rother District Council,24/12/2021,091HOUSING,Housing and Community Services,20200,Housing Needs - HB (Housing Benefit),D2514,Accommodation Costs,507.50,Lillybank Homes Ltd,Accommodation Costs,2029660,202110
Rother District Council,24/12/2021,091HOUSING,Housing and Community Services,20200,Housing Needs - HB (Housing Benefit),D2514,Accommodation Costs,480.00,Lillybank Homes Ltd,Accommodation Costs,2029660,202110
Rother District Council,24/12/2021,091HOUSING,Housing and Community Services,20200,Housing Needs - HB (Housing Benefit),D2514,Accommodation Costs,480.00,Lillybank Homes Ltd,Accommodation Costs,2029660,202110
Rother District Council,24/12/2021,091HOUSING,Housing and Community Services,20200,Housing Needs - HB (Housing Benefit),D2514,Accommodation Costs,480.00,Lillybank Homes Ltd,Accommodation Costs,2029660,202110
Rother District Council,24/12/2021,091HOUSING,Housing and Community Services,20200,Housing Needs - HB (Housing Benefit),D2514,Accommodation Costs,480.00,Lillybank Homes Ltd,Accommodation Costs,2029660,202110
Rother District Council,24/12/2021,091HOUSING,Housing and Community Services,20329,Rough Sleeping Initiative,D2514,Accommodation Costs,413.00,Lillybank Homes Ltd,Accommodation Costs,2029660,202110
Rother District Council,25/12/2021,031RESOURCES,Chief Executive & Corporate Core,20171,Human Resources,A2203,Training,818.10,Croner Group Ltd,Training,2030344,202111
Rother District Council,25/12/2021,031RESOURCES,Chief Executive & Corporate Core,20171,Human Resources,A2203,Training,101.81,Croner Group Ltd,Training,2030344,202111
Rother District Council,25/12/2021,101RESOURCES,Resources,20242,Communications-Phones,D2621,Telephones,267.68,GTT EMEA Ltd,Telephones - Leased Line Rental,2029664,202110
Rother District Council,27/12/2021,091HOUSING,Housing and Community Services,20133,Refuse Collection,E2302,Third party payment private contractors,43.80,Data Shredding Services Ltd,Third party payment private contractors - Commercial Waste Collection Contract,2029669,202110
Rother District Council,27/12/2021,101RESOURCES,Resources,20242,Communications-Phones,D2621,Telephones,305.87,BT British Telecommunications plc,Telephones - BT-Rental-General,2029745,202110
Rother District Council,27/12/2021,031RESOURCES,Chief Executive & Corporate Core,20171,Human Resources,D2922,Subscriptions,26.54,Agora Business Publications LLP,Subscriptions - Subscription to Organisations,2030011,202110
Rother District Council,27/12/2021,091HOUSING,Housing and Community Services,20200,Housing Needs - HB (Housing Benefit),D2514,Accommodation Costs,385.00,Savoy Court Hotel Ltd,Accommodation Costs,2029670,202110
Rother District Council,27/12/2021,091HOUSING,Housing and Community Services,20200,Housing Needs - HB (Housing Benefit),D2514,Accommodation Costs,315.00,Savoy Court Hotel Ltd,Accommodation Costs,2029673,202110
Rother District Council,27/12/2021,091HOUSING,Housing and Community Services,20200,Housing Needs - HB (Housing Benefit),D2514,Accommodation Costs,252.00,Savoy Court Hotel Ltd,Accommodation Costs,2029674,202110
Rother District Council,27/12/2021,091HOUSING,Housing and Community Services,20200,Housing Needs - HB (Housing Benefit),D2514,Accommodation Costs,63.00,Savoy Court Hotel Ltd,Accommodation Costs,2029674,202110
Rother District Council,27/12/2021,091HOUSING,Housing and Community Services,20200,Housing Needs - HB (Housing Benefit),D2514,Accommodation Costs,308.00,Savoy Court Hotel Ltd,Accommodation Costs,2029676,202110
Rother District Council,27/12/2021,091HOUSING,Housing and Community Services,20200,Housing Needs - HB (Housing Benefit),D2514,Accommodation Costs,77.00,Savoy Court Hotel Ltd,Accommodation Costs,2029676,202110
Rother District Council,27/12/2021,091HOUSING,Housing and Community Services,20200,Housing Needs - HB (Housing Benefit),D2514,Accommodation Costs,415.00,Dale Saunders (Holdings) Ltd,Accommodation Costs,2029715,202110
Rother District Council,27/12/2021,091HOUSING,Housing and Community Services,20200,Housing Needs - HB (Housing Benefit),D2514,Accommodation Costs,415.00,Dale Saunders (Holdings) Ltd,Accommodation Costs,2029715,202110
Rother District Council,27/12/2021,091HOUSING,Housing and Community Services,20200,Housing Needs - HB (Housing Benefit),D2514,Accommodation Costs,415.00,Dale Saunders (Holdings) Ltd,Accommodation Costs,2029715,202110
Rother District Council,27/12/2021,091HOUSING,Housing and Community Services,20200,Housing Needs - HB (Housing Benefit),D2514,Accommodation Costs,415.00,Dale Saunders (Holdings) Ltd,Accommodation Costs,2029715,202110
Rother District Council,27/12/2021,091HOUSING,Housing and Community Services,20329,Rough Sleeping Initiative,D2514,Accommodation Costs,252.00,Savoy Court Hotel Ltd,Accommodation Costs,2029671,202110
Rother District Council,27/12/2021,091HOUSING,Housing and Community Services,20329,Rough Sleeping Initiative,D2514,Accommodation Costs,63.00,Savoy Court Hotel Ltd,Accommodation Costs,2029671,202110
Rother District Council,27/12/2021,091HOUSING,Housing and Community Services,20329,Rough Sleeping Initiative,D2514,Accommodation Costs,315.00,Savoy Court Hotel Ltd,Accommodation Costs,2029672,202110
Rother District Council,27/12/2021,091HOUSING,Housing and Community Services,20329,Rough Sleeping Initiative,D2514,Accommodation Costs,252.00,Savoy Court Hotel Ltd,Accommodation Costs,2029675,202110
Rother District Council,27/12/2021,091HOUSING,Housing and Community Services,20329,Rough Sleeping Initiative,D2514,Accommodation Costs,63.00,Savoy Court Hotel Ltd,Accommodation Costs,2029675,202110
Rother District Council,27/12/2021,091HOUSING,Housing and Community Services,20329,Rough Sleeping Initiative,D2514,Accommodation Costs,371.00,BNM Parkstone LLP T/A Fourways Residential,Accommodation Costs,2029714,202110
Rother District Council,27/12/2021,091HOUSING,Housing and Community Services,20200,Housing Needs - HB (Housing Benefit),D2514,Accommodation Costs,184.50,SDR Living Ltd,Accommodation Costs,2029937,202110
Rother District Council,27/12/2021,091HOUSING,Housing and Community Services,20329,Rough Sleeping Initiative,D2514,Accommodation Costs,123.00,SDR Living Ltd,Accommodation Costs,2029937,202110
Rother District Council,27/12/2021,091HOUSING,Housing and Community Services,20329,Rough Sleeping Initiative,D2514,Accommodation Costs,354.00,SDR Living Ltd,Accommodation Costs,2029937,202110
Rother District Council,27/12/2021,091HOUSING,Housing and Community Services,20200,Housing Needs - HB (Housing Benefit),D2514,Accommodation Costs,123.00,SDR Living Ltd,Accommodation Costs,2029937,202110
Rother District Council,27/12/2021,091HOUSING,Housing and Community Services,20329,Rough Sleeping Initiative,D2514,Accommodation Costs,37.80,SDR Living Ltd,Accommodation Costs,2029937,202110
Rother District Council,27/12/2021,091HOUSING,Housing and Community Services,20329,Rough Sleeping Initiative,D2514,Accommodation Costs,151.20,SDR Living Ltd,Accommodation Costs,2029937,202110
Rother District Council,27/12/2021,091HOUSING,Housing and Community Services,20200,Housing Needs - HB (Housing Benefit),D2514,Accommodation Costs,86.10,SDR Living Ltd,Accommodation Costs,2029937,202110
Rother District Council,27/12/2021,091HOUSING,Housing and Community Services,20200,Housing Needs - HB (Housing Benefit),D2514,Accommodation Costs,344.40,SDR Living Ltd,Accommodation Costs,2029937,202110
Rother District Council,27/12/2021,091HOUSING,Housing and Community Services,20200,Housing Needs - HB (Housing Benefit),D2514,Accommodation Costs,86.10,SDR Living Ltd,Accommodation Costs,2029937,202110
Rother District Council,27/12/2021,091HOUSING,Housing and Community Services,20200,Housing Needs - HB (Housing Benefit),D2514,Accommodation Costs,344.40,SDR Living Ltd,Accommodation Costs,2029937,202110
Rother District Council,27/12/2021,091HOUSING,Housing and Community Services,20200,Housing Needs - HB (Housing Benefit),D2514,Accommodation Costs,86.10,SDR Living Ltd,Accommodation Costs,2029937,202110
Rother District Council,27/12/2021,091HOUSING,Housing and Community Services,20329,Rough Sleeping Initiative,D2514,Accommodation Costs,344.40,SDR Living Ltd,Accommodation Costs,2029937,202110
Rother District Council,27/12/2021,091HOUSING,Housing and Community Services,20200,Housing Needs - HB (Housing Benefit),D2514,Accommodation Costs,69.30,SDR Living Ltd,Accommodation Costs,2029937,202110
Rother District Council,27/12/2021,091HOUSING,Housing and Community Services,20200,Housing Needs - HB (Housing Benefit),D2514,Accommodation Costs,277.20,SDR Living Ltd,Accommodation Costs,2029937,202110
Rother District Council,27/12/2021,091HOUSING,Housing and Community Services,20200,Housing Needs - HB (Housing Benefit),D2514,Accommodation Costs,33.30,SDR Living Ltd,Accommodation Costs,2029937,202110
Rother District Council,27/12/2021,091HOUSING,Housing and Community Services,20200,Housing Needs - HB (Housing Benefit),D2514,Accommodation Costs,133.20,SDR Living Ltd,Accommodation Costs,2029937,202110
Rother District Council,27/12/2021,091HOUSING,Housing and Community Services,20200,Housing Needs - HB (Housing Benefit),D2514,Accommodation Costs,86.10,SDR Living Ltd,Accommodation Costs,2029937,202110
Rother District Council,27/12/2021,091HOUSING,Housing and Community Services,20200,Housing Needs - HB (Housing Benefit),D2514,Accommodation Costs,344.40,SDR Living Ltd,Accommodation Costs,2029937,202110
Rother District Council,27/12/2021,091HOUSING,Housing and Community Services,20200,Housing Needs - HB (Housing Benefit),D2514,Accommodation Costs,69.30,SDR Living Ltd,Accommodation Costs,2029937,202110
Rother District Council,27/12/2021,091HOUSING,Housing and Community Services,20200,Housing Needs - HB (Housing Benefit),D2514,Accommodation Costs,277.20,SDR Living Ltd,Accommodation Costs,2029937,202110
Rother District Council,27/12/2021,091HOUSING,Housing and Community Services,20329,Rough Sleeping Initiative,D2514,Accommodation Costs,37.80,SDR Living Ltd,Accommodation Costs,2029937,202110
Rother District Council,27/12/2021,091HOUSING,Housing and Community Services,20329,Rough Sleeping Initiative,D2514,Accommodation Costs,151.20,SDR Living Ltd,Accommodation Costs,2029937,202110
Rother District Council,27/12/2021,091HOUSING,Housing and Community Services,20329,Rough Sleeping Initiative,D2514,Accommodation Costs,69.30,SDR Living Ltd,Accommodation Costs,2029937,202110
Rother District Council,27/12/2021,091HOUSING,Housing and Community Services,20329,Rough Sleeping Initiative,D2514,Accommodation Costs,277.20,SDR Living Ltd,Accommodation Costs,2029937,202110
Rother District Council,29/12/2021,101RESOURCES,Resources,20240,Printing Services,E2302,Third party payment private contractors,721.22,Sonar Technologies Ltd,Third party payment private contractors - Maintenance Contracts-Printing,2029665,202110
Rother District Council,29/12/2021,101RESOURCES,Resources,20242,Communications-Phones,D2622,Mobile Phones,780.78,Telefonica UK Ltd,Mobile Phones - Purchase of mobile phones,2029688,202110
Rother District Council,29/12/2021,071STRAT,Strategy and Planning,20246,Planning Applications,D2509,Consultants and Other Services,"2,360.00","G2V Recruitment Group Ltd, t/a Vivid Resourcing",Consultants and other services - Consultants Fees,2029689,202110
Rother District Council,29/12/2021,091HOUSING,Housing and Community Services,20204,Housing Administration Account,A1110,Agency Staff,799.00,"G2V Recruitment Group Ltd, t/a Vivid Resourcing",Agency Staff,2029690,202110
Rother District Council,29/12/2021,091HOUSING,Housing and Community Services,20204,Housing Administration Account,A1110,Agency Staff,"1,023.00","G2V Recruitment Group Ltd, t/a Vivid Resourcing",Agency Staff,2029695,202110
Rother District Council,30/12/2021,071STRAT,Strategy and Planning,20246,Planning Applications,D2519,Statutory Advertising,396.50,JPIMedia Publishing Ltd,Statutory Advertising - Planadv - Rye+Battle Observer,2029681,202110
Rother District Council,30/12/2021,091HOUSING,Housing and Community Services,20114,Bexhill Parks & Open Spaces,B2422,Sewerage,235.00,CountyClean Environmental Services Ltd,Sewerage Parks- Emptying of Cesspit,2029809,202110
Rother District Council,30/12/2021,091HOUSING,Housing and Community Services,20128,Public Conveniences,B2422,Sewerage,330.00,CountyClean Environmental Services Ltd,Sewerage - Sewage/Cesspool Emptying,2030065,202110
Rother District Council,30/12/2021,091HOUSING,Housing and Community Services,20108,Bexhill Promenade & Foreshore,B1100,Repairs to Premises,139.90,Alfa Electric Ltd,Repairs to Premises - Repairs - Electrical Works,2029984,202110
Rother District Council,30/12/2021,101RESOURCES,Resources,20216,Cost Of Collection,D2626,Postages,748.49,DSI Billing Services Ltd,Postages - DSI Billing,2029684,202110
Rother District Council,30/12/2021,031RESOURCES,Chief Executive & Corporate Core,20171,Human Resources,D2513,Hired and Contracted services,42.45,Computershare Voucher Services,Hired and contracted services - Child Care Voucher Service Charge,2030615,202111
Rother District Council,30/12/2021,999NOREPORT,"Acquisitions, Transformation and Regeneration",70754,Capital - King Offa Residential Development Scheme,N1004,Architects & Consultant Fees,"1,082.75",HCUK Group Ltd,Architects & Consultant Fees Capital-Architect and Conslt Fees,2029737,202110
Rother District Council,30/12/2021,091HOUSING,Housing and Community Services,20200,Housing Needs - HB (Housing Benefit),D2514,Accommodation Costs,415.00,Lets 2 Share Limited,Accommodation Costs,2029686,202110
Rother District Council,30/12/2021,091HOUSING,Housing and Community Services,20200,Housing Needs - HB (Housing Benefit),D2514,Accommodation Costs,415.00,Lets 2 Share Limited,Accommodation Costs,2029686,202110
Rother District Council,30/12/2021,091HOUSING,Housing and Community Services,20200,Housing Needs - HB (Housing Benefit),D2514,Accommodation Costs,415.00,Lets 2 Share Limited,Accommodation Costs,2029686,202110
Rother District Council,30/12/2021,091HOUSING,Housing and Community Services,20200,Housing Needs - HB (Housing Benefit),D2514,Accommodation Costs,385.00,Lets 2 Share Limited,Accommodation Costs,2029686,202110
Rother District Council,30/12/2021,999NOREPORT,Resources,90000,Balance sheet all accounts,T1002,Childcare Vouchers,653.00,Computershare Voucher Services,Childcare Vouchers,2030615,202111
Rother District Council,31/12/2021,091HOUSING,Housing and Community Services,20133,Refuse Collection,E2302,Third party payment private contractors,12.67,CFH Docmail Ltd,Third party payment private contractors - Payments to Contractor,2029734,202110
Rother District Council,31/12/2021,091HOUSING,Housing and Community Services,20133,Refuse Collection,E2302,Third party payment private contractors,45.22,CFH Docmail Ltd,Third party payment private contractors - Payments to Contractor,2029747,202110
Rother District Council,31/12/2021,091HOUSING,Housing and Community Services,20133,Refuse Collection,E2302,Third party payment private contractors,349.91,Biffa Waste Services Ltd,Third party payment private contractors - Commercial Waste Collection Contract,2029717,202110
Rother District Council,31/12/2021,081ACQUISIT,"Acquisitions, Transformation and Regeneration",20267,Property Investment Strategy - 18-40 Beeching Road ( Land and Buildings),B2422,Sewerage,26.10,Scottish Water Business Stream Limited,Sewerage - Sewerage Charges,2029693,202110
Rother District Council,31/12/2021,091HOUSING,Housing and Community Services,20128,Public Conveniences,B2422,Sewerage,235.00,CountyClean Environmental Services Ltd,Sewerage - Sewage/Cesspool Emptying,2030195,202111
Rother District Council,31/12/2021,091HOUSING,Housing and Community Services,20137,Car Parks,B2422,Sewerage,235.00,CountyClean Environmental Services Ltd,Sewerage - Sewage/Cesspool Emptying,2030195,202111
Rother District Council,31/12/2021,081ACQUISIT,"Acquisitions, Transformation and Regeneration",20154,Committee Property Account,B2422,Sewerage,235.00,CountyClean Environmental Services Ltd,Sewerage - Sewage/Cesspool Emptying,2030195,202111
Rother District Council,31/12/2021,081ACQUISIT,"Acquisitions, Transformation and Regeneration",20154,Committee Property Account,B2422,Sewerage,155.00,CountyClean Environmental Services Ltd,Sewerage - Sewage/Cesspool Emptying,2030195,202111
Rother District Council,31/12/2021,091HOUSING,Housing and Community Services,20107,Camber Beach & Foreshore,B1100,Repairs to Premises,75.00,Culligan Water Limited,Repairs to Premises - Specified Repairs and Works listed,2029831,202110
Rother District Council,31/12/2021,081ACQUISIT,"Acquisitions, Transformation and Regeneration",20154,Committee Property Account,B1100,Repairs to Premises,289.15,Alfa Electric Ltd,Repairs to Premises - Repairs - Electrical Works,2029986,202110
Rother District Council,31/12/2021,081ACQUISIT,"Acquisitions, Transformation and Regeneration",20153,"Elva Business Centre, Bexhill",B1100,Repairs to Premises,154.56,Alfa Electric Ltd,Repairs to Premises - Repairs - Electrical Works,2029987,202110
Rother District Council,31/12/2021,091HOUSING,Housing and Community Services,20108,Bexhill Promenade & Foreshore,B1100,Repairs to Premises,124.80,Saint-Gobain Building Distribution Ltd t/a Jewson,Repairs to Premises - Purchase of Materials - Build Maint,2029951,202110
Rother District Council,31/12/2021,091HOUSING,Housing and Community Services,20137,Car Parks,B1100,Repairs to Premises,5.67,Rye Hire Ltd,Repairs to Premises - Purchase of Materials - Build Maint,2029770,202110
Rother District Council,31/12/2021,081ACQUISIT,"Acquisitions, Transformation and Regeneration",20153,"Elva Business Centre, Bexhill",B1100,Repairs to Premises,310.00,F E Philcox Ltd,Repairs to Premises - Purchase of Materials - Build Maint,2029882,202110
Rother District Council,31/12/2021,091HOUSING,Housing and Community Services,20261,"TA Purchases (prev - 41 Jameson Mews, Bexhill on Sea)",B1100,Repairs to Premises,68.42,C Brewer and Sons Ltd,Repairs to Premises - Purchase of Materials - Build Maint,2029859,202110
Rother District Council,31/12/2021,091HOUSING,Housing and Community Services,20128,Public Conveniences,B1100,Repairs to Premises,977.00,Specialist Hygiene Services Ltd,Repairs to Premises - Public Conveniences - Various repairs,2029803,202110
Rother District Council,31/12/2021,091HOUSING,Housing and Community Services,20114,Bexhill Parks & Open Spaces,B1100,Repairs to Premises,"4,020.00",Gristwood and Toms Limited,Repairs to Premises - Parks - Tree Works,2029917,202110
Rother District Council,31/12/2021,091HOUSING,Housing and Community Services,20116,Rural Open Spaces & Amenities,B1100,Repairs to Premises,"3,060.00",Gristwood and Toms Limited,Repairs to Premises - Parks - Tree Works,2030266,202111
Rother District Council,31/12/2021,091HOUSING,Housing and Community Services,20108,Bexhill Promenade & Foreshore,B1100,Repairs to Premises,141.60,Alfa Electric Ltd,Repairs to Premises - Electrical Installation,2029985,202110
Rother District Council,31/12/2021,091HOUSING,Housing and Community Services,20128,Public Conveniences,B1100,Repairs to Premises,175.00,CountyClean Environmental Services Ltd,Repairs to Premises - Cesspool Pumping station service/Call out,2030195,202111
Rother District Council,31/12/2021,091HOUSING,Housing and Community Services,20137,Car Parks,B1100,Repairs to Premises,175.00,CountyClean Environmental Services Ltd,Repairs to Premises - Cesspool Pumping station service/Call out,2030195,202111
Rother District Council,31/12/2021,081ACQUISIT,"Acquisitions, Transformation and Regeneration",20154,Committee Property Account,B1100,Repairs to Premises,175.00,CountyClean Environmental Services Ltd,Repairs to Premises - Cesspool Pumping station service/Call out,2030195,202111
Rother District Council,31/12/2021,091HOUSING,Housing and Community Services,20137,Car Parks,B1100,Repairs to Premises,967.00,Hailsham Roadway Construction Ltd,Repairs to Premises - Car Park Maintenance,2029874,202110
Rother District Council,31/12/2021,091HOUSING,Housing and Community Services,20128,Public Conveniences,D2520,Insurance,36.00,Zurich Insurance plc,Insurance - Excess on Liabilities,2029947,202110
Rother District Council,31/12/2021,091HOUSING,Housing and Community Services,20206,UK Resettlement (Syrians),D2513,Hired and Contracted services,264.10,247 Transport Solutions Ltd,Hired and contracted services - Syrian Resettlement Programme-Travel,2029720,202110
Rother District Council,31/12/2021,091HOUSING,Housing and Community Services,20108,Bexhill Promenade & Foreshore,D2513,Hired and Contracted services,100.00,Meridian Toilet Hire,Hired and contracted services - Service fee paid,2029718,202110
Rother District Council,31/12/2021,041ENVIRON,Environmental Services,32142,EH Taxi and Private Hire Licenses R + W Partnership,D2513,Hired and Contracted services,320.00,DBS The Disclosure and Barring Service,Hired and contracted services - Service fee paid,2029801,202110
Rother District Council,31/12/2021,041ENVIRON,Environmental Services,32143,EH Licenses and Registration R + W Partnership,D2513,Hired and Contracted services,6.57,Fairfield House Veterinary Surgery,Hired and contracted services - EnvH-Veterinary Services for Licens,2029909,202110
Rother District Council,31/12/2021,041ENVIRON,Environmental Services,32143,EH Licenses and Registration R + W Partnership,D2513,Hired and Contracted services,6.57,Fairfield House Veterinary Surgery,Hired and contracted services - EnvH-Veterinary Services for Licens,2029910,202110
Rother District Council,31/12/2021,041ENVIRON,Environmental Services,32143,EH Licenses and Registration R + W Partnership,D2513,Hired and Contracted services,5.32,Fairfield House Veterinary Surgery,Hired and contracted services - EnvH-Veterinary Services for Licens,2029911,202110
Rother District Council,31/12/2021,041ENVIRON,Environmental Services,32143,EH Licenses and Registration R + W Partnership,D2513,Hired and Contracted services,5.32,Fairfield House Veterinary Surgery,Hired and contracted services - EnvH-Veterinary Services for Licens,2029912,202110
Rother District Council,31/12/2021,041ENVIRON,Environmental Services,32143,EH Licenses and Registration R + W Partnership,D2513,Hired and Contracted services,6.57,Fairfield House Veterinary Surgery,Hired and contracted services - EnvH-Veterinary Services for Licens,2029913,202110
Rother District Council,31/12/2021,041ENVIRON,Environmental Services,32143,EH Licenses and Registration R + W Partnership,D2513,Hired and Contracted services,6.57,Fairfield House Veterinary Surgery,Hired and contracted services - EnvH-Veterinary Services for Licens,2029914,202110
Rother District Council,31/12/2021,041ENVIRON,Environmental Services,32143,EH Licenses and Registration R + W Partnership,D2513,Hired and Contracted services,6.57,Fairfield House Veterinary Surgery,Hired and contracted services - EnvH-Veterinary Services for Licens,2029915,202110
Rother District Council,31/12/2021,091HOUSING,Housing and Community Services,20137,Car Parks,D2513,Hired and Contracted services,"1,915.24",Jade Security Services Ltd,Hired and contracted services - Cash Security Fees-Car Parks,2029884,202110
Rother District Council,31/12/2021,101RESOURCES,Resources,20209,Corporate management,D2513,Hired and Contracted services,845.65,allpay.net Ltd,Hired and contracted services - Allpay Card/Rep/Let Chrg - Vatable,2030610,202111
Rother District Council,31/12/2021,101RESOURCES,Resources,20209,Corporate management,D2513,Hired and Contracted services,18.76,allpay.net Ltd,Hired and contracted services - Allpay Card/Rep/Let Chrg - Vatable,2030611,202111
Rother District Council,31/12/2021,101RESOURCES,Resources,20209,Corporate management,D2513,Hired and Contracted services,11.99,allpay.net Ltd,Hired and contracted services - Allpay Card/Rep/Let Chrg - Vatable,2030612,202111
Rother District Council,31/12/2021,101RESOURCES,Resources,20209,Corporate management,D2513,Hired and Contracted services,23.41,allpay.net Ltd,Hired and contracted services - Allpay Card/Rep/Let Chrg - Vatable,2030613,202111
Rother District Council,31/12/2021,101RESOURCES,Resources,20241,Stationery,D2420,General office supplies (Stationery purchased from ext suppliers),54.64,Lyreco UK Limited,General office supplies - Stationery (Stationery Services to buy ONLY),2029661,202110
Rother District Council,31/12/2021,101RESOURCES,Resources,20241,Stationery,D2420,General office supplies (Stationery purchased from ext suppliers),13.17,Lyreco UK Limited,General office supplies - Stationery (Stationery Services to buy ONLY),2029662,202110
Rother District Council,31/12/2021,091HOUSING,Housing and Community Services,20128,Public Conveniences,D1201,Equipment & Materials,57.00,Specialist Hygiene Services Ltd,Equipment & Materials - PCs Equipment,2029804,202110
Rother District Council,31/12/2021,041ENVIRON,Environmental Services,32136,EH Pest Control R + W Partnership,C1104,Derv,3.80,Allstar Business Solutions,Derv - Fuel Service fee payable on fuel cards,2030585,202111
Rother District Council,31/12/2021,091HOUSING,Housing and Community Services,20108,Bexhill Promenade & Foreshore,B2611,Contract cleaning,126.00,Abacus Main Ltd,Contract cleaning - Office Cleaning,2029940,202110
Rother District Council,31/12/2021,091HOUSING,Housing and Community Services,20138,Residual Highway Services,B2611,Contract cleaning,500.00,Abacus Main Ltd,Contract cleaning - Bus Shelter Cleaning Contract,2029941,202110
Rother District Council,31/12/2021,081ACQUISIT,"Acquisitions, Transformation and Regeneration",20266,Property Investment Strategy,D2509,Consultants and Other Services,660.00,John Long Planning Ltd,Consultants and other services - Consultants Fees,2029680,202110
Rother District Council,31/12/2021,101RESOURCES,Resources,20222,Accountancy,D2509,Consultants and Other Services,"2,400.00",Embridge Consulting (UK) Ltd,Consultants and other services - Consultants Fees,2029864,202110
Rother District Council,31/12/2021,999NOREPORT,"Acquisitions, Transformation and Regeneration",70736,Capital - 18-40 Beeching Close Refurbishment,N1003,Construction/Conversion,"26,678.99",Alfa Electric Ltd,Construction/Conversion Capital-Contract Payments - General,2029848,202110
Rother District Council,31/12/2021,101RESOURCES,Resources,20239,Computer Services,D2635,Computer Licences,100.00,LHS Locata (Housing Services) Ltd,Computer Licences - Advnce Pay Maint/Upgrading Software,2029863,202110
Rother District Council,31/12/2021,999NOREPORT,"Acquisitions, Transformation and Regeneration",70737,Capital � Barnhorn Green,N1004,Architects & Consultant Fees,"10,000.00",Primary Care Surveyors Ltd,Architects & Consultant Fees Capital-Architect and Conslt Fees,2029667,202110
Rother District Council,31/12/2021,999NOREPORT,Chief Executive & Corporate Core,70759,Capital - Town Hall Renaissance Project,N1004,Architects & Consultant Fees,290.00,Southern Testing Laboratories Limited,Architects & Consultant Fees Capital-Architect and Conslt Fees,2029800,202110
Rother District Council,31/12/2021,999NOREPORT,"Acquisitions, Transformation and Regeneration",70737,Capital � Barnhorn Green,N1004,Architects & Consultant Fees,"3,500.00",R H Partnership Architects Ltd,Architects & Consultant Fees Capital-Architect and Conslt Fees,2029860,202111
Rother District Council,31/12/2021,091HOUSING,Housing and Community Services,20200,Housing Needs - HB (Housing Benefit),D2514,Accommodation Costs,350.00,A A H Yahya T/A TAP Temporary Accommodation Providers Ltd,Accommodation Costs,2029678,202110
Rother District Council,31/12/2021,091HOUSING,Housing and Community Services,20200,Housing Needs - HB (Housing Benefit),D2514,Accommodation Costs,385.00,A A H Yahya T/A TAP Temporary Accommodation Providers Ltd,Accommodation Costs,2029678,202110
Rother District Council,31/12/2021,091HOUSING,Housing and Community Services,20200,Housing Needs - HB (Housing Benefit),D2514,Accommodation Costs,350.00,A A H Yahya T/A TAP Temporary Accommodation Providers Ltd,Accommodation Costs,2029678,202110
Rother District Council,31/12/2021,091HOUSING,Housing and Community Services,20200,Housing Needs - HB (Housing Benefit),D2514,Accommodation Costs,350.00,A A H Yahya T/A TAP Temporary Accommodation Providers Ltd,Accommodation Costs,2029679,202110
Rother District Council,31/12/2021,091HOUSING,Housing and Community Services,20200,Housing Needs - HB (Housing Benefit),D2514,Accommodation Costs,385.00,A A H Yahya T/A TAP Temporary Accommodation Providers Ltd,Accommodation Costs,2029679,202110
Rother District Council,31/12/2021,091HOUSING,Housing and Community Services,20200,Housing Needs - HB (Housing Benefit),D2514,Accommodation Costs,350.00,A A H Yahya T/A TAP Temporary Accommodation Providers Ltd,Accommodation Costs,2029679,202110
Rother District Council,31/12/2021,091HOUSING,Housing and Community Services,20200,Housing Needs - HB (Housing Benefit),D2514,Accommodation Costs,413.00,Lillybank Homes Ltd,Accommodation Costs,2029716,202110
Rother District Council,31/12/2021,091HOUSING,Housing and Community Services,20200,Housing Needs - HB (Housing Benefit),D2514,Accommodation Costs,332.50,Lillybank Homes Ltd,Accommodation Costs,2029716,202110
Rother District Council,31/12/2021,091HOUSING,Housing and Community Services,20200,Housing Needs - HB (Housing Benefit),D2514,Accommodation Costs,367.50,Lillybank Homes Ltd,Accommodation Costs,2029716,202110
Rother District Council,31/12/2021,091HOUSING,Housing and Community Services,20200,Housing Needs - HB (Housing Benefit),D2514,Accommodation Costs,455.00,Lillybank Homes Ltd,Accommodation Costs,2029716,202110
Rother District Council,31/12/2021,091HOUSING,Housing and Community Services,20200,Housing Needs - HB (Housing Benefit),D2514,Accommodation Costs,479.99,Lillybank Homes Ltd,Accommodation Costs,2029716,202110
Rother District Council,31/12/2021,091HOUSING,Housing and Community Services,20200,Housing Needs - HB (Housing Benefit),D2514,Accommodation Costs,455.00,Lillybank Homes Ltd,Accommodation Costs,2029716,202110
Rother District Council,31/12/2021,091HOUSING,Housing and Community Services,20200,Housing Needs - HB (Housing Benefit),D2514,Accommodation Costs,413.00,Lillybank Homes Ltd,Accommodation Costs,2029716,202110
Rother District Council,31/12/2021,091HOUSING,Housing and Community Services,20200,Housing Needs - HB (Housing Benefit),D2514,Accommodation Costs,507.50,Lillybank Homes Ltd,Accommodation Costs,2029716,202110
Rother District Council,31/12/2021,091HOUSING,Housing and Community Services,20200,Housing Needs - HB (Housing Benefit),D2514,Accommodation Costs,480.00,Lillybank Homes Ltd,Accommodation Costs,2029716,202110
Rother District Council,31/12/2021,091HOUSING,Housing and Community Services,20200,Housing Needs - HB (Housing Benefit),D2514,Accommodation Costs,480.00,Lillybank Homes Ltd,Accommodation Costs,2029716,202110
Rother District Council,31/12/2021,091HOUSING,Housing and Community Services,20200,Housing Needs - HB (Housing Benefit),D2514,Accommodation Costs,480.00,Lillybank Homes Ltd,Accommodation Costs,2029716,202110
Rother District Council,31/12/2021,091HOUSING,Housing and Community Services,20200,Housing Needs - HB (Housing Benefit),D2514,Accommodation Costs,480.00,Lillybank Homes Ltd,Accommodation Costs,2029716,202110
Rother District Council,31/12/2021,091HOUSING,Housing and Community Services,20200,Housing Needs - HB (Housing Benefit),D2513,Hired and Contracted services,32.24,247 Transport Solutions Ltd,Hired and Contracted services,2029719,202110
Rother District Council,31/12/2021,091HOUSING,Housing and Community Services,20200,Housing Needs - HB (Housing Benefit),D2514,Accommodation Costs,385.00,A A H Yahya T/A TAP Temporary Accommodation Providers Ltd,Accommodation Costs,2029772,202110
Rother District Council,31/12/2021,091HOUSING,Housing and Community Services,20200,Housing Needs - HB (Housing Benefit),D2514,Accommodation Costs,350.00,A A H Yahya T/A TAP Temporary Accommodation Providers Ltd,Accommodation Costs,2029772,202110
Rother District Council,31/12/2021,091HOUSING,Housing and Community Services,20200,Housing Needs - HB (Housing Benefit),D2514,Accommodation Costs,385.00,A A H Yahya T/A TAP Temporary Accommodation Providers Ltd,Accommodation Costs,2029772,202110
Rother District Council,31/12/2021,091HOUSING,Housing and Community Services,20200,Housing Needs - HB (Housing Benefit),D2514,Accommodation Costs,350.00,A A H Yahya T/A TAP Temporary Accommodation Providers Ltd,Accommodation Costs,2029772,202110
Rother District Council,31/12/2021,091HOUSING,Housing and Community Services,20200,Housing Needs - HB (Housing Benefit),D2514,Accommodation Costs,65.00,Solutions Accommodation Providers Ltd,Accommodation Costs,2029815,202110
Rother District Council,31/12/2021,091HOUSING,Housing and Community Services,20200,Housing Needs - HB (Housing Benefit),D2513,Hired and Contracted services,101.00,Town Taxis,Hired and Contracted services,2029827,202110
Rother District Council,31/12/2021,041ENVIRON,Environmental Services,32136,EH Pest Control R + W Partnership,C1104,Derv,47.50,Allstar Business Solutions,Derv,2030585,202111
Rother District Council,31/12/2021,041ENVIRON,Environmental Services,32136,EH Pest Control R + W Partnership,C1104,Derv,56.67,Allstar Business Solutions,Derv,2030585,202111
Rother District Council,31/12/2021,091HOUSING,Housing and Community Services,20329,Rough Sleeping Initiative,D2514,Accommodation Costs,385.00,A A H Yahya T/A TAP Temporary Accommodation Providers Ltd,Accommodation Costs,2029678,202110
Rother District Council,31/12/2021,091HOUSING,Housing and Community Services,20329,Rough Sleeping Initiative,D2514,Accommodation Costs,350.00,A A H Yahya T/A TAP Temporary Accommodation Providers Ltd,Accommodation Costs,2029678,202110
Rother District Council,31/12/2021,091HOUSING,Housing and Community Services,20329,Rough Sleeping Initiative,D2514,Accommodation Costs,165.00,A A H Yahya T/A TAP Temporary Accommodation Providers Ltd,Accommodation Costs,2029678,202110
Rother District Council,31/12/2021,091HOUSING,Housing and Community Services,20329,Rough Sleeping Initiative,D2514,Accommodation Costs,385.00,A A H Yahya T/A TAP Temporary Accommodation Providers Ltd,Accommodation Costs,2029679,202110
Rother District Council,31/12/2021,091HOUSING,Housing and Community Services,20329,Rough Sleeping Initiative,D2514,Accommodation Costs,350.00,A A H Yahya T/A TAP Temporary Accommodation Providers Ltd,Accommodation Costs,2029679,202110
Rother District Council,31/12/2021,091HOUSING,Housing and Community Services,20329,Rough Sleeping Initiative,D2514,Accommodation Costs,385.00,A A H Yahya T/A TAP Temporary Accommodation Providers Ltd,Accommodation Costs,2029679,202110
Rother District Council,31/12/2021,091HOUSING,Housing and Community Services,20329,Rough Sleeping Initiative,D2514,Accommodation Costs,350.00,A A H Yahya T/A TAP Temporary Accommodation Providers Ltd,Accommodation Costs,2029772,202110
Rother District Council,31/12/2021,091HOUSING,Housing and Community Services,20329,Rough Sleeping Initiative,D2514,Accommodation Costs,385.00,A A H Yahya T/A TAP Temporary Accommodation Providers Ltd,Accommodation Costs,2029772,202110
Rother District Council,31/12/2021,091HOUSING,Housing and Community Services,20204,Housing Administration Account,D2635,Computer Licences,"2,625.00",LHS Locata (Housing Services) Ltd,Computer Licences,2029966,202110
Rother District Council,31/12/2021,091HOUSING,Housing and Community Services,20145,Maintenance Services,C1104,Derv,85.21,Allstar Business Solutions,Derv,2030585,202111
Rother District Council,01/01/2022,091HOUSING,Housing and Community Services,20145,Maintenance Services,C1101,Vehicle Repairs & Servicing,90.00,Asset Monitoring Solutions Group (UK) Ltd,Vehicle Repairs & Servicing,2029883,202110
Rother District Council,01/01/2022,101RESOURCES,Resources,20242,Communications-Phones,D2621,Telephones,662.28,KCOM Group Plc,Telephones - KCOM Smartnumber Charges,2029779,202111
Rother District Council,01/01/2022,101RESOURCES,Resources,20242,Communications-Phones,D2621,Telephones,26.00,KCOM Group Plc,Telephones - KCOM Smartnumber Charges,2029780,202111
Rother District Council,01/01/2022,101RESOURCES,Resources,20242,Communications-Phones,D2621,Telephones,"9,916.14",KCOM Group Plc,Telephones - KCOM Smartnumber Charges,2029781,202110
Rother District Council,01/01/2022,091HOUSING,Housing and Community Services,20107,Camber Beach & Foreshore,D2621,Telephones,52.95,Beaming Ltd,Telephones - Broadband Connection,2030583,202111
Rother District Council,01/01/2022,091HOUSING,Housing and Community Services,20108,Bexhill Promenade & Foreshore,D2621,Telephones,14.68,Commtel Ltd T/A Teleguard,Repairs to Premises - Beach maintenance,2030590,202112
Rother District Council,01/01/2022,031RESOURCES,Chief Executive & Corporate Core,20159,Corporate Policy Making,D1204,Newspapers & Periodicals,13.00,Pipers News Ltd,Newspapers & Periodicals - Newspapers,2029721,202110
Rother District Council,01/01/2022,031RESOURCES,Chief Executive & Corporate Core,20156,Representing Local Interest,D1204,Newspapers & Periodicals,13.00,Pipers News Ltd,Newspapers & Periodicals - Newspapers,2029722,202110
Rother District Council,01/01/2022,071STRAT,Strategy and Planning,20244,General Planning Expenses,D1204,Newspapers & Periodicals,13.00,Pipers News Ltd,Newspapers & Periodicals - Newspapers,2029723,202110
Rother District Council,01/01/2022,091HOUSING,Housing and Community Services,20206,UK Resettlement (Syrians),D2513,Hired and Contracted services,226.65,Amberley Nursery Ltd,Hired and contracted services - Syrian-Education-Exempt VAT,2029523,202110
Rother District Council,01/01/2022,091HOUSING,Housing and Community Services,20206,UK Resettlement (Syrians),D2513,Hired and Contracted services,171.01,Amberley Nursery Ltd,Hired and contracted services - Syrian-Education-Exempt VAT,2029524,202110
Rother District Council,01/01/2022,091HOUSING,Housing and Community Services,20206,UK Resettlement (Syrians),D2513,Hired and Contracted services,169.99,Amberley Nursery Ltd,Hired and contracted services - Syrian-Education-Exempt VAT,2029568,202110
Rother District Council,01/01/2022,101RESOURCES,Resources,20209,Corporate management,D2513,Hired and Contracted services,20.09,Merchant Rentals Ltd,Hired and contracted services - Streamline Machine-Rental,2030350,202111
Rother District Council,01/01/2022,101RESOURCES,Resources,20209,Corporate management,D2513,Hired and Contracted services,114.50,Her Majestys Court Service,Hired and contracted services - Court Costs/Fees,2030605,202111
Rother District Council,01/01/2022,091HOUSING,Housing and Community Services,20137,Car Parks,D2513,Hired and Contracted services,"3,015.25",Park Now Ltd,Hired and contracted services - Car Parks-RingGo service charges,2029851,202110
